{"text_format":"3","workbook":"xlsx","n_sheets":4,"sheets":["Shop Briefing","個人KPI","Sales receipt((當天)","個人KPISales receipt(MTD）"],"not_rendered":{"macros":1,"defined_names":3},"read":"whole","date_system":"1900"}

{"sheet":"Shop Briefing","index":0,"n_rows":80,"n_cols":18,"rows_kept":80,"merged":[[0,0,0,2],[0,3,0,5],[0,8,0,9],[0,10,0,11],[1,0,2,0],[1,1,1,2],[1,3,2,4],[1,5,2,6],[1,7,2,8],[1,9,2,10],[1,11,2,12],[1,13,2,14],[3,3,3,4],[3,5,3,6],[3,7,3,8],[3,9,3,10],[3,11,3,12],[3,13,3,14],[4,3,4,4],[4,5,4,6],[4,7,4,8],[4,9,4,10],[4,11,4,12],[4,13,4,14],[5,3,5,4],[5,5,5,6],[5,7,5,8],[5,9,5,10],[5,11,5,12],[5,13,5,14],[7,0,15,0],[7,1,7,10],[7,11,7,12],[7,13,7,14],[8,1,8,4],[8,5,8,6],[8,7,8,8],[8,9,8,10],[8,11,8,12],[8,13,8,14],[9,1,9,4],[9,5,9,6],[9,7,9,8],[9,9,9,10],[9,11,9,12],[9,13,9,14],[10,1,10,4],[10,5,10,6],[10,7,10,8],[10,9,10,10],[10,11,10,12],[10,13,10,14],[11,1,11,4],[11,5,11,6],[11,7,11,8],[11,9,11,10],[11,11,11,12],[11,13,11,14],[12,1,12,4],[12,5,12,6],[12,7,12,8],[12,9,12,10],[12,11,12,12],[12,13,12,14],[13,1,13,4],[13,5,13,6],[13,7,13,8],[13,9,13,10],[13,11,13,12],[13,13,13,14],[14,1,14,4],[14,5,14,6],[14,7,14,8],[14,9,14,10],[14,11,14,12],[14,13,14,14],[15,1,15,4],[15,5,15,6],[15,7,15,8],[15,9,15,10],[15,11,15,12],[15,13,15,14],[17,0,26,0],[17,1,17,4],[17,5,17,6],[17,7,17,8],[17,9,17,10],[17,11,17,12],[17,13,17,14],[18,1,18,4],[18,5,18,6],[18,7,18,8],[18,9,18,10],[18,11,18,12],[18,13,18,14],[19,1,19,4],[19,5,19,6],[19,7,19,8],[19,9,19,10],[19,11,19,12],[19,13,19,14],[20,1,20,4],[20,5,20,6],[20,7,20,8],[20,9,20,10],[20,11,20,12],[20,13,20,14],[21,1,21,4],[21,5,21,6],[21,7,21,8],[21,9,21,10],[21,11,21,12],[21,13,21,14],[22,1,22,4],[22,5,22,6],[22,7,22,8],[22,9,22,10],[22,11,22,12],[22,13,22,14],[23,1,23,4],[23,5,23,6],[23,7,23,8],[23,9,23,10],[23,11,23,12],[23,13,23,14],[24,1,24,4],[24,5,24,6],[24,7,24,8],[24,9,24,10],[24,11,24,12],[24,13,24,14],[25,1,25,4],[25,5,25,6],[25,7,25,8],[25,9,25,10],[25,11,25,12],[25,13,25,14],[26,1,26,4],[26,5,26,6],[26,7,26,8],[26,9,26,10],[26,11,26,12],[26,13,26,14],[27,0,29,0],[27,1,27,4],[27,5,27,6],[27,7,27,8],[27,9,27,10],[27,11,27,12],[27,13,27,14],[28,1,28,4],[28,5,28,6],[28,7,28,8],[28,9,28,10],[28,11,28,12],[28,13,28,14],[29,1,29,4],[29,5,29,6],[29,7,29,8],[29,9,29,10],[29,11,29,12],[29,13,29,14],[30,0,30,4],[30,5,30,6],[30,7,30,8],[30,9,30,10],[30,11,30,12],[30,13,30,14],[31,0,31,4],[31,5,31,6],[31,7,31,8],[31,9,31,10],[31,11,31,12],[31,13,31,14],[32,0,32,14],[33,0,34,1],[33,2,33,14],[34,2,34,3],[34,4,34,5],[34,6,34,7],[34,8,34,9],[34,10,34,11],[34,12,34,13],[35,0,35,1],[35,2,35,3],[35,4,35,5],[35,6,35,7],[35,8,35,9],[35,10,35,11],[35,12,35,13],[36,0,36,1],[36,2,36,3],[36,4,36,5],[36,6,36,7],[36,8,36,9],[36,10,36,11],[36,12,36,13],[37,0,37,1],[37,2,37,3],[37,4,37,5],[37,6,37,7],[37,8,37,9],[37,10,37,11],[37,12,37,13],[38,0,38,1],[38,2,38,3],[38,4,38,5],[38,6,38,7],[38,8,38,9],[38,10,38,11],[38,12,38,13],[39,0,39,1],[39,2,39,3],[39,4,39,5],[39,6,39,7],[39,8,39,9],[39,10,39,11],[39,12,39,13],[40,0,40,1],[40,2,40,3],[40,4,40,5],[40,6,40,7],[40,8,40,9],[40,10,40,11],[40,12,40,13],[41,0,41,1],[41,2,41,3],[41,4,41,5],[41,6,41,7],[41,8,41,9],[41,10,41,11],[41,12,41,13],[42,0,42,1],[42,2,42,3],[42,4,42,5],[42,6,42,7],[42,8,42,9],[42,10,42,11],[42,12,42,13],[43,0,43,1],[43,2,43,3],[43,4,43,5],[43,6,43,7],[43,8,43,9],[43,10,43,11],[43,12,43,13],[44,0,45,0],[44,1,44,2],[44,3,44,4],[44,5,44,6],[44,7,44,8],[44,9,44,10],[44,11,44,12],[44,13,44,14],[63,0,64,0],[63,1,63,2],[63,3,63,4],[63,5,63,6],[63,7,63,8],[63,9,63,10],[63,11,63,12],[63,13,63,14],[78,0,78,14],[79,0,79,14],[80,0,80,14],[81,0,81,14],[82,0,82,14],[83,0,83,14],[84,0,84,14],[85,0,85,14],[86,0,86,14],[87,0,87,14],[88,0,88,14],[89,0,89,14],[90,0,90,14],[91,0,91,14],[92,0,92,14],[93,0,93,14],[94,0,94,14],[95,0,95,14],[96,0,96,14],[97,0,97,14],[98,0,98,14]]}
["RMV",null,null,{"$f":"TODAY()","v":"2026-04-03"},{"$nulls":4},"LY APR MTD",null,2287343,null,"Target",2100000]
["本月","生意",null,"ATV",null,"UPT",null,"單數",null,"件数",null,"人流",null,"轉化率"]
[null,null,"VS+/-%"]
["昨天生意",66197,{"$f":"SUM(B4/B5)-1","v":{"v":0.0506459702250579,"d":"5%"}},{"$f":"SUM(B4/H4)","v":{"v":2647.88,"d":"2648"}},null,{"$f":"SUM(J4/H4)","v":{"v":4.12,"d":"4.1"}},null,25,null,103,null,544,null,{"$f":"SUM(H4/L4)*100%","v":{"v":0.04595588235294118,"d":"5%"}}]
["去年同期",63006]
["本月累计",120539,{"$f":"B6/N1","v":{"v":0.05739952380952381,"d":"6%"}},{"$f":"SUM(B6/H6)","v":{"v":2114.719298245614,"d":"2115"}},null,{"$f":"SUM(J6/H6)","v":{"v":3.543859649122807,"d":"3.5"}},null,57,null,202,null,981,null,{"$f":"SUM(H6/L6)*100%","v":{"v":0.0581039755351682,"d":"6%"}}]
[null,1483583]
["當天","Promotion"]
[null,"項目",{"$nulls":3},"單價",null,"單數",null,"銷售占比"]
[null,"2件9折，3件88折",{"$nulls":3},36159,null,12,null,{"$f":"F10/B4","v":{"v":0.5462332129854828,"d":"55%"}}]
[null,"26Q1鞋2對88折",{"$nulls":3},1665,null,1,null,{"$f":"F11/B4","v":{"v":0.0251521972294817,"d":"3%"}}]
[null,"6500-850",{"$nulls":3},7620,null,1,null,{"$f":"F12/B4","v":{"v":0.11511095668988021,"d":"12%"}}]
[{"$nulls":9},{"$f":"F13/B4","v":{"v":0,"d":"0%"}}]
[{"$nulls":9},{"$f":"F14/B4","v":{"v":0,"d":"0%"}}]
[{"$nulls":9},{"$f":"F15/B4","v":{"v":0,"d":"0%"}}]
[{"$nulls":9},{"$f":"F16/B4","v":{"v":0,"d":"0%"}}]
[{"$nulls":16},"  "]
["當天","系列/品類",{"$nulls":3},"銷售金額",null,"件數",null,"銷售占比"]
[null,"FILA ORIGINALE",{"$nulls":3},{"$f":"SUMIFS('Sales receipt((當天)'!K:K,'Sales receipt((當天)'!B:B,'Sales receipt((當天)'!B4,'Sales receipt((當天)'!G:G,'Sales receipt((當天)'!G6)","v":5628},null,{"$f":"SUMIFS('Sales receipt((當天)'!J:J,'Sales receipt((當天)'!B:B,'Sales receipt((當天)'!B4,'Sales receipt((當天)'!G:G,'Sales receipt((當天)'!G6)","v":9},null,{"$f":"F19/F30","v":{"v":0.10826199865345773,"d":"11%"}}]
[null,"HERITAGE",{"$nulls":3},{"$f":"SUMIFS('Sales receipt((當天)'!K:K,'Sales receipt((當天)'!B:B,'Sales receipt((當天)'!B4,'Sales receipt((當天)'!G:G,'Sales receipt((當天)'!G9)","v":7065},null,{"$f":"SUMIFS('Sales receipt((當天)'!J:J,'Sales receipt((當天)'!B:B,'Sales receipt((當天)'!B4,'Sales receipt((當天)'!G:G,'Sales receipt((當天)'!G9)","v":9},null,{"$f":"F20/F30","v":{"v":0.13590458786188322,"d":"14%"}}]
[null,"WHITE",{"$nulls":3},{"$f":"SUMIFS('Sales receipt((當天)'!K:K,'Sales receipt((當天)'!B:B,'Sales receipt((當天)'!B4,'Sales receipt((當天)'!G:G,'Sales receipt((當天)'!G17)","v":8287},null,{"$f":"SUMIFS('Sales receipt((當天)'!J:J,'Sales receipt((當天)'!B:B,'Sales receipt((當天)'!B4,'Sales receipt((當天)'!G:G,'Sales receipt((當天)'!G17)","v":9},null,{"$f":"F21/F30","v":{"v":0.1594113686640377,"d":"16%"}}]
[null,"BLUE",{"$nulls":3},{"$f":"SUMIFS('Sales receipt((當天)'!K:K,'Sales receipt((當天)'!B:B,'Sales receipt((當天)'!B4,'Sales receipt((當天)'!G:G,'Sales receipt((當天)'!G3)","v":3063},null,{"$f":"SUMIFS('Sales receipt((當天)'!J:J,'Sales receipt((當天)'!B:B,'Sales receipt((當天)'!B4,'Sales receipt((當天)'!G:G,'Sales receipt((當天)'!G3)","v":1},null,{"$f":"F22/F30","v":{"v":0.05892084255073579,"d":"6%"}}]
[null,"FITNESS",{"$nulls":3},{"$f":"SUMIFS('Sales receipt((當天)'!K:K,'Sales receipt((當天)'!B:B,'Sales receipt((當天)'!B4,'Sales receipt((當天)'!G:G,'Sales receipt((當天)'!G7)","v":3943},null,{"$f":"SUMIFS('Sales receipt((當天)'!J:J,'Sales receipt((當天)'!B:B,'Sales receipt((當天)'!B4,'Sales receipt((當天)'!G:G,'Sales receipt((當天)'!G7)","v":6},null,{"$f":"F23/F30","v":{"v":0.075848802539194,"d":"8%"}}]
[null,"A.P.",{"$nulls":3},{"$f":"SUMIFS('Sales receipt((當天)'!K:K,'Sales receipt((當天)'!B:B,'Sales receipt((當天)'!B4,'Sales receipt((當天)'!G:G,'Sales receipt((當天)'!G2)","v":3626},null,{"$f":"SUMIFS('Sales receipt((當天)'!J:J,'Sales receipt((當天)'!B:B,'Sales receipt((當天)'!B4,'Sales receipt((當天)'!G:G,'Sales receipt((當天)'!G2)","v":4},null,{"$f":"F24/F30","v":{"v":0.06975088967971531,"d":"7%"}}]
[null,"GOLF",{"$nulls":3},{"$f":"SUMIFS('Sales receipt((當天)'!K:K,'Sales receipt((當天)'!B:B,'Sales receipt((當天)'!B4,'Sales receipt((當天)'!G:G,'Sales receipt((當天)'!G8)","v":10366},null,{"$f":"SUMIFS('Sales receipt((當天)'!J:J,'Sales receipt((當天)'!B:B,'Sales receipt((當天)'!B4,'Sales receipt((當天)'!G:G,'Sales receipt((當天)'!G8)","v":6},null,{"$f":"F25/F30","v":{"v":0.1994036741367702,"d":"20%"}}]
[null,"EXPLORE",{"$nulls":3},{"$f":"SUMIFS('Sales receipt((當天)'!K:K,'Sales receipt((當天)'!B:B,'Sales receipt((當天)'!B4,'Sales receipt((當天)'!G:G,'Sales receipt((當天)'!G4)","v":3790},null,{"$f":"SUMIFS('Sales receipt((當天)'!J:J,'Sales receipt((當天)'!B:B,'Sales receipt((當天)'!B4,'Sales receipt((當天)'!G:G,'Sales receipt((當天)'!G4)","v":2},null,{"$f":"F26/F30","v":{"v":0.07290564585938251,"d":"7%"}}]
[null,"TENNIS",{"$nulls":3},{"$f":"SUMIFS('Sales receipt((當天)'!K:K,'Sales receipt((當天)'!B:B,'Sales receipt((當天)'!B4,'Sales receipt((當天)'!G:G,'Sales receipt((當天)'!G16)","v":2043},null,{"$f":"SUMIFS('Sales receipt((當天)'!J:J,'Sales receipt((當天)'!B:B,'Sales receipt((當天)'!B4,'Sales receipt((當天)'!G:G,'Sales receipt((當天)'!G16)","v":2},null,{"$f":"F27/F30","v":{"v":0.03929979801865923,"d":"4%"}}]
["服裝","男",{"$nulls":3},{"$f":"SUM(SUMIFS('Sales receipt((當天)'!K:K,'Sales receipt((當天)'!B:B,'Sales receipt((當天)'!B4,'Sales receipt((當天)'!H:H,{\"MALE\",\"男\"}))","v":22758},null,{"$f":"SUM(SUMIFS('Sales receipt((當天)'!J:J,'Sales receipt((當天)'!B:B,'Sales receipt((當天)'!B4,'Sales receipt((當天)'!H:H,{\"MALE\",\"男\"}))","v":25},null,{"$f":"F28/F30","v":{"v":0.43778012888333173,"d":"44%"}}]
[null,"女",{"$nulls":3},{"$f":"SUM(SUMIFS('Sales receipt((當天)'!K:K,'Sales receipt((當天)'!B:B,'Sales receipt((當天)'!B4,'Sales receipt((當天)'!H:H,{\"FEMALE\",\"女\"}))","v":29227},null,{"$f":"SUM(SUMIFS('Sales receipt((當天)'!J:J,'Sales receipt((當天)'!B:B,'Sales receipt((當天)'!B4,'Sales receipt((當天)'!H:H,{\"FEMALE\",\"女\"}))","v":28},null,{"$f":"F29/F30","v":{"v":0.5622198711166683,"d":"56%"}}]
[null,"Total",{"$nulls":3},{"$f":"SUM(F28:G29)","v":51985},null,{"$f":"SUM(H28:I29)","v":53},null,{"$f":"F30/B4","v":{"v":0.7853074912760397,"d":"79%"}}]
["鞋",{"$nulls":4},{"$f":"SUMIFS('Sales receipt((當天)'!K:K,'Sales receipt((當天)'!B:B,'Sales receipt((當天)'!B6)","v":8417},null,{"$f":"SUMIFS('Sales receipt((當天)'!J:J,'Sales receipt((當天)'!B:B,'Sales receipt((當天)'!B6)","v":9},null,{"$f":"F31/B4","v":{"v":0.12715077722555404,"d":"13%"}}]
["配件",{"$nulls":4},{"$f":"SUMIFS('Sales receipt((當天)'!K:K,'Sales receipt((當天)'!B:B,'Sales receipt((當天)'!B5)","v":5386},null,{"$f":"SUMIFS('Sales receipt((當天)'!J:J,'Sales receipt((當天)'!B:B,'Sales receipt((當天)'!B5)","v":11},null,{"$f":"F32/B4","v":{"v":0.08136320377056362,"d":"8%"}}]
[]
["姓名",null,"生意"]
[null,null,"當天目標",null,"實際",null,"月累計",null,"单数",null,"件数",null,"ATV",null,"UPT"]
["M0989 Susanna",null,14700,null,25640,null,38212,null,7,null,39,null,{"$f":"SUM(E36/I36)","v":{"v":3662.8571428571427,"d":"3663"}},null,{"$f":"SUM(K36/I36)","v":{"v":5.571428571428571,"d":"5.6"}}]
["M1436 Khaki",null,14700,null,9605,null,9605,null,5,null,16,null,{"$f":"SUM(E37/I37)","v":1921},null,{"$f":"SUM(K37/I37)","v":3.2}]
["M2172 Janet",null,"RO",{"$nulls":3},5822,{"$nulls":5},{"$error":"#DIV/0!"},null,{"$f":"SUM(K38/I38)","v":{"$error":"#DIV/0!"}}]
["M2801 Fanny",null,"al",{"$nulls":9},{"$error":"#DIV/0!"},null,{"$error":"#DIV/0!"}]
["M2798 Ryan",null,14700,null,18336,null,32953,null,7,null,25,null,{"$f":"SUM(E40/I40)","v":{"v":2619.4285714285716,"d":"2619"}},null,{"v":3.5714285714285716,"d":"3.6"}]
["M2902 Carmen",null,14700,null,12616,null,23196,null,6,null,23,null,{"v":2102.6666666666665,"d":"2103"},null,{"v":3.8333333333333335,"d":"3.8"}]
["M3060 Anson",null,"RO",{"$nulls":3},10751,{"$nulls":5},{"$f":"SUM(E42/I42)","v":{"$error":"#DIV/0!"}},null,{"$error":"#DIV/0!"}]
[]
[]
[null,"M0989 Susanna",null,"M2172 Janet",null,"M2801 Fanny",null,"M2798 Ryan",null,"M2902 Carmen",null,"M3060 Anson",null,"\tM1436 Khaki"]
[null,"Sales","Qty","Sales","Qty","Sales","Qty","Sales","Qty","Sales","Qty","Sales","Qty","Sales","Qty"]
[" ORIGINALE",{"$f":"SUMIFS('Sales receipt((當天)'!K:K,'Sales receipt((當天)'!A:A,'Sales receipt((當天)'!A2,'Sales receipt((當天)'!B:B,'Sales receipt((當天)'!B4,'Sales receipt((當天)'!G:G,'Sales receipt((當天)'!G6)","v":1572},{"$f":"SUMIFS('Sales receipt((當天)'!J:J,'Sales receipt((當天)'!A:A,'Sales receipt((當天)'!A2,'Sales receipt((當天)'!B:B,'Sales receipt((當天)'!B4,'Sales receipt((當天)'!G:G,'Sales receipt((當天)'!G6)","v":2},{"$f":"SUMIFS('Sales receipt((當天)'!K:K,'Sales receipt((當天)'!A:A,'Sales receipt((當天)'!A3,'Sales receipt((當天)'!B:B,'Sales receipt((當天)'!B4,'Sales receipt((當天)'!G:G,'Sales receipt((當天)'!G6)","v":0},{"$f":"SUMIFS('Sales receipt((當天)'!J:J,'Sales receipt((當天)'!A:A,'Sales receipt((當天)'!A3,'Sales receipt((當天)'!B:B,'Sales receipt((當天)'!B4,'Sales receipt((當天)'!G:G,'Sales receipt((當天)'!G6)","v":0},{"$f":"SUMIFS('Sales receipt((當天)'!K:K,'Sales receipt((當天)'!A:A,'Sales receipt((當天)'!A7,'Sales receipt((當天)'!B:B,'Sales receipt((當天)'!B4,'Sales receipt((當天)'!G:G,'Sales receipt((當天)'!G6)","v":0},{"$f":"SUMIFS('Sales receipt((當天)'!J:J,'Sales receipt((當天)'!A:A,'Sales receipt((當天)'!A7,'Sales receipt((當天)'!B:B,'Sales receipt((當天)'!B4,'Sales receipt((當天)'!G:G,'Sales receipt((當天)'!G6)","v":0},{"$f":"SUMIFS('Sales receipt((當天)'!K:K,'Sales receipt((當天)'!A:A,'Sales receipt((當天)'!A6,'Sales receipt((當天)'!B:B,'Sales receipt((當天)'!B4,'Sales receipt((當天)'!G:G,'Sales receipt((當天)'!G6)","v":3669},{"$f":"SUMIFS('Sales receipt((當天)'!J:J,'Sales receipt((當天)'!A:A,'Sales receipt((當天)'!A6,'Sales receipt((當天)'!B:B,'Sales receipt((當天)'!B4,'Sales receipt((當天)'!G:G,'Sales receipt((當天)'!G6)","v":6},{"$f":"SUMIFS('Sales receipt((當天)'!K:K,'Sales receipt((當天)'!A:A,'Sales receipt((當天)'!A8,'Sales receipt((當天)'!B:B,'Sales receipt((當天)'!B4,'Sales receipt((當天)'!G:G,'Sales receipt((當天)'!G6)","v":387},{"$f":"SUMIFS('Sales receipt((當天)'!J:J,'Sales receipt((當天)'!A:A,'Sales receipt((當天)'!A8,'Sales receipt((當天)'!B:B,'Sales receipt((當天)'!B4,'Sales receipt((當天)'!G:G,'Sales receipt((當天)'!G6)","v":1},{"$f":"SUMIFS('Sales receipt((當天)'!K:K,'Sales receipt((當天)'!A:A,'Sales receipt((當天)'!A4,'Sales receipt((當天)'!B:B,'Sales receipt((當天)'!B4,'Sales receipt((當天)'!G:G,'Sales receipt((當天)'!G6)","v":0},{"$f":"SUMIFS('Sales receipt((當天)'!J:J,'Sales receipt((當天)'!A:A,'Sales receipt((當天)'!A4,'Sales receipt((當天)'!B:B,'Sales receipt((當天)'!B4,'Sales receipt((當天)'!G:G,'Sales receipt((當天)'!G6)","v":0},{"$f":"SUMIFS('Sales receipt((當天)'!K:K,'Sales receipt((當天)'!A:A,'Sales receipt((當天)'!A5,'Sales receipt((當天)'!B:B,'Sales receipt((當天)'!B4,'Sales receipt((當天)'!G:G,'Sales receipt((當天)'!G6)","v":0},{"$f":"SUMIFS('Sales receipt((當天)'!J:J,'Sales receipt((當天)'!A:A,'Sales receipt((當天)'!A5,'Sales receipt((當天)'!B:B,'Sales receipt((當天)'!B4,'Sales receipt((當天)'!G:G,'Sales receipt((當天)'!G6)","v":0}]
["HERITAGE",{"$f":"SUMIFS('Sales receipt((當天)'!K:K,'Sales receipt((當天)'!A:A,'Sales receipt((當天)'!A2,'Sales receipt((當天)'!B:B,'Sales receipt((當天)'!B4,'Sales receipt((當天)'!G:G,'Sales receipt((當天)'!G9)","v":0},{"$f":"SUMIFS('Sales receipt((當天)'!J:J,'Sales receipt((當天)'!A:A,'Sales receipt((當天)'!A2,'Sales receipt((當天)'!B:B,'Sales receipt((當天)'!B4,'Sales receipt((當天)'!G:G,'Sales receipt((當天)'!G9)","v":0},{"$f":"SUMIFS('Sales receipt((當天)'!K:K,'Sales receipt((當天)'!A:A,'Sales receipt((當天)'!A3,'Sales receipt((當天)'!B:B,'Sales receipt((當天)'!B4,'Sales receipt((當天)'!G:G,'Sales receipt((當天)'!G9)","v":0},{"$f":"SUMIFS('Sales receipt((當天)'!J:J,'Sales receipt((當天)'!A:A,'Sales receipt((當天)'!A3,'Sales receipt((當天)'!B:B,'Sales receipt((當天)'!B4,'Sales receipt((當天)'!G:G,'Sales receipt((當天)'!G9)","v":0},{"$f":"SUMIFS('Sales receipt((當天)'!K:K,'Sales receipt((當天)'!A:A,'Sales receipt((當天)'!A7,'Sales receipt((當天)'!B:B,'Sales receipt((當天)'!B4,'Sales receipt((當天)'!G:G,'Sales receipt((當天)'!G9)","v":0},{"$f":"SUMIFS('Sales receipt((當天)'!J:J,'Sales receipt((當天)'!A:A,'Sales receipt((當天)'!A7,'Sales receipt((當天)'!B:B,'Sales receipt((當天)'!B4,'Sales receipt((當天)'!G:G,'Sales receipt((當天)'!G9)","v":0},{"$f":"SUMIFS('Sales receipt((當天)'!K:K,'Sales receipt((當天)'!A:A,'Sales receipt((當天)'!A6,'Sales receipt((當天)'!B:B,'Sales receipt((當天)'!B4,'Sales receipt((當天)'!G:G,'Sales receipt((當天)'!G9)","v":1987},{"$f":"SUMIFS('Sales receipt((當天)'!J:J,'Sales receipt((當天)'!A:A,'Sales receipt((當天)'!A6,'Sales receipt((當天)'!B:B,'Sales receipt((當天)'!B4,'Sales receipt((當天)'!G:G,'Sales receipt((當天)'!G9)","v":3},{"$f":"SUMIFS('Sales receipt((當天)'!K:K,'Sales receipt((當天)'!A:A,'Sales receipt((當天)'!A8,'Sales receipt((當天)'!B:B,'Sales receipt((當天)'!B4,'Sales receipt((當天)'!G:G,'Sales receipt((當天)'!G9)","v":3538},{"$f":"SUMIFS('Sales receipt((當天)'!J:J,'Sales receipt((當天)'!A:A,'Sales receipt((當天)'!A8,'Sales receipt((當天)'!B:B,'Sales receipt((當天)'!B4,'Sales receipt((當天)'!G:G,'Sales receipt((當天)'!G9)","v":4},{"$f":"SUMIFS('Sales receipt((當天)'!K:K,'Sales receipt((當天)'!A:A,'Sales receipt((當天)'!A4,'Sales receipt((當天)'!B:B,'Sales receipt((當天)'!B4,'Sales receipt((當天)'!G:G,'Sales receipt((當天)'!G9)","v":0},{"$f":"SUMIFS('Sales receipt((當天)'!J:J,'Sales receipt((當天)'!A:A,'Sales receipt((當天)'!A4,'Sales receipt((當天)'!B:B,'Sales receipt((當天)'!B4,'Sales receipt((當天)'!G:G,'Sales receipt((當天)'!G9)","v":0},{"$f":"SUMIFS('Sales receipt((當天)'!K:K,'Sales receipt((當天)'!A:A,'Sales receipt((當天)'!A5,'Sales receipt((當天)'!B:B,'Sales receipt((當天)'!B4,'Sales receipt((當天)'!G:G,'Sales receipt((當天)'!G9)","v":1540},{"$f":"SUMIFS('Sales receipt((當天)'!J:J,'Sales receipt((當天)'!A:A,'Sales receipt((當天)'!A5,'Sales receipt((當天)'!B:B,'Sales receipt((當天)'!B4,'Sales receipt((當天)'!G:G,'Sales receipt((當天)'!G9)","v":2}]
["WHITE",{"$f":"SUMIFS('Sales receipt((當天)'!K:K,'Sales receipt((當天)'!A:A,'Sales receipt((當天)'!A2,'Sales receipt((當天)'!B:B,'Sales receipt((當天)'!B4,'Sales receipt((當天)'!G:G,'Sales receipt((當天)'!G17)","v":1377},{"$f":"SUMIFS('Sales receipt((當天)'!J:J,'Sales receipt((當天)'!A:A,'Sales receipt((當天)'!A2,'Sales receipt((當天)'!B:B,'Sales receipt((當天)'!B4,'Sales receipt((當天)'!G:G,'Sales receipt((當天)'!G17)","v":2},{"$f":"SUMIFS('Sales receipt((當天)'!K:K,'Sales receipt((當天)'!A:A,'Sales receipt((當天)'!A3,'Sales receipt((當天)'!B:B,'Sales receipt((當天)'!B4,'Sales receipt((當天)'!G:G,'Sales receipt((當天)'!G17)","v":0},{"$f":"SUMIFS('Sales receipt((當天)'!J:J,'Sales receipt((當天)'!A:A,'Sales receipt((當天)'!A3,'Sales receipt((當天)'!B:B,'Sales receipt((當天)'!B4,'Sales receipt((當天)'!G:G,'Sales receipt((當天)'!G17)","v":0},{"$f":"SUMIFS('Sales receipt((當天)'!K:K,'Sales receipt((當天)'!A:A,'Sales receipt((當天)'!A7,'Sales receipt((當天)'!B:B,'Sales receipt((當天)'!B4,'Sales receipt((當天)'!G:G,'Sales receipt((當天)'!G17)","v":0},{"$f":"SUMIFS('Sales receipt((當天)'!J:J,'Sales receipt((當天)'!A:A,'Sales receipt((當天)'!A7,'Sales receipt((當天)'!B:B,'Sales receipt((當天)'!B4,'Sales receipt((當天)'!G:G,'Sales receipt((當天)'!G17)","v":0},{"$f":"SUMIFS('Sales receipt((當天)'!K:K,'Sales receipt((當天)'!A:A,'Sales receipt((當天)'!A6,'Sales receipt((當天)'!B:B,'Sales receipt((當天)'!B4,'Sales receipt((當天)'!G:G,'Sales receipt((當天)'!G17)","v":2929},{"$f":"SUMIFS('Sales receipt((當天)'!J:J,'Sales receipt((當天)'!A:A,'Sales receipt((當天)'!A6,'Sales receipt((當天)'!B:B,'Sales receipt((當天)'!B4,'Sales receipt((當天)'!G:G,'Sales receipt((當天)'!G17)","v":3},{"$f":"SUMIFS('Sales receipt((當天)'!K:K,'Sales receipt((當天)'!A:A,'Sales receipt((當天)'!A8,'Sales receipt((當天)'!B:B,'Sales receipt((當天)'!B4,'Sales receipt((當天)'!G:G,'Sales receipt((當天)'!G17)","v":1931},{"$f":"SUMIFS('Sales receipt((當天)'!J:J,'Sales receipt((當天)'!A:A,'Sales receipt((當天)'!A8,'Sales receipt((當天)'!B:B,'Sales receipt((當天)'!B4,'Sales receipt((當天)'!G:G,'Sales receipt((當天)'!G17)","v":2},{"$f":"SUMIFS('Sales receipt((當天)'!K:K,'Sales receipt((當天)'!A:A,'Sales receipt((當天)'!A4,'Sales receipt((當天)'!B:B,'Sales receipt((當天)'!B4,'Sales receipt((當天)'!G:G,'Sales receipt((當天)'!G17)","v":0},{"$f":"SUMIFS('Sales receipt((當天)'!J:J,'Sales receipt((當天)'!A:A,'Sales receipt((當天)'!A4,'Sales receipt((當天)'!B:B,'Sales receipt((當天)'!B4,'Sales receipt((當天)'!G:G,'Sales receipt((當天)'!G17)","v":0},{"$f":"SUMIFS('Sales receipt((當天)'!K:K,'Sales receipt((當天)'!A:A,'Sales receipt((當天)'!A5,'Sales receipt((當天)'!B:B,'Sales receipt((當天)'!B4,'Sales receipt((當天)'!G:G,'Sales receipt((當天)'!G17)","v":2050},{"$f":"SUMIFS('Sales receipt((當天)'!J:J,'Sales receipt((當天)'!A:A,'Sales receipt((當天)'!A5,'Sales receipt((當天)'!B:B,'Sales receipt((當天)'!B4,'Sales receipt((當天)'!G:G,'Sales receipt((當天)'!G17)","v":2}]
["BLUE",{"$f":"SUMIFS('Sales receipt((當天)'!K:K,'Sales receipt((當天)'!A:A,'Sales receipt((當天)'!A2,'Sales receipt((當天)'!B:B,'Sales receipt((當天)'!B4,'Sales receipt((當天)'!G:G,'Sales receipt((當天)'!G3)","v":0},{"$f":"SUMIFS('Sales receipt((當天)'!J:J,'Sales receipt((當天)'!A:A,'Sales receipt((當天)'!A2,'Sales receipt((當天)'!B:B,'Sales receipt((當天)'!B4,'Sales receipt((當天)'!G:G,'Sales receipt((當天)'!G3)","v":0},{"$f":"SUMIFS('Sales receipt((當天)'!K:K,'Sales receipt((當天)'!A:A,'Sales receipt((當天)'!A3,'Sales receipt((當天)'!B:B,'Sales receipt((當天)'!B4,'Sales receipt((當天)'!G:G,'Sales receipt((當天)'!G3)","v":0},{"$f":"SUMIFS('Sales receipt((當天)'!J:J,'Sales receipt((當天)'!A:A,'Sales receipt((當天)'!A3,'Sales receipt((當天)'!B:B,'Sales receipt((當天)'!B4,'Sales receipt((當天)'!G:G,'Sales receipt((當天)'!G3)","v":0},{"$f":"SUMIFS('Sales receipt((當天)'!K:K,'Sales receipt((當天)'!A:A,'Sales receipt((當天)'!A7,'Sales receipt((當天)'!B:B,'Sales receipt((當天)'!B4,'Sales receipt((當天)'!G:G,'Sales receipt((當天)'!G3)","v":0},{"$f":"SUMIFS('Sales receipt((當天)'!J:J,'Sales receipt((當天)'!A:A,'Sales receipt((當天)'!A7,'Sales receipt((當天)'!B:B,'Sales receipt((當天)'!B4,'Sales receipt((當天)'!G:G,'Sales receipt((當天)'!G3)","v":0},{"$f":"SUMIFS('Sales receipt((當天)'!K:K,'Sales receipt((當天)'!A:A,'Sales receipt((當天)'!A6,'Sales receipt((當天)'!B:B,'Sales receipt((當天)'!B4,'Sales receipt((當天)'!G:G,'Sales receipt((當天)'!G3)","v":3063},{"$f":"SUMIFS('Sales receipt((當天)'!J:J,'Sales receipt((當天)'!A:A,'Sales receipt((當天)'!A6,'Sales receipt((當天)'!B:B,'Sales receipt((當天)'!B4,'Sales receipt((當天)'!G:G,'Sales receipt((當天)'!G3)","v":1},{"$f":"SUMIFS('Sales receipt((當天)'!K:K,'Sales receipt((當天)'!A:A,'Sales receipt((當天)'!A8,'Sales receipt((當天)'!B:B,'Sales receipt((當天)'!B4,'Sales receipt((當天)'!G:G,'Sales receipt((當天)'!G3)","v":0},{"$f":"SUMIFS('Sales receipt((當天)'!J:J,'Sales receipt((當天)'!A:A,'Sales receipt((當天)'!A8,'Sales receipt((當天)'!B:B,'Sales receipt((當天)'!B4,'Sales receipt((當天)'!G:G,'Sales receipt((當天)'!G3)","v":0},{"$f":"SUMIFS('Sales receipt((當天)'!K:K,'Sales receipt((當天)'!A:A,'Sales receipt((當天)'!A4,'Sales receipt((當天)'!B:B,'Sales receipt((當天)'!B4,'Sales receipt((當天)'!G:G,'Sales receipt((當天)'!G3)","v":0},{"$f":"SUMIFS('Sales receipt((當天)'!J:J,'Sales receipt((當天)'!A:A,'Sales receipt((當天)'!A4,'Sales receipt((當天)'!B:B,'Sales receipt((當天)'!B4,'Sales receipt((當天)'!G:G,'Sales receipt((當天)'!G3)","v":0},{"$f":"SUMIFS('Sales receipt((當天)'!K:K,'Sales receipt((當天)'!A:A,'Sales receipt((當天)'!A5,'Sales receipt((當天)'!B:B,'Sales receipt((當天)'!B4,'Sales receipt((當天)'!G:G,'Sales receipt((當天)'!G3)","v":0},{"$f":"SUMIFS('Sales receipt((當天)'!J:J,'Sales receipt((當天)'!A:A,'Sales receipt((當天)'!A5,'Sales receipt((當天)'!B:B,'Sales receipt((當天)'!B4,'Sales receipt((當天)'!G:G,'Sales receipt((當天)'!G3)","v":0}]
["FITNESS",{"$f":"SUMIFS('Sales receipt((當天)'!K:K,'Sales receipt((當天)'!A:A,'Sales receipt((當天)'!A2,'Sales receipt((當天)'!B:B,'Sales receipt((當天)'!B4,'Sales receipt((當天)'!G:G,'Sales receipt((當天)'!G7)","v":1496},{"$f":"SUMIFS('Sales receipt((當天)'!J:J,'Sales receipt((當天)'!A:A,'Sales receipt((當天)'!A2,'Sales receipt((當天)'!B:B,'Sales receipt((當天)'!B4,'Sales receipt((當天)'!G:G,'Sales receipt((當天)'!G7)","v":2},{"$f":"SUMIFS('Sales receipt((當天)'!K:K,'Sales receipt((當天)'!A:A,'Sales receipt((當天)'!A3,'Sales receipt((當天)'!B:B,'Sales receipt((當天)'!B4,'Sales receipt((當天)'!G:G,'Sales receipt((當天)'!G7)","v":0},{"$f":"SUMIFS('Sales receipt((當天)'!J:J,'Sales receipt((當天)'!A:A,'Sales receipt((當天)'!A3,'Sales receipt((當天)'!B:B,'Sales receipt((當天)'!B4,'Sales receipt((當天)'!G:G,'Sales receipt((當天)'!G7)","v":0},{"$f":"SUMIFS('Sales receipt((當天)'!K:K,'Sales receipt((當天)'!A:A,'Sales receipt((當天)'!A7,'Sales receipt((當天)'!B:B,'Sales receipt((當天)'!B4,'Sales receipt((當天)'!G:G,'Sales receipt((當天)'!G7)","v":0},{"$f":"SUMIFS('Sales receipt((當天)'!J:J,'Sales receipt((當天)'!A:A,'Sales receipt((當天)'!A7,'Sales receipt((當天)'!B:B,'Sales receipt((當天)'!B4,'Sales receipt((當天)'!G:G,'Sales receipt((當天)'!G7)","v":0},{"$f":"SUMIFS('Sales receipt((當天)'!K:K,'Sales receipt((當天)'!A:A,'Sales receipt((當天)'!A6,'Sales receipt((當天)'!B:B,'Sales receipt((當天)'!B4,'Sales receipt((當天)'!G:G,'Sales receipt((當天)'!G7)","v":774},{"$f":"SUMIFS('Sales receipt((當天)'!J:J,'Sales receipt((當天)'!A:A,'Sales receipt((當天)'!A6,'Sales receipt((當天)'!B:B,'Sales receipt((當天)'!B4,'Sales receipt((當天)'!G:G,'Sales receipt((當天)'!G7)","v":1},{"$f":"SUMIFS('Sales receipt((當天)'!K:K,'Sales receipt((當天)'!A:A,'Sales receipt((當天)'!A8,'Sales receipt((當天)'!B:B,'Sales receipt((當天)'!B4,'Sales receipt((當天)'!G:G,'Sales receipt((當天)'!G7)","v":1673},{"$f":"SUMIFS('Sales receipt((當天)'!J:J,'Sales receipt((當天)'!A:A,'Sales receipt((當天)'!A8,'Sales receipt((當天)'!B:B,'Sales receipt((當天)'!B4,'Sales receipt((當天)'!G:G,'Sales receipt((當天)'!G7)","v":3},{"$f":"SUMIFS('Sales receipt((當天)'!K:K,'Sales receipt((當天)'!A:A,'Sales receipt((當天)'!A4,'Sales receipt((當天)'!B:B,'Sales receipt((當天)'!B4,'Sales receipt((當天)'!G:G,'Sales receipt((當天)'!G7)","v":0},{"$f":"SUMIFS('Sales receipt((當天)'!J:J,'Sales receipt((當天)'!A:A,'Sales receipt((當天)'!A4,'Sales receipt((當天)'!B:B,'Sales receipt((當天)'!B4,'Sales receipt((當天)'!G:G,'Sales receipt((當天)'!G7)","v":0},{"$f":"SUMIFS('Sales receipt((當天)'!K:K,'Sales receipt((當天)'!A:A,'Sales receipt((當天)'!A5,'Sales receipt((當天)'!B:B,'Sales receipt((當天)'!B4,'Sales receipt((當天)'!G:G,'Sales receipt((當天)'!G7)","v":0},{"$f":"SUMIFS('Sales receipt((當天)'!J:J,'Sales receipt((當天)'!A:A,'Sales receipt((當天)'!A5,'Sales receipt((當天)'!B:B,'Sales receipt((當天)'!B4,'Sales receipt((當天)'!G:G,'Sales receipt((當天)'!G7)","v":0}]
["A.P.",{"$f":"SUMIFS('Sales receipt((當天)'!K:K,'Sales receipt((當天)'!A:A,'Sales receipt((當天)'!A2,'Sales receipt((當天)'!B:B,'Sales receipt((當天)'!B4,'Sales receipt((當天)'!G:G,'Sales receipt((當天)'!G2)","v":1548},{"$f":"SUMIFS('Sales receipt((當天)'!J:J,'Sales receipt((當天)'!A:A,'Sales receipt((當天)'!A2,'Sales receipt((當天)'!B:B,'Sales receipt((當天)'!B4,'Sales receipt((當天)'!G:G,'Sales receipt((當天)'!G2)","v":2},{"$f":"SUMIFS('Sales receipt((當天)'!K:K,'Sales receipt((當天)'!A:A,'Sales receipt((當天)'!A3,'Sales receipt((當天)'!B:B,'Sales receipt((當天)'!B4,'Sales receipt((當天)'!G:G,'Sales receipt((當天)'!G2)","v":0},{"$f":"SUMIFS('Sales receipt((當天)'!J:J,'Sales receipt((當天)'!A:A,'Sales receipt((當天)'!A3,'Sales receipt((當天)'!B:B,'Sales receipt((當天)'!B4,'Sales receipt((當天)'!G:G,'Sales receipt((當天)'!G2)","v":0},{"$f":"SUMIFS('Sales receipt((當天)'!K:K,'Sales receipt((當天)'!A:A,'Sales receipt((當天)'!A7,'Sales receipt((當天)'!B:B,'Sales receipt((當天)'!B4,'Sales receipt((當天)'!G:G,'Sales receipt((當天)'!G2)","v":0},{"$f":"SUMIFS('Sales receipt((當天)'!J:J,'Sales receipt((當天)'!A:A,'Sales receipt((當天)'!A7,'Sales receipt((當天)'!B:B,'Sales receipt((當天)'!B4,'Sales receipt((當天)'!G:G,'Sales receipt((當天)'!G2)","v":0},{"$f":"SUMIFS('Sales receipt((當天)'!K:K,'Sales receipt((當天)'!A:A,'Sales receipt((當天)'!A6,'Sales receipt((當天)'!B:B,'Sales receipt((當天)'!B4,'Sales receipt((當天)'!G:G,'Sales receipt((當天)'!G2)","v":0},{"$f":"SUMIFS('Sales receipt((當天)'!J:J,'Sales receipt((當天)'!A:A,'Sales receipt((當天)'!A6,'Sales receipt((當天)'!B:B,'Sales receipt((當天)'!B4,'Sales receipt((當天)'!G:G,'Sales receipt((當天)'!G2)","v":0},{"$f":"SUMIFS('Sales receipt((當天)'!K:K,'Sales receipt((當天)'!A:A,'Sales receipt((當天)'!A8,'Sales receipt((當天)'!B:B,'Sales receipt((當天)'!B4,'Sales receipt((當天)'!G:G,'Sales receipt((當天)'!G2)","v":775},{"$f":"SUMIFS('Sales receipt((當天)'!J:J,'Sales receipt((當天)'!A:A,'Sales receipt((當天)'!A8,'Sales receipt((當天)'!B:B,'Sales receipt((當天)'!B4,'Sales receipt((當天)'!G:G,'Sales receipt((當天)'!G2)","v":1},{"$f":"SUMIFS('Sales receipt((當天)'!K:K,'Sales receipt((當天)'!A:A,'Sales receipt((當天)'!A4,'Sales receipt((當天)'!B:B,'Sales receipt((當天)'!B4,'Sales receipt((當天)'!G:G,'Sales receipt((當天)'!G2)","v":0},{"$f":"SUMIFS('Sales receipt((當天)'!J:J,'Sales receipt((當天)'!A:A,'Sales receipt((當天)'!A4,'Sales receipt((當天)'!B:B,'Sales receipt((當天)'!B4,'Sales receipt((當天)'!G:G,'Sales receipt((當天)'!G2)","v":0},{"$f":"SUMIFS('Sales receipt((當天)'!K:K,'Sales receipt((當天)'!A:A,'Sales receipt((當天)'!A5,'Sales receipt((當天)'!B:B,'Sales receipt((當天)'!B4,'Sales receipt((當天)'!G:G,'Sales receipt((當天)'!G2)","v":1303},{"$f":"SUMIFS('Sales receipt((當天)'!J:J,'Sales receipt((當天)'!A:A,'Sales receipt((當天)'!A5,'Sales receipt((當天)'!B:B,'Sales receipt((當天)'!B4,'Sales receipt((當天)'!G:G,'Sales receipt((當天)'!G2)","v":1}]
["GOLF",{"$f":"SUMIFS('Sales receipt((當天)'!K:K,'Sales receipt((當天)'!A:A,'Sales receipt((當天)'!A2,'Sales receipt((當天)'!B:B,'Sales receipt((當天)'!B4,'Sales receipt((當天)'!G:G,'Sales receipt((當天)'!G8)","v":6472},{"$f":"SUMIFS('Sales receipt((當天)'!J:J,'Sales receipt((當天)'!A:A,'Sales receipt((當天)'!A2,'Sales receipt((當天)'!B:B,'Sales receipt((當天)'!B4,'Sales receipt((當天)'!G:G,'Sales receipt((當天)'!G8)","v":4},{"$f":"SUMIFS('Sales receipt((當天)'!K:K,'Sales receipt((當天)'!A:A,'Sales receipt((當天)'!A3,'Sales receipt((當天)'!B:B,'Sales receipt((當天)'!B4,'Sales receipt((當天)'!G:G,'Sales receipt((當天)'!G8)","v":0},{"$f":"SUMIFS('Sales receipt((當天)'!J:J,'Sales receipt((當天)'!A:A,'Sales receipt((當天)'!A3,'Sales receipt((當天)'!B:B,'Sales receipt((當天)'!B4,'Sales receipt((當天)'!G:G,'Sales receipt((當天)'!G8)","v":0},{"$f":"SUMIFS('Sales receipt((當天)'!K:K,'Sales receipt((當天)'!A:A,'Sales receipt((當天)'!A7,'Sales receipt((當天)'!B:B,'Sales receipt((當天)'!B4,'Sales receipt((當天)'!G:G,'Sales receipt((當天)'!G8)","v":0},{"$f":"SUMIFS('Sales receipt((當天)'!J:J,'Sales receipt((當天)'!A:A,'Sales receipt((當天)'!A7,'Sales receipt((當天)'!B:B,'Sales receipt((當天)'!B4,'Sales receipt((當天)'!G:G,'Sales receipt((當天)'!G8)","v":0},{"$f":"SUMIFS('Sales receipt((當天)'!K:K,'Sales receipt((當天)'!A:A,'Sales receipt((當天)'!A6,'Sales receipt((當天)'!B:B,'Sales receipt((當天)'!B4,'Sales receipt((當天)'!G:G,'Sales receipt((當天)'!G8)","v":1974},{"$f":"SUMIFS('Sales receipt((當天)'!J:J,'Sales receipt((當天)'!A:A,'Sales receipt((當天)'!A6,'Sales receipt((當天)'!B:B,'Sales receipt((當天)'!B4,'Sales receipt((當天)'!G:G,'Sales receipt((當天)'!G8)","v":1},{"$f":"SUMIFS('Sales receipt((當天)'!K:K,'Sales receipt((當天)'!A:A,'Sales receipt((當天)'!A8,'Sales receipt((當天)'!B:B,'Sales receipt((當天)'!B4,'Sales receipt((當天)'!G:G,'Sales receipt((當天)'!G8)","v":1920},{"$f":"SUMIFS('Sales receipt((當天)'!J:J,'Sales receipt((當天)'!A:A,'Sales receipt((當天)'!A8,'Sales receipt((當天)'!B:B,'Sales receipt((當天)'!B4,'Sales receipt((當天)'!G:G,'Sales receipt((當天)'!G8)","v":1},{"$f":"SUMIFS('Sales receipt((當天)'!K:K,'Sales receipt((當天)'!A:A,'Sales receipt((當天)'!A4,'Sales receipt((當天)'!B:B,'Sales receipt((當天)'!B4,'Sales receipt((當天)'!G:G,'Sales receipt((當天)'!G8)","v":0},{"$f":"SUMIFS('Sales receipt((當天)'!J:J,'Sales receipt((當天)'!A:A,'Sales receipt((當天)'!A4,'Sales receipt((當天)'!B:B,'Sales receipt((當天)'!B4,'Sales receipt((當天)'!G:G,'Sales receipt((當天)'!G8)","v":0},{"$f":"SUMIFS('Sales receipt((當天)'!K:K,'Sales receipt((當天)'!A:A,'Sales receipt((當天)'!A5,'Sales receipt((當天)'!B:B,'Sales receipt((當天)'!B4,'Sales receipt((當天)'!G:G,'Sales receipt((當天)'!G8)","v":0},{"$f":"SUMIFS('Sales receipt((當天)'!J:J,'Sales receipt((當天)'!A:A,'Sales receipt((當天)'!A5,'Sales receipt((當天)'!B:B,'Sales receipt((當天)'!B4,'Sales receipt((當天)'!G:G,'Sales receipt((當天)'!G8)","v":0}]
["EXPLORE",{"$f":"SUMIFS('Sales receipt((當天)'!K:K,'Sales receipt((當天)'!A:A,'Sales receipt((當天)'!A2,'Sales receipt((當天)'!B:B,'Sales receipt((當天)'!B4,'Sales receipt((當天)'!G:G,'Sales receipt((當天)'!G4)","v":3790},{"$f":"SUMIFS('Sales receipt((當天)'!J:J,'Sales receipt((當天)'!A:A,'Sales receipt((當天)'!A2,'Sales receipt((當天)'!B:B,'Sales receipt((當天)'!B4,'Sales receipt((當天)'!G:G,'Sales receipt((當天)'!G4)","v":2},{"$f":"SUMIFS('Sales receipt((當天)'!K:K,'Sales receipt((當天)'!A:A,'Sales receipt((當天)'!A3,'Sales receipt((當天)'!B:B,'Sales receipt((當天)'!B4,'Sales receipt((當天)'!G:G,'Sales receipt((當天)'!G4)","v":0},{"$f":"SUMIFS('Sales receipt((當天)'!J:J,'Sales receipt((當天)'!A:A,'Sales receipt((當天)'!A3,'Sales receipt((當天)'!B:B,'Sales receipt((當天)'!B4,'Sales receipt((當天)'!G:G,'Sales receipt((當天)'!G4)","v":0},{"$f":"SUMIFS('Sales receipt((當天)'!K:K,'Sales receipt((當天)'!A:A,'Sales receipt((當天)'!A7,'Sales receipt((當天)'!B:B,'Sales receipt((當天)'!B4,'Sales receipt((當天)'!G:G,'Sales receipt((當天)'!G4)","v":0},{"$f":"SUMIFS('Sales receipt((當天)'!J:J,'Sales receipt((當天)'!A:A,'Sales receipt((當天)'!A7,'Sales receipt((當天)'!B:B,'Sales receipt((當天)'!B4,'Sales receipt((當天)'!G:G,'Sales receipt((當天)'!G4)","v":0},{"$f":"SUMIFS('Sales receipt((當天)'!K:K,'Sales receipt((當天)'!A:A,'Sales receipt((當天)'!A6,'Sales receipt((當天)'!B:B,'Sales receipt((當天)'!B4,'Sales receipt((當天)'!G:G,'Sales receipt((當天)'!G4)","v":0},{"$f":"SUMIFS('Sales receipt((當天)'!J:J,'Sales receipt((當天)'!A:A,'Sales receipt((當天)'!A6,'Sales receipt((當天)'!B:B,'Sales receipt((當天)'!B4,'Sales receipt((當天)'!G:G,'Sales receipt((當天)'!G4)","v":0},{"$f":"SUMIFS('Sales receipt((當天)'!K:K,'Sales receipt((當天)'!A:A,'Sales receipt((當天)'!A8,'Sales receipt((當天)'!B:B,'Sales receipt((當天)'!B4,'Sales receipt((當天)'!G:G,'Sales receipt((當天)'!G4)","v":0},{"$f":"SUMIFS('Sales receipt((當天)'!J:J,'Sales receipt((當天)'!A:A,'Sales receipt((當天)'!A8,'Sales receipt((當天)'!B:B,'Sales receipt((當天)'!B4,'Sales receipt((當天)'!G:G,'Sales receipt((當天)'!G4)","v":0},{"$f":"SUMIFS('Sales receipt((當天)'!K:K,'Sales receipt((當天)'!A:A,'Sales receipt((當天)'!A4,'Sales receipt((當天)'!B:B,'Sales receipt((當天)'!B4,'Sales receipt((當天)'!G:G,'Sales receipt((當天)'!G4)","v":0},{"$f":"SUMIFS('Sales receipt((當天)'!J:J,'Sales receipt((當天)'!A:A,'Sales receipt((當天)'!A4,'Sales receipt((當天)'!B:B,'Sales receipt((當天)'!B4,'Sales receipt((當天)'!G:G,'Sales receipt((當天)'!G4)","v":0},{"$f":"SUMIFS('Sales receipt((當天)'!K:K,'Sales receipt((當天)'!A:A,'Sales receipt((當天)'!A5,'Sales receipt((當天)'!B:B,'Sales receipt((當天)'!B4,'Sales receipt((當天)'!G:G,'Sales receipt((當天)'!G4)","v":0},{"$f":"SUMIFS('Sales receipt((當天)'!J:J,'Sales receipt((當天)'!A:A,'Sales receipt((當天)'!A5,'Sales receipt((當天)'!B:B,'Sales receipt((當天)'!B4,'Sales receipt((當天)'!G:G,'Sales receipt((當天)'!G4)","v":0}]
["TENNIS",{"$f":"SUMIFS('Sales receipt((當天)'!K:K,'Sales receipt((當天)'!A:A,'Sales receipt((當天)'!A2,'Sales receipt((當天)'!B:B,'Sales receipt((當天)'!B4,'Sales receipt((當天)'!G:G,'Sales receipt((當天)'!G16)","v":0},{"$f":"SUMIFS('Sales receipt((當天)'!J:J,'Sales receipt((當天)'!A:A,'Sales receipt((當天)'!A2,'Sales receipt((當天)'!B:B,'Sales receipt((當天)'!B4,'Sales receipt((當天)'!G:G,'Sales receipt((當天)'!G16)","v":0},{"$f":"SUMIFS('Sales receipt((當天)'!K:K,'Sales receipt((當天)'!A:A,'Sales receipt((當天)'!A3,'Sales receipt((當天)'!B:B,'Sales receipt((當天)'!B4,'Sales receipt((當天)'!G:G,'Sales receipt((當天)'!G16)","v":0},{"$f":"SUMIFS('Sales receipt((當天)'!J:J,'Sales receipt((當天)'!A:A,'Sales receipt((當天)'!A3,'Sales receipt((當天)'!B:B,'Sales receipt((當天)'!B4,'Sales receipt((當天)'!G:G,'Sales receipt((當天)'!G16)","v":0},{"$f":"SUMIFS('Sales receipt((當天)'!K:K,'Sales receipt((當天)'!A:A,'Sales receipt((當天)'!A7,'Sales receipt((當天)'!B:B,'Sales receipt((當天)'!B4,'Sales receipt((當天)'!G:G,'Sales receipt((當天)'!G16)","v":0},{"$f":"SUMIFS('Sales receipt((當天)'!J:J,'Sales receipt((當天)'!A:A,'Sales receipt((當天)'!A7,'Sales receipt((當天)'!B:B,'Sales receipt((當天)'!B4,'Sales receipt((當天)'!G:G,'Sales receipt((當天)'!G16)","v":0},{"$f":"SUMIFS('Sales receipt((當天)'!K:K,'Sales receipt((當天)'!A:A,'Sales receipt((當天)'!A6,'Sales receipt((當天)'!B:B,'Sales receipt((當天)'!B4,'Sales receipt((當天)'!G:G,'Sales receipt((當天)'!G16)","v":1480},{"$f":"SUMIFS('Sales receipt((當天)'!J:J,'Sales receipt((當天)'!A:A,'Sales receipt((當天)'!A6,'Sales receipt((當天)'!B:B,'Sales receipt((當天)'!B4,'Sales receipt((當天)'!G:G,'Sales receipt((當天)'!G16)","v":1},{"$f":"SUMIFS('Sales receipt((當天)'!K:K,'Sales receipt((當天)'!A:A,'Sales receipt((當天)'!A8,'Sales receipt((當天)'!B:B,'Sales receipt((當天)'!B4,'Sales receipt((當天)'!G:G,'Sales receipt((當天)'!G16)","v":0},{"$f":"SUMIFS('Sales receipt((當天)'!J:J,'Sales receipt((當天)'!A:A,'Sales receipt((當天)'!A8,'Sales receipt((當天)'!B:B,'Sales receipt((當天)'!B4,'Sales receipt((當天)'!G:G,'Sales receipt((當天)'!G16)","v":0},{"$f":"SUMIFS('Sales receipt((當天)'!K:K,'Sales receipt((當天)'!A:A,'Sales receipt((當天)'!A4,'Sales receipt((當天)'!B:B,'Sales receipt((當天)'!B4,'Sales receipt((當天)'!G:G,'Sales receipt((當天)'!G16)","v":0},{"$f":"SUMIFS('Sales receipt((當天)'!J:J,'Sales receipt((當天)'!A:A,'Sales receipt((當天)'!A4,'Sales receipt((當天)'!B:B,'Sales receipt((當天)'!B4,'Sales receipt((當天)'!G:G,'Sales receipt((當天)'!G16)","v":0},{"$f":"SUMIFS('Sales receipt((當天)'!K:K,'Sales receipt((當天)'!A:A,'Sales receipt((當天)'!A5,'Sales receipt((當天)'!B:B,'Sales receipt((當天)'!B4,'Sales receipt((當天)'!G:G,'Sales receipt((當天)'!G16)","v":563},{"$f":"SUMIFS('Sales receipt((當天)'!J:J,'Sales receipt((當天)'!A:A,'Sales receipt((當天)'!A5,'Sales receipt((當天)'!B:B,'Sales receipt((當天)'!B4,'Sales receipt((當天)'!G:G,'Sales receipt((當天)'!G16)","v":1}]
["FILA CNY"]
["FILA MILANO"]
[]
["FOT",{"$f":"SUMIFS('Sales receipt((當天)'!K:K,'Sales receipt((當天)'!A:A,'Sales receipt((當天)'!A2,'Sales receipt((當天)'!B:B,'Sales receipt((當天)'!B6)","v":4815},{"$f":"SUMIFS('Sales receipt((當天)'!J:J,'Sales receipt((當天)'!A:A,'Sales receipt((當天)'!A2,'Sales receipt((當天)'!B:B,'Sales receipt((當天)'!B6)","v":5},{"$f":"SUMIFS('Sales receipt((當天)'!K:K,'Sales receipt((當天)'!A:A,'Sales receipt((當天)'!A3,'Sales receipt((當天)'!B:B,'Sales receipt((當天)'!B6)","v":0},{"$f":"SUMIFS('Sales receipt((當天)'!J:J,'Sales receipt((當天)'!A:A,'Sales receipt((當天)'!A3,'Sales receipt((當天)'!B:B,'Sales receipt((當天)'!B6)","v":0},{"$f":"SUMIFS('Sales receipt((當天)'!K:K,'Sales receipt((當天)'!A:A,'Sales receipt((當天)'!A7,'Sales receipt((當天)'!B:B,'Sales receipt((當天)'!B6)","v":0},{"$f":"SUMIFS('Sales receipt((當天)'!J:J,'Sales receipt((當天)'!A:A,'Sales receipt((當天)'!A7,'Sales receipt((當天)'!B:B,'Sales receipt((當天)'!B6)","v":0},{"$f":"SUMIFS('Sales receipt((當天)'!K:K,'Sales receipt((當天)'!A:A,'Sales receipt((當天)'!A6,'Sales receipt((當天)'!B:B,'Sales receipt((當天)'!B6)","v":890},{"$f":"SUMIFS('Sales receipt((當天)'!J:J,'Sales receipt((當天)'!A:A,'Sales receipt((當天)'!A6,'Sales receipt((當天)'!B:B,'Sales receipt((當天)'!B6)","v":1},{"$f":"SUMIFS('Sales receipt((當天)'!K:K,'Sales receipt((當天)'!A:A,'Sales receipt((當天)'!A8,'Sales receipt((當天)'!B:B,'Sales receipt((當天)'!B6)","v":1664},{"$f":"SUMIFS('Sales receipt((當天)'!J:J,'Sales receipt((當天)'!A:A,'Sales receipt((當天)'!A8,'Sales receipt((當天)'!B:B,'Sales receipt((當天)'!B6)","v":2},{"$f":"SUMIFS('Sales receipt((當天)'!K:K,'Sales receipt((當天)'!A:A,'Sales receipt((當天)'!A4,'Sales receipt((當天)'!B:B,'Sales receipt((當天)'!B6)","v":0},{"$f":"SUMIFS('Sales receipt((當天)'!J:J,'Sales receipt((當天)'!A:A,'Sales receipt((當天)'!A4,'Sales receipt((當天)'!B:B,'Sales receipt((當天)'!B6)","v":0},{"$f":"SUMIFS('Sales receipt((當天)'!K:K,'Sales receipt((當天)'!A:A,'Sales receipt((當天)'!A5,'Sales receipt((當天)'!B:B,'Sales receipt((當天)'!B6)","v":1048},{"$f":"SUMIFS('Sales receipt((當天)'!J:J,'Sales receipt((當天)'!A:A,'Sales receipt((當天)'!A5,'Sales receipt((當天)'!B:B,'Sales receipt((當天)'!B6)","v":1}]
["M",{"$f":"SUM(SUMIFS('Sales receipt((當天)'!K:K,'Sales receipt((當天)'!A:A,'Sales receipt((當天)'!A2,'Sales receipt((當天)'!B:B,'Sales receipt((當天)'!B6,'Sales receipt((當天)'!H:H,{\"MALE\",\"男\"}))","v":1971},{"$f":"SUM(SUMIFS('Sales receipt((當天)'!J:J,'Sales receipt((當天)'!A:A,'Sales receipt((當天)'!A2,'Sales receipt((當天)'!B:B,'Sales receipt((當天)'!B6,'Sales receipt((當天)'!H:H,{\"MALE\",\"男\"}))","v":2},{"$f":"SUM(SUMIFS('Sales receipt((當天)'!K:K,'Sales receipt((當天)'!A:A,'Sales receipt((當天)'!A3,'Sales receipt((當天)'!B:B,'Sales receipt((當天)'!B6,'Sales receipt((當天)'!H:H,{\"MALE\",\"男\"}))","v":0},{"$f":"SUM(SUMIFS('Sales receipt((當天)'!J:J,'Sales receipt((當天)'!A:A,'Sales receipt((當天)'!A3,'Sales receipt((當天)'!B:B,'Sales receipt((當天)'!B6,'Sales receipt((當天)'!H:H,{\"MALE\",\"男\"}))","v":0},{"$f":"SUM(SUMIFS('Sales receipt((當天)'!K:K,'Sales receipt((當天)'!A:A,'Sales receipt((當天)'!A7,'Sales receipt((當天)'!B:B,'Sales receipt((當天)'!B6,'Sales receipt((當天)'!H:H,{\"MALE\",\"男\"}))","v":0},{"$f":"SUM(SUMIFS('Sales receipt((當天)'!J:J,'Sales receipt((當天)'!A:A,'Sales receipt((當天)'!A7,'Sales receipt((當天)'!B:B,'Sales receipt((當天)'!B6,'Sales receipt((當天)'!H:H,{\"MALE\",\"男\"}))","v":0},{"$f":"SUM(SUMIFS('Sales receipt((當天)'!K:K,'Sales receipt((當天)'!A:A,'Sales receipt((當天)'!A6,'Sales receipt((當天)'!B:B,'Sales receipt((當天)'!B6,'Sales receipt((當天)'!H:H,{\"MALE\",\"男\"}))","v":890},{"$f":"SUM(SUMIFS('Sales receipt((當天)'!J:J,'Sales receipt((當天)'!A:A,'Sales receipt((當天)'!A6,'Sales receipt((當天)'!B:B,'Sales receipt((當天)'!B6,'Sales receipt((當天)'!H:H,{\"MALE\",\"男\"}))","v":1},{"$f":"SUM(SUMIFS('Sales receipt((當天)'!K:K,'Sales receipt((當天)'!A:A,'Sales receipt((當天)'!A8,'Sales receipt((當天)'!B:B,'Sales receipt((當天)'!B6,'Sales receipt((當天)'!H:H,{\"MALE\",\"男\"}))","v":0},{"$f":"SUM(SUMIFS('Sales receipt((當天)'!J:J,'Sales receipt((當天)'!A:A,'Sales receipt((當天)'!A8,'Sales receipt((當天)'!B:B,'Sales receipt((當天)'!B6,'Sales receipt((當天)'!H:H,{\"MALE\",\"男\"}))","v":0},{"$f":"SUM(SUMIFS('Sales receipt((當天)'!K:K,'Sales receipt((當天)'!A:A,'Sales receipt((當天)'!A4,'Sales receipt((當天)'!B:B,'Sales receipt((當天)'!B6,'Sales receipt((當天)'!H:H,{\"MALE\",\"男\"}))","v":0},{"$f":"SUM(SUMIFS('Sales receipt((當天)'!J:J,'Sales receipt((當天)'!A:A,'Sales receipt((當天)'!A4,'Sales receipt((當天)'!B:B,'Sales receipt((當天)'!B6,'Sales receipt((當天)'!H:H,{\"MALE\",\"男\"}))","v":0},{"$f":"SUM(SUMIFS('Sales receipt((當天)'!K:K,'Sales receipt((當天)'!A:A,'Sales receipt((當天)'!A5,'Sales receipt((當天)'!B:B,'Sales receipt((當天)'!B6,'Sales receipt((當天)'!H:H,{\"MALE\",\"男\"}))","v":1048},{"$f":"SUM(SUMIFS('Sales receipt((當天)'!J:J,'Sales receipt((當天)'!A:A,'Sales receipt((當天)'!A5,'Sales receipt((當天)'!B:B,'Sales receipt((當天)'!B6,'Sales receipt((當天)'!H:H,{\"MALE\",\"男\"}))","v":1}]
["F",{"$f":"SUM(SUMIFS('Sales receipt((當天)'!K:K,'Sales receipt((當天)'!A:A,'Sales receipt((當天)'!A2,'Sales receipt((當天)'!B:B,'Sales receipt((當天)'!B6,'Sales receipt((當天)'!H:H,{\"FEMALE\",\"女\"}))","v":2844},{"$f":"SUM(SUMIFS('Sales receipt((當天)'!J:J,'Sales receipt((當天)'!A:A,'Sales receipt((當天)'!A2,'Sales receipt((當天)'!B:B,'Sales receipt((當天)'!B6,'Sales receipt((當天)'!H:H,{\"FEMALE\",\"女\"}))","v":3},{"$f":"SUM(SUMIFS('Sales receipt((當天)'!K:K,'Sales receipt((當天)'!A:A,'Sales receipt((當天)'!A3,'Sales receipt((當天)'!B:B,'Sales receipt((當天)'!B6,'Sales receipt((當天)'!H:H,{\"FEMALE\",\"女\"}))","v":0},{"$f":"SUM(SUMIFS('Sales receipt((當天)'!J:J,'Sales receipt((當天)'!A:A,'Sales receipt((當天)'!A3,'Sales receipt((當天)'!B:B,'Sales receipt((當天)'!B6,'Sales receipt((當天)'!H:H,{\"FEMALE\",\"女\"}))","v":0},{"$f":"SUM(SUMIFS('Sales receipt((當天)'!K:K,'Sales receipt((當天)'!A:A,'Sales receipt((當天)'!A7,'Sales receipt((當天)'!B:B,'Sales receipt((當天)'!B6,'Sales receipt((當天)'!H:H,{\"FEMALE\",\"女\"}))","v":0},{"$f":"SUM(SUMIFS('Sales receipt((當天)'!J:J,'Sales receipt((當天)'!A:A,'Sales receipt((當天)'!A7,'Sales receipt((當天)'!B:B,'Sales receipt((當天)'!B6,'Sales receipt((當天)'!H:H,{\"FEMALE\",\"女\"}))","v":0},{"$f":"SUM(SUMIFS('Sales receipt((當天)'!K:K,'Sales receipt((當天)'!A:A,'Sales receipt((當天)'!A6,'Sales receipt((當天)'!B:B,'Sales receipt((當天)'!B6,'Sales receipt((當天)'!H:H,{\"FEMALE\",\"女\"}))","v":0},{"$f":"SUM(SUMIFS('Sales receipt((當天)'!J:J,'Sales receipt((當天)'!A:A,'Sales receipt((當天)'!A6,'Sales receipt((當天)'!B:B,'Sales receipt((當天)'!B6,'Sales receipt((當天)'!H:H,{\"FEMALE\",\"女\"}))","v":0},{"$f":"SUM(SUMIFS('Sales receipt((當天)'!K:K,'Sales receipt((當天)'!A:A,'Sales receipt((當天)'!A8,'Sales receipt((當天)'!B:B,'Sales receipt((當天)'!B6,'Sales receipt((當天)'!H:H,{\"FEMALE\",\"女\"}))","v":1664},{"$f":"SUM(SUMIFS('Sales receipt((當天)'!J:J,'Sales receipt((當天)'!A:A,'Sales receipt((當天)'!A8,'Sales receipt((當天)'!B:B,'Sales receipt((當天)'!B6,'Sales receipt((當天)'!H:H,{\"FEMALE\",\"女\"}))","v":2},{"$f":"SUM(SUMIFS('Sales receipt((當天)'!K:K,'Sales receipt((當天)'!A:A,'Sales receipt((當天)'!A4,'Sales receipt((當天)'!B:B,'Sales receipt((當天)'!B6,'Sales receipt((當天)'!H:H,{\"FEMALE\",\"女\"}))","v":0},{"$f":"SUM(SUMIFS('Sales receipt((當天)'!J:J,'Sales receipt((當天)'!A:A,'Sales receipt((當天)'!A4,'Sales receipt((當天)'!B:B,'Sales receipt((當天)'!B6,'Sales receipt((當天)'!H:H,{\"FEMALE\",\"女\"}))","v":0},{"$f":"SUM(SUMIFS('Sales receipt((當天)'!K:K,'Sales receipt((當天)'!A:A,'Sales receipt((當天)'!A5,'Sales receipt((當天)'!B:B,'Sales receipt((當天)'!B6,'Sales receipt((當天)'!H:H,{\"FEMALE\",\"女\"}))","v":0},{"$f":"SUM(SUMIFS('Sales receipt((當天)'!J:J,'Sales receipt((當天)'!A:A,'Sales receipt((當天)'!A5,'Sales receipt((當天)'!B:B,'Sales receipt((當天)'!B6,'Sales receipt((當天)'!H:H,{\"FEMALE\",\"女\"}))","v":0},null,null," "]
["ACC",{"$f":"SUMIFS('Sales receipt((當天)'!K:K,'Sales receipt((當天)'!A:A,'Sales receipt((當天)'!A2,'Sales receipt((當天)'!B:B,'Sales receipt((當天)'!B5)","v":3114},{"$f":"SUMIFS('Sales receipt((當天)'!J:J,'Sales receipt((當天)'!A:A,'Sales receipt((當天)'!A2,'Sales receipt((當天)'!B:B,'Sales receipt((當天)'!B5)","v":4},{"$f":"SUMIFS('Sales receipt((當天)'!K:K,'Sales receipt((當天)'!A:A,'Sales receipt((當天)'!A3,'Sales receipt((當天)'!B:B,'Sales receipt((當天)'!B5)","v":0},{"$f":"SUMIFS('Sales receipt((當天)'!J:J,'Sales receipt((當天)'!A:A,'Sales receipt((當天)'!A3,'Sales receipt((當天)'!B:B,'Sales receipt((當天)'!B5)","v":0},{"$f":"SUMIFS('Sales receipt((當天)'!K:K,'Sales receipt((當天)'!A:A,'Sales receipt((當天)'!A7,'Sales receipt((當天)'!B:B,'Sales receipt((當天)'!B5)","v":0},{"$f":"SUMIFS('Sales receipt((當天)'!J:J,'Sales receipt((當天)'!A:A,'Sales receipt((當天)'!A7,'Sales receipt((當天)'!B:B,'Sales receipt((當天)'!B5)","v":0},{"$f":"SUMIFS('Sales receipt((當天)'!K:K,'Sales receipt((當天)'!A:A,'Sales receipt((當天)'!A6,'Sales receipt((當天)'!B:B,'Sales receipt((當天)'!B5)","v":0},{"$f":"SUMIFS('Sales receipt((當天)'!J:J,'Sales receipt((當天)'!A:A,'Sales receipt((當天)'!A6,'Sales receipt((當天)'!B:B,'Sales receipt((當天)'!B5)","v":0},{"$f":"SUMIFS('Sales receipt((當天)'!K:K,'Sales receipt((當天)'!A:A,'Sales receipt((當天)'!A8,'Sales receipt((當天)'!B:B,'Sales receipt((當天)'!B5)","v":723},{"$f":"SUMIFS('Sales receipt((當天)'!J:J,'Sales receipt((當天)'!A:A,'Sales receipt((當天)'!A8,'Sales receipt((當天)'!B:B,'Sales receipt((當天)'!B5)","v":3},{"$f":"SUMIFS('Sales receipt((當天)'!K:K,'Sales receipt((當天)'!A:A,'Sales receipt((當天)'!A4,'Sales receipt((當天)'!B:B,'Sales receipt((當天)'!B5)","v":0},{"$f":"SUMIFS('Sales receipt((當天)'!J:J,'Sales receipt((當天)'!A:A,'Sales receipt((當天)'!A4,'Sales receipt((當天)'!B:B,'Sales receipt((當天)'!B5)","v":0},{"$f":"SUMIFS('Sales receipt((當天)'!K:K,'Sales receipt((當天)'!A:A,'Sales receipt((當天)'!A5,'Sales receipt((當天)'!B:B,'Sales receipt((當天)'!B5)","v":1549},{"$f":"SUMIFS('Sales receipt((當天)'!J:J,'Sales receipt((當天)'!A:A,'Sales receipt((當天)'!A5,'Sales receipt((當天)'!B:B,'Sales receipt((當天)'!B5)","v":4}]
[]
[null,"M0989 Susanna",null,"M2172 Janet",null,"M2801 Fanny",null,"M2798 Ryan",null,"M2902 Carmen",null,"M3060 Anson",null,"\tM1436 Khaki"]
[null,"Sales","Qty","Sales","Qty","Sales","Qty","Sales","Qty","Sales","Qty","Sales","Qty","Sales","Qty"]
["內衣類",{"$f":"SUMIFS('Sales receipt((當天)'!K:K,'Sales receipt((當天)'!A:A,'Sales receipt((當天)'!A2,'Sales receipt((當天)'!B:B,'Sales receipt((當天)'!B4,'Sales receipt((當天)'!C:C,'Sales receipt((當天)'!C2)","v":0},{"$f":"SUMIFS('Sales receipt((當天)'!J:J,'Sales receipt((當天)'!A:A,'Sales receipt((當天)'!A2,'Sales receipt((當天)'!B:B,'Sales receipt((當天)'!B4,'Sales receipt((當天)'!C:C,'Sales receipt((當天)'!C2)","v":0},{"$f":"SUMIFS('Sales receipt((當天)'!K:K,'Sales receipt((當天)'!A:A,'Sales receipt((當天)'!A3,'Sales receipt((當天)'!B:B,'Sales receipt((當天)'!B4,'Sales receipt((當天)'!C:C,'Sales receipt((當天)'!C2)","v":0},{"$f":"SUMIFS('Sales receipt((當天)'!J:J,'Sales receipt((當天)'!A:A,'Sales receipt((當天)'!A3,'Sales receipt((當天)'!B:B,'Sales receipt((當天)'!B4,'Sales receipt((當天)'!C:C,'Sales receipt((當天)'!C2)","v":0},{"$f":"SUMIFS('Sales receipt((當天)'!K:K,'Sales receipt((當天)'!A:A,'Sales receipt((當天)'!A7,'Sales receipt((當天)'!B:B,'Sales receipt((當天)'!B4,'Sales receipt((當天)'!C:C,'Sales receipt((當天)'!C2)","v":0},{"$f":"SUMIFS('Sales receipt((當天)'!J:J,'Sales receipt((當天)'!A:A,'Sales receipt((當天)'!A7,'Sales receipt((當天)'!B:B,'Sales receipt((當天)'!B4,'Sales receipt((當天)'!C:C,'Sales receipt((當天)'!C2)","v":0},{"$f":"SUMIFS('Sales receipt((當天)'!K:K,'Sales receipt((當天)'!A:A,'Sales receipt((當天)'!A6,'Sales receipt((當天)'!B:B,'Sales receipt((當天)'!B4,'Sales receipt((當天)'!C:C,'Sales receipt((當天)'!C2)","v":0},{"$f":"SUMIFS('Sales receipt((當天)'!J:J,'Sales receipt((當天)'!A:A,'Sales receipt((當天)'!A6,'Sales receipt((當天)'!B:B,'Sales receipt((當天)'!B4,'Sales receipt((當天)'!C:C,'Sales receipt((當天)'!C2)","v":0},{"$f":"SUMIFS('Sales receipt((當天)'!K:K,'Sales receipt((當天)'!A:A,'Sales receipt((當天)'!A8,'Sales receipt((當天)'!B:B,'Sales receipt((當天)'!B4,'Sales receipt((當天)'!C:C,'Sales receipt((當天)'!C2)","v":0},{"$f":"SUMIFS('Sales receipt((當天)'!J:J,'Sales receipt((當天)'!A:A,'Sales receipt((當天)'!A8,'Sales receipt((當天)'!B:B,'Sales receipt((當天)'!B4,'Sales receipt((當天)'!C:C,'Sales receipt((當天)'!C2)","v":0},{"$f":"SUMIFS('Sales receipt((當天)'!K:K,'Sales receipt((當天)'!A:A,'Sales receipt((當天)'!A4,'Sales receipt((當天)'!B:B,'Sales receipt((當天)'!B4,'Sales receipt((當天)'!C:C,'Sales receipt((當天)'!C2)","v":0},{"$f":"SUMIFS('Sales receipt((當天)'!J:J,'Sales receipt((當天)'!A:A,'Sales receipt((當天)'!A4,'Sales receipt((當天)'!B:B,'Sales receipt((當天)'!B4,'Sales receipt((當天)'!C:C,'Sales receipt((當天)'!C2)","v":0},{"$f":"SUMIFS('Sales receipt((當天)'!K:K,'Sales receipt((當天)'!A:A,'Sales receipt((當天)'!A5,'Sales receipt((當天)'!B:B,'Sales receipt((當天)'!B4,'Sales receipt((當天)'!C:C,'Sales receipt((當天)'!C2)","v":0},{"$f":"SUMIFS('Sales receipt((當天)'!J:J,'Sales receipt((當天)'!A:A,'Sales receipt((當天)'!A5,'Sales receipt((當天)'!B:B,'Sales receipt((當天)'!B4,'Sales receipt((當天)'!C:C,'Sales receipt((當天)'!C2)","v":0}]
["內搭",{"$f":"SUMIFS('Sales receipt((當天)'!K:K,'Sales receipt((當天)'!A:A,'Sales receipt((當天)'!A2,'Sales receipt((當天)'!B:B,'Sales receipt((當天)'!B4,'Sales receipt((當天)'!C:C,'Sales receipt((當天)'!C3)","v":0},{"$f":"SUMIFS('Sales receipt((當天)'!J:J,'Sales receipt((當天)'!A:A,'Sales receipt((當天)'!A2,'Sales receipt((當天)'!B:B,'Sales receipt((當天)'!B4,'Sales receipt((當天)'!C:C,'Sales receipt((當天)'!C3)","v":0},{"$f":"SUMIFS('Sales receipt((當天)'!K:K,'Sales receipt((當天)'!A:A,'Sales receipt((當天)'!A3,'Sales receipt((當天)'!B:B,'Sales receipt((當天)'!B4,'Sales receipt((當天)'!C:C,'Sales receipt((當天)'!C3)","v":0},{"$f":"SUMIFS('Sales receipt((當天)'!J:J,'Sales receipt((當天)'!A:A,'Sales receipt((當天)'!A3,'Sales receipt((當天)'!B:B,'Sales receipt((當天)'!B4,'Sales receipt((當天)'!C:C,'Sales receipt((當天)'!C3)","v":0},{"$f":"SUMIFS('Sales receipt((當天)'!K:K,'Sales receipt((當天)'!A:A,'Sales receipt((當天)'!A7,'Sales receipt((當天)'!B:B,'Sales receipt((當天)'!B4,'Sales receipt((當天)'!C:C,'Sales receipt((當天)'!C3)","v":0},{"$f":"SUMIFS('Sales receipt((當天)'!J:J,'Sales receipt((當天)'!A:A,'Sales receipt((當天)'!A7,'Sales receipt((當天)'!B:B,'Sales receipt((當天)'!B4,'Sales receipt((當天)'!C:C,'Sales receipt((當天)'!C3)","v":0},{"$f":"SUMIFS('Sales receipt((當天)'!K:K,'Sales receipt((當天)'!A:A,'Sales receipt((當天)'!A6,'Sales receipt((當天)'!B:B,'Sales receipt((當天)'!B4,'Sales receipt((當天)'!C:C,'Sales receipt((當天)'!C3)","v":774},{"$f":"SUMIFS('Sales receipt((當天)'!J:J,'Sales receipt((當天)'!A:A,'Sales receipt((當天)'!A6,'Sales receipt((當天)'!B:B,'Sales receipt((當天)'!B4,'Sales receipt((當天)'!C:C,'Sales receipt((當天)'!C3)","v":1},{"$f":"SUMIFS('Sales receipt((當天)'!K:K,'Sales receipt((當天)'!A:A,'Sales receipt((當天)'!A8,'Sales receipt((當天)'!B:B,'Sales receipt((當天)'!B4,'Sales receipt((當天)'!C:C,'Sales receipt((當天)'!C3)","v":0},{"$f":"SUMIFS('Sales receipt((當天)'!J:J,'Sales receipt((當天)'!A:A,'Sales receipt((當天)'!A8,'Sales receipt((當天)'!B:B,'Sales receipt((當天)'!B4,'Sales receipt((當天)'!C:C,'Sales receipt((當天)'!C3)","v":0},{"$f":"SUMIFS('Sales receipt((當天)'!K:K,'Sales receipt((當天)'!A:A,'Sales receipt((當天)'!A4,'Sales receipt((當天)'!B:B,'Sales receipt((當天)'!B4,'Sales receipt((當天)'!C:C,'Sales receipt((當天)'!C3)","v":0},{"$f":"SUMIFS('Sales receipt((當天)'!J:J,'Sales receipt((當天)'!A:A,'Sales receipt((當天)'!A4,'Sales receipt((當天)'!B:B,'Sales receipt((當天)'!B4,'Sales receipt((當天)'!C:C,'Sales receipt((當天)'!C3)","v":0},{"$f":"SUMIFS('Sales receipt((當天)'!K:K,'Sales receipt((當天)'!A:A,'Sales receipt((當天)'!A5,'Sales receipt((當天)'!B:B,'Sales receipt((當天)'!B4,'Sales receipt((當天)'!C:C,'Sales receipt((當天)'!C3)","v":0},{"$f":"SUMIFS('Sales receipt((當天)'!J:J,'Sales receipt((當天)'!A:A,'Sales receipt((當天)'!A5,'Sales receipt((當天)'!B:B,'Sales receipt((當天)'!B4,'Sales receipt((當天)'!C:C,'Sales receipt((當天)'!C3)","v":0}]
["編織衫",{"$f":"SUMIFS('Sales receipt((當天)'!K:K,'Sales receipt((當天)'!A:A,'Sales receipt((當天)'!A2,'Sales receipt((當天)'!B:B,'Sales receipt((當天)'!B4,'Sales receipt((當天)'!C:C,'Sales receipt((當天)'!C13)","v":2006},{"$f":"SUMIFS('Sales receipt((當天)'!J:J,'Sales receipt((當天)'!A:A,'Sales receipt((當天)'!A2,'Sales receipt((當天)'!B:B,'Sales receipt((當天)'!B4,'Sales receipt((當天)'!C:C,'Sales receipt((當天)'!C13)","v":2},{"$f":"SUMIFS('Sales receipt((當天)'!K:K,'Sales receipt((當天)'!A:A,'Sales receipt((當天)'!A3,'Sales receipt((當天)'!B:B,'Sales receipt((當天)'!B4,'Sales receipt((當天)'!C:C,'Sales receipt((當天)'!C13)","v":0},{"$f":"SUMIFS('Sales receipt((當天)'!J:J,'Sales receipt((當天)'!A:A,'Sales receipt((當天)'!A3,'Sales receipt((當天)'!B:B,'Sales receipt((當天)'!B4,'Sales receipt((當天)'!C:C,'Sales receipt((當天)'!C13)","v":0},{"$f":"SUMIFS('Sales receipt((當天)'!K:K,'Sales receipt((當天)'!A:A,'Sales receipt((當天)'!A7,'Sales receipt((當天)'!B:B,'Sales receipt((當天)'!B4,'Sales receipt((當天)'!C:C,'Sales receipt((當天)'!C13)","v":0},{"$f":"SUMIFS('Sales receipt((當天)'!J:J,'Sales receipt((當天)'!A:A,'Sales receipt((當天)'!A7,'Sales receipt((當天)'!B:B,'Sales receipt((當天)'!B4,'Sales receipt((當天)'!C:C,'Sales receipt((當天)'!C13)","v":0},{"$f":"SUMIFS('Sales receipt((當天)'!K:K,'Sales receipt((當天)'!A:A,'Sales receipt((當天)'!A6,'Sales receipt((當天)'!B:B,'Sales receipt((當天)'!B4,'Sales receipt((當天)'!C:C,'Sales receipt((當天)'!C13)","v":0},{"$f":"SUMIFS('Sales receipt((當天)'!J:J,'Sales receipt((當天)'!A:A,'Sales receipt((當天)'!A6,'Sales receipt((當天)'!B:B,'Sales receipt((當天)'!B4,'Sales receipt((當天)'!C:C,'Sales receipt((當天)'!C13)","v":0},{"$f":"SUMIFS('Sales receipt((當天)'!K:K,'Sales receipt((當天)'!A:A,'Sales receipt((當天)'!A8,'Sales receipt((當天)'!B:B,'Sales receipt((當天)'!B4,'Sales receipt((當天)'!C:C,'Sales receipt((當天)'!C13)","v":862},{"$f":"SUMIFS('Sales receipt((當天)'!J:J,'Sales receipt((當天)'!A:A,'Sales receipt((當天)'!A8,'Sales receipt((當天)'!B:B,'Sales receipt((當天)'!B4,'Sales receipt((當天)'!C:C,'Sales receipt((當天)'!C13)","v":1},{"$f":"SUMIFS('Sales receipt((當天)'!K:K,'Sales receipt((當天)'!A:A,'Sales receipt((當天)'!A4,'Sales receipt((當天)'!B:B,'Sales receipt((當天)'!B4,'Sales receipt((當天)'!C:C,'Sales receipt((當天)'!C13)","v":0},{"$f":"SUMIFS('Sales receipt((當天)'!J:J,'Sales receipt((當天)'!A:A,'Sales receipt((當天)'!A4,'Sales receipt((當天)'!B:B,'Sales receipt((當天)'!B4,'Sales receipt((當天)'!C:C,'Sales receipt((當天)'!C13)","v":0},{"$f":"SUMIFS('Sales receipt((當天)'!K:K,'Sales receipt((當天)'!A:A,'Sales receipt((當天)'!A5,'Sales receipt((當天)'!B:B,'Sales receipt((當天)'!B4,'Sales receipt((當天)'!C:C,'Sales receipt((當天)'!C13)","v":0},{"$f":"SUMIFS('Sales receipt((當天)'!J:J,'Sales receipt((當天)'!A:A,'Sales receipt((當天)'!A5,'Sales receipt((當天)'!B:B,'Sales receipt((當天)'!B4,'Sales receipt((當天)'!C:C,'Sales receipt((當天)'!C13)","v":0}]
["襯衫",{"$f":"SUMIFS('Sales receipt((當天)'!K:K,'Sales receipt((當天)'!A:A,'Sales receipt((當天)'!A2,'Sales receipt((當天)'!B:B,'Sales receipt((當天)'!B4,'Sales receipt((當天)'!C:C,'Sales receipt((當天)'!C14)","v":0},{"$f":"SUMIFS('Sales receipt((當天)'!J:J,'Sales receipt((當天)'!A:A,'Sales receipt((當天)'!A2,'Sales receipt((當天)'!B:B,'Sales receipt((當天)'!B4,'Sales receipt((當天)'!C:C,'Sales receipt((當天)'!C14)","v":0},{"$f":"SUMIFS('Sales receipt((當天)'!K:K,'Sales receipt((當天)'!A:A,'Sales receipt((當天)'!A3,'Sales receipt((當天)'!B:B,'Sales receipt((當天)'!B4,'Sales receipt((當天)'!C:C,'Sales receipt((當天)'!C14)","v":0},{"$f":"SUMIFS('Sales receipt((當天)'!J:J,'Sales receipt((當天)'!A:A,'Sales receipt((當天)'!A3,'Sales receipt((當天)'!B:B,'Sales receipt((當天)'!B4,'Sales receipt((當天)'!C:C,'Sales receipt((當天)'!C14)","v":0},{"$f":"SUMIFS('Sales receipt((當天)'!K:K,'Sales receipt((當天)'!A:A,'Sales receipt((當天)'!A7,'Sales receipt((當天)'!B:B,'Sales receipt((當天)'!B4,'Sales receipt((當天)'!C:C,'Sales receipt((當天)'!C14)","v":0},{"$f":"SUMIFS('Sales receipt((當天)'!J:J,'Sales receipt((當天)'!A:A,'Sales receipt((當天)'!A7,'Sales receipt((當天)'!B:B,'Sales receipt((當天)'!B4,'Sales receipt((當天)'!C:C,'Sales receipt((當天)'!C14)","v":0},{"$f":"SUMIFS('Sales receipt((當天)'!K:K,'Sales receipt((當天)'!A:A,'Sales receipt((當天)'!A6,'Sales receipt((當天)'!B:B,'Sales receipt((當天)'!B4,'Sales receipt((當天)'!C:C,'Sales receipt((當天)'!C14)","v":0},{"$f":"SUMIFS('Sales receipt((當天)'!J:J,'Sales receipt((當天)'!A:A,'Sales receipt((當天)'!A6,'Sales receipt((當天)'!B:B,'Sales receipt((當天)'!B4,'Sales receipt((當天)'!C:C,'Sales receipt((當天)'!C14)","v":0},{"$f":"SUMIFS('Sales receipt((當天)'!K:K,'Sales receipt((當天)'!A:A,'Sales receipt((當天)'!A8,'Sales receipt((當天)'!B:B,'Sales receipt((當天)'!B4,'Sales receipt((當天)'!C:C,'Sales receipt((當天)'!C14)","v":0},{"$f":"SUMIFS('Sales receipt((當天)'!J:J,'Sales receipt((當天)'!A:A,'Sales receipt((當天)'!A8,'Sales receipt((當天)'!B:B,'Sales receipt((當天)'!B4,'Sales receipt((當天)'!C:C,'Sales receipt((當天)'!C14)","v":0},{"$f":"SUMIFS('Sales receipt((當天)'!K:K,'Sales receipt((當天)'!A:A,'Sales receipt((當天)'!A4,'Sales receipt((當天)'!B:B,'Sales receipt((當天)'!B4,'Sales receipt((當天)'!C:C,'Sales receipt((當天)'!C14)","v":0},{"$f":"SUMIFS('Sales receipt((當天)'!J:J,'Sales receipt((當天)'!A:A,'Sales receipt((當天)'!A4,'Sales receipt((當天)'!B:B,'Sales receipt((當天)'!B4,'Sales receipt((當天)'!C:C,'Sales receipt((當天)'!C14)","v":0},{"$f":"SUMIFS('Sales receipt((當天)'!K:K,'Sales receipt((當天)'!A:A,'Sales receipt((當天)'!A5,'Sales receipt((當天)'!B:B,'Sales receipt((當天)'!B4,'Sales receipt((當天)'!C:C,'Sales receipt((當天)'!C14)","v":0},{"$f":"SUMIFS('Sales receipt((當天)'!J:J,'Sales receipt((當天)'!A:A,'Sales receipt((當天)'!A5,'Sales receipt((當天)'!B:B,'Sales receipt((當天)'!B4,'Sales receipt((當天)'!C:C,'Sales receipt((當天)'!C14)","v":0}]
["短T類",{"$f":"SUMIFS('Sales receipt((當天)'!K:K,'Sales receipt((當天)'!A:A,'Sales receipt((當天)'!A2,'Sales receipt((當天)'!B:B,'Sales receipt((當天)'!B4,'Sales receipt((當天)'!C:C,'Sales receipt((當天)'!C10)","v":3203},{"$f":"SUMIFS('Sales receipt((當天)'!J:J,'Sales receipt((當天)'!A:A,'Sales receipt((當天)'!A2,'Sales receipt((當天)'!B:B,'Sales receipt((當天)'!B4,'Sales receipt((當天)'!C:C,'Sales receipt((當天)'!C10)","v":4},{"$f":"SUMIFS('Sales receipt((當天)'!K:K,'Sales receipt((當天)'!A:A,'Sales receipt((當天)'!A3,'Sales receipt((當天)'!B:B,'Sales receipt((當天)'!B4,'Sales receipt((當天)'!C:C,'Sales receipt((當天)'!C10)","v":0},{"$f":"SUMIFS('Sales receipt((當天)'!J:J,'Sales receipt((當天)'!A:A,'Sales receipt((當天)'!A3,'Sales receipt((當天)'!B:B,'Sales receipt((當天)'!B4,'Sales receipt((當天)'!C:C,'Sales receipt((當天)'!C10)","v":0},{"$f":"SUMIFS('Sales receipt((當天)'!K:K,'Sales receipt((當天)'!A:A,'Sales receipt((當天)'!A7,'Sales receipt((當天)'!B:B,'Sales receipt((當天)'!B4,'Sales receipt((當天)'!C:C,'Sales receipt((當天)'!C10)","v":0},{"$f":"SUMIFS('Sales receipt((當天)'!J:J,'Sales receipt((當天)'!A:A,'Sales receipt((當天)'!A7,'Sales receipt((當天)'!B:B,'Sales receipt((當天)'!B4,'Sales receipt((當天)'!C:C,'Sales receipt((當天)'!C10)","v":0},{"$f":"SUMIFS('Sales receipt((當天)'!K:K,'Sales receipt((當天)'!A:A,'Sales receipt((當天)'!A6,'Sales receipt((當天)'!B:B,'Sales receipt((當天)'!B4,'Sales receipt((當天)'!C:C,'Sales receipt((當天)'!C10)","v":7836},{"$f":"SUMIFS('Sales receipt((當天)'!J:J,'Sales receipt((當天)'!A:A,'Sales receipt((當天)'!A6,'Sales receipt((當天)'!B:B,'Sales receipt((當天)'!B4,'Sales receipt((當天)'!C:C,'Sales receipt((當天)'!C10)","v":12},{"$f":"SUMIFS('Sales receipt((當天)'!K:K,'Sales receipt((當天)'!A:A,'Sales receipt((當天)'!A8,'Sales receipt((當天)'!B:B,'Sales receipt((當天)'!B4,'Sales receipt((當天)'!C:C,'Sales receipt((當天)'!C10)","v":3309},{"$f":"SUMIFS('Sales receipt((當天)'!J:J,'Sales receipt((當天)'!A:A,'Sales receipt((當天)'!A8,'Sales receipt((當天)'!B:B,'Sales receipt((當天)'!B4,'Sales receipt((當天)'!C:C,'Sales receipt((當天)'!C10)","v":6},{"$f":"SUMIFS('Sales receipt((當天)'!K:K,'Sales receipt((當天)'!A:A,'Sales receipt((當天)'!A4,'Sales receipt((當天)'!B:B,'Sales receipt((當天)'!B4,'Sales receipt((當天)'!C:C,'Sales receipt((當天)'!C10)","v":0},{"$f":"SUMIFS('Sales receipt((當天)'!J:J,'Sales receipt((當天)'!A:A,'Sales receipt((當天)'!A4,'Sales receipt((當天)'!B:B,'Sales receipt((當天)'!B4,'Sales receipt((當天)'!C:C,'Sales receipt((當天)'!C10)","v":0},{"$f":"SUMIFS('Sales receipt((當天)'!K:K,'Sales receipt((當天)'!A:A,'Sales receipt((當天)'!A5,'Sales receipt((當天)'!B:B,'Sales receipt((當天)'!B4,'Sales receipt((當天)'!C:C,'Sales receipt((當天)'!C10)","v":2112},{"$f":"SUMIFS('Sales receipt((當天)'!J:J,'Sales receipt((當天)'!A:A,'Sales receipt((當天)'!A5,'Sales receipt((當天)'!B:B,'Sales receipt((當天)'!B4,'Sales receipt((當天)'!C:C,'Sales receipt((當天)'!C10)","v":3}]
["外套",{"$f":"SUM(SUMIFS('Sales receipt((當天)'!K:K,'Sales receipt((當天)'!A:A,'Sales receipt((當天)'!A2,'Sales receipt((當天)'!B:B,'Sales receipt((當天)'!B4,'Sales receipt((當天)'!C:C,{\"針織上衣\",\"梭織上衣\"}))","v":7875},{"$f":"SUM(SUMIFS('Sales receipt((當天)'!J:J,'Sales receipt((當天)'!A:A,'Sales receipt((當天)'!A2,'Sales receipt((當天)'!B:B,'Sales receipt((當天)'!B4,'Sales receipt((當天)'!C:C,{\"針織上衣\",\"梭織上衣\"}))","v":4},{"$f":"SUM(SUMIFS('Sales receipt((當天)'!K:K,'Sales receipt((當天)'!A:A,'Sales receipt((當天)'!A3,'Sales receipt((當天)'!B:B,'Sales receipt((當天)'!B4,'Sales receipt((當天)'!C:C,{\"針織上衣\",\"梭織上衣\"}))","v":0},{"$f":"SUM(SUMIFS('Sales receipt((當天)'!J:J,'Sales receipt((當天)'!A:A,'Sales receipt((當天)'!A3,'Sales receipt((當天)'!B:B,'Sales receipt((當天)'!B4,'Sales receipt((當天)'!C:C,{\"針織上衣\",\"梭織上衣\"}))","v":0},{"$f":"SUM(SUMIFS('Sales receipt((當天)'!K:K,'Sales receipt((當天)'!A:A,'Sales receipt((當天)'!A7,'Sales receipt((當天)'!B:B,'Sales receipt((當天)'!B4,'Sales receipt((當天)'!C:C,{\"針織上衣\",\"梭織上衣\"}))","v":0},{"$f":"SUM(SUMIFS('Sales receipt((當天)'!J:J,'Sales receipt((當天)'!A:A,'Sales receipt((當天)'!A7,'Sales receipt((當天)'!B:B,'Sales receipt((當天)'!B4,'Sales receipt((當天)'!C:C,{\"針織上衣\",\"梭織上衣\"}))","v":0},{"$f":"SUM(SUMIFS('Sales receipt((當天)'!K:K,'Sales receipt((當天)'!A:A,'Sales receipt((當天)'!A6,'Sales receipt((當天)'!B:B,'Sales receipt((當天)'!B4,'Sales receipt((當天)'!C:C,{\"針織上衣\",\"梭織上衣\"}))","v":8037},{"$f":"SUM(SUMIFS('Sales receipt((當天)'!J:J,'Sales receipt((當天)'!A:A,'Sales receipt((當天)'!A6,'Sales receipt((當天)'!B:B,'Sales receipt((當天)'!B4,'Sales receipt((當天)'!C:C,{\"針織上衣\",\"梭織上衣\"}))","v":4},{"$f":"SUM(SUMIFS('Sales receipt((當天)'!K:K,'Sales receipt((當天)'!A:A,'Sales receipt((當天)'!A8,'Sales receipt((當天)'!B:B,'Sales receipt((當天)'!B4,'Sales receipt((當天)'!C:C,{\"針織上衣\",\"梭織上衣\"}))","v":4504},{"$f":"SUM(SUMIFS('Sales receipt((當天)'!J:J,'Sales receipt((當天)'!A:A,'Sales receipt((當天)'!A8,'Sales receipt((當天)'!B:B,'Sales receipt((當天)'!B4,'Sales receipt((當天)'!C:C,{\"針織上衣\",\"梭織上衣\"}))","v":3},{"$f":"SUM(SUMIFS('Sales receipt((當天)'!K:K,'Sales receipt((當天)'!A:A,'Sales receipt((當天)'!A4,'Sales receipt((當天)'!B:B,'Sales receipt((當天)'!B4,'Sales receipt((當天)'!C:C,{\"針織上衣\",\"梭織上衣\"}))","v":0},{"$f":"SUM(SUMIFS('Sales receipt((當天)'!J:J,'Sales receipt((當天)'!A:A,'Sales receipt((當天)'!A4,'Sales receipt((當天)'!B:B,'Sales receipt((當天)'!B4,'Sales receipt((當天)'!C:C,{\"針織上衣\",\"梭織上衣\"}))","v":0},{"$f":"SUM(SUMIFS('Sales receipt((當天)'!K:K,'Sales receipt((當天)'!A:A,'Sales receipt((當天)'!A5,'Sales receipt((當天)'!B:B,'Sales receipt((當天)'!B4,'Sales receipt((當天)'!C:C,{\"針織上衣\",\"梭織上衣\"}))","v":1258},{"$f":"SUM(SUMIFS('Sales receipt((當天)'!J:J,'Sales receipt((當天)'!A:A,'Sales receipt((當天)'!A5,'Sales receipt((當天)'!B:B,'Sales receipt((當天)'!B4,'Sales receipt((當天)'!C:C,{\"針織上衣\",\"梭織上衣\"}))","v":1}]
["羽絨服",{"$f":"SUM(SUMIFS('Sales receipt((當天)'!K:K,'Sales receipt((當天)'!A:A,'Sales receipt((當天)'!A2,'Sales receipt((當天)'!B:B,'Sales receipt((當天)'!B4,'Sales receipt((當天)'!C:C,{\"滑雪服\",\"羽絨服\",\"棉服\",\"棉羽類\"}))","v":0},{"$f":"SUM(SUMIFS('Sales receipt((當天)'!J:J,'Sales receipt((當天)'!A:A,'Sales receipt((當天)'!A2,'Sales receipt((當天)'!B:B,'Sales receipt((當天)'!B4,'Sales receipt((當天)'!C:C,{\"滑雪服\",\"羽絨服\",\"棉服\",\"棉羽類\"}))","v":0},{"$f":"SUM(SUMIFS('Sales receipt((當天)'!K:K,'Sales receipt((當天)'!A:A,'Sales receipt((當天)'!A3,'Sales receipt((當天)'!B:B,'Sales receipt((當天)'!B4,'Sales receipt((當天)'!C:C,{\"滑雪服\",\"羽絨服\",\"棉服\",\"棉羽類\"}))","v":0},{"$f":"SUM(SUMIFS('Sales receipt((當天)'!J:J,'Sales receipt((當天)'!A:A,'Sales receipt((當天)'!A3,'Sales receipt((當天)'!B:B,'Sales receipt((當天)'!B4,'Sales receipt((當天)'!C:C,{\"滑雪服\",\"羽絨服\",\"棉服\",\"棉羽類\"}))","v":0},{"$f":"SUM(SUMIFS('Sales receipt((當天)'!K:K,'Sales receipt((當天)'!A:A,'Sales receipt((當天)'!A7,'Sales receipt((當天)'!B:B,'Sales receipt((當天)'!B4,'Sales receipt((當天)'!C:C,{\"滑雪服\",\"羽絨服\",\"棉服\",\"棉羽類\"}))","v":0},{"$f":"SUM(SUMIFS('Sales receipt((當天)'!J:J,'Sales receipt((當天)'!A:A,'Sales receipt((當天)'!A7,'Sales receipt((當天)'!B:B,'Sales receipt((當天)'!B4,'Sales receipt((當天)'!C:C,{\"滑雪服\",\"羽絨服\",\"棉服\",\"棉羽類\"}))","v":0},{"$f":"SUM(SUMIFS('Sales receipt((當天)'!K:K,'Sales receipt((當天)'!A:A,'Sales receipt((當天)'!A6,'Sales receipt((當天)'!B:B,'Sales receipt((當天)'!B4,'Sales receipt((當天)'!C:C,{\"滑雪服\",\"羽絨服\",\"棉服\",\"棉羽類\"}))","v":0},{"$f":"SUM(SUMIFS('Sales receipt((當天)'!J:J,'Sales receipt((當天)'!A:A,'Sales receipt((當天)'!A6,'Sales receipt((當天)'!B:B,'Sales receipt((當天)'!B4,'Sales receipt((當天)'!C:C,{\"滑雪服\",\"羽絨服\",\"棉服\",\"棉羽類\"}))","v":0},{"$f":"SUM(SUMIFS('Sales receipt((當天)'!K:K,'Sales receipt((當天)'!A:A,'Sales receipt((當天)'!A8,'Sales receipt((當天)'!B:B,'Sales receipt((當天)'!B4,'Sales receipt((當天)'!C:C,{\"滑雪服\",\"羽絨服\",\"棉服\",\"棉羽類\"}))","v":0},{"$f":"SUM(SUMIFS('Sales receipt((當天)'!J:J,'Sales receipt((當天)'!A:A,'Sales receipt((當天)'!A8,'Sales receipt((當天)'!B:B,'Sales receipt((當天)'!B4,'Sales receipt((當天)'!C:C,{\"滑雪服\",\"羽絨服\",\"棉服\",\"棉羽類\"}))","v":0},{"$f":"SUM(SUMIFS('Sales receipt((當天)'!K:K,'Sales receipt((當天)'!A:A,'Sales receipt((當天)'!A4,'Sales receipt((當天)'!B:B,'Sales receipt((當天)'!B4,'Sales receipt((當天)'!C:C,{\"滑雪服\",\"羽絨服\",\"棉服\",\"棉羽類\"}))","v":0},{"$f":"SUM(SUMIFS('Sales receipt((當天)'!J:J,'Sales receipt((當天)'!A:A,'Sales receipt((當天)'!A4,'Sales receipt((當天)'!B:B,'Sales receipt((當天)'!B4,'Sales receipt((當天)'!C:C,{\"滑雪服\",\"羽絨服\",\"棉服\",\"棉羽類\"}))","v":0},{"$f":"SUM(SUMIFS('Sales receipt((當天)'!K:K,'Sales receipt((當天)'!A:A,'Sales receipt((當天)'!A5,'Sales receipt((當天)'!B:B,'Sales receipt((當天)'!B4,'Sales receipt((當天)'!C:C,{\"滑雪服\",\"羽絨服\",\"棉服\",\"棉羽類\"}))","v":0},{"$f":"SUM(SUMIFS('Sales receipt((當天)'!J:J,'Sales receipt((當天)'!A:A,'Sales receipt((當天)'!A5,'Sales receipt((當天)'!B:B,'Sales receipt((當天)'!B4,'Sales receipt((當天)'!C:C,{\"滑雪服\",\"羽絨服\",\"棉服\",\"棉羽類\"}))","v":0}]
["上身",{"$f":"SUM(B66:B72)","v":13084},10,0,0,0,0,16647,17,8675,10,0,0,3370,4]
["褲類",{"$f":"SUM(SUMIFS('Sales receipt((當天)'!K:K,'Sales receipt((當天)'!A:A,'Sales receipt((當天)'!A2,'Sales receipt((當天)'!B:B,'Sales receipt((當天)'!B4,'Sales receipt((當天)'!C:C,{\"針織褲\",\"梭織褲\"}))","v":3836},{"$f":"SUM(SUMIFS('Sales receipt((當天)'!J:J,'Sales receipt((當天)'!A:A,'Sales receipt((當天)'!A2,'Sales receipt((當天)'!B:B,'Sales receipt((當天)'!B4,'Sales receipt((當天)'!C:C,{\"針織褲\",\"梭織褲\"}))","v":5},{"$f":"SUM(SUMIFS('Sales receipt((當天)'!K:K,'Sales receipt((當天)'!A:A,'Sales receipt((當天)'!A3,'Sales receipt((當天)'!B:B,'Sales receipt((當天)'!B4,'Sales receipt((當天)'!C:C,{\"針織褲\",\"梭織褲\"}))","v":0},{"$f":"SUM(SUMIFS('Sales receipt((當天)'!J:J,'Sales receipt((當天)'!A:A,'Sales receipt((當天)'!A3,'Sales receipt((當天)'!B:B,'Sales receipt((當天)'!B4,'Sales receipt((當天)'!C:C,{\"針織褲\",\"梭織褲\"}))","v":0},{"$f":"SUM(SUMIFS('Sales receipt((當天)'!K:K,'Sales receipt((當天)'!A:A,'Sales receipt((當天)'!A7,'Sales receipt((當天)'!B:B,'Sales receipt((當天)'!B4,'Sales receipt((當天)'!C:C,{\"針織褲\",\"梭織褲\"}))","v":0},{"$f":"SUM(SUMIFS('Sales receipt((當天)'!J:J,'Sales receipt((當天)'!A:A,'Sales receipt((當天)'!A7,'Sales receipt((當天)'!B:B,'Sales receipt((當天)'!B4,'Sales receipt((當天)'!C:C,{\"針織褲\",\"梭織褲\"}))","v":0},{"$f":"SUM(SUMIFS('Sales receipt((當天)'!K:K,'Sales receipt((當天)'!A:A,'Sales receipt((當天)'!A6,'Sales receipt((當天)'!B:B,'Sales receipt((當天)'!B4,'Sales receipt((當天)'!C:C,{\"針織褲\",\"梭織褲\"}))","v":796},{"$f":"SUM(SUMIFS('Sales receipt((當天)'!J:J,'Sales receipt((當天)'!A:A,'Sales receipt((當天)'!A6,'Sales receipt((當天)'!B:B,'Sales receipt((當天)'!B4,'Sales receipt((當天)'!C:C,{\"針織褲\",\"梭織褲\"}))","v":1},{"$f":"SUM(SUMIFS('Sales receipt((當天)'!K:K,'Sales receipt((當天)'!A:A,'Sales receipt((當天)'!A8,'Sales receipt((當天)'!B:B,'Sales receipt((當天)'!B4,'Sales receipt((當天)'!C:C,{\"針織褲\",\"梭織褲\"}))","v":1549},{"$f":"SUM(SUMIFS('Sales receipt((當天)'!J:J,'Sales receipt((當天)'!A:A,'Sales receipt((當天)'!A8,'Sales receipt((當天)'!B:B,'Sales receipt((當天)'!B4,'Sales receipt((當天)'!C:C,{\"針織褲\",\"梭織褲\"}))","v":2},{"$f":"SUM(SUMIFS('Sales receipt((當天)'!K:K,'Sales receipt((當天)'!A:A,'Sales receipt((當天)'!A4,'Sales receipt((當天)'!B:B,'Sales receipt((當天)'!B4,'Sales receipt((當天)'!C:C,{\"針織褲\",\"梭織褲\"}))","v":0},{"$f":"SUM(SUMIFS('Sales receipt((當天)'!J:J,'Sales receipt((當天)'!A:A,'Sales receipt((當天)'!A4,'Sales receipt((當天)'!B:B,'Sales receipt((當天)'!B4,'Sales receipt((當天)'!C:C,{\"針織褲\",\"梭織褲\"}))","v":0},{"$f":"SUM(SUMIFS('Sales receipt((當天)'!K:K,'Sales receipt((當天)'!A:A,'Sales receipt((當天)'!A5,'Sales receipt((當天)'!B:B,'Sales receipt((當天)'!B4,'Sales receipt((當天)'!C:C,{\"針織褲\",\"梭織褲\"}))","v":3635},{"$f":"SUM(SUMIFS('Sales receipt((當天)'!J:J,'Sales receipt((當天)'!A:A,'Sales receipt((當天)'!A5,'Sales receipt((當天)'!B:B,'Sales receipt((當天)'!B4,'Sales receipt((當天)'!C:C,{\"針織褲\",\"梭織褲\"}))","v":4}]
["裙類",{"$f":"SUMIFS('Sales receipt((當天)'!K:K,'Sales receipt((當天)'!A:A,'Sales receipt((當天)'!A2,'Sales receipt((當天)'!B:B,'Sales receipt((當天)'!B4,'Sales receipt((當天)'!C:C,'Sales receipt((當天)'!C12)","v":780},{"$f":"SUMIFS('Sales receipt((當天)'!J:J,'Sales receipt((當天)'!A:A,'Sales receipt((當天)'!A2,'Sales receipt((當天)'!B:B,'Sales receipt((當天)'!B4,'Sales receipt((當天)'!C:C,'Sales receipt((當天)'!C12)","v":1},{"$f":"SUMIFS('Sales receipt((當天)'!K:K,'Sales receipt((當天)'!A:A,'Sales receipt((當天)'!A3,'Sales receipt((當天)'!B:B,'Sales receipt((當天)'!B4,'Sales receipt((當天)'!C:C,'Sales receipt((當天)'!C12)","v":0},{"$f":"SUMIFS('Sales receipt((當天)'!J:J,'Sales receipt((當天)'!A:A,'Sales receipt((當天)'!A3,'Sales receipt((當天)'!B:B,'Sales receipt((當天)'!B4,'Sales receipt((當天)'!C:C,'Sales receipt((當天)'!C12)","v":0},{"$f":"SUMIFS('Sales receipt((當天)'!K:K,'Sales receipt((當天)'!A:A,'Sales receipt((當天)'!A7,'Sales receipt((當天)'!B:B,'Sales receipt((當天)'!B4,'Sales receipt((當天)'!C:C,'Sales receipt((當天)'!C12)","v":0},{"$f":"SUMIFS('Sales receipt((當天)'!J:J,'Sales receipt((當天)'!A:A,'Sales receipt((當天)'!A7,'Sales receipt((當天)'!B:B,'Sales receipt((當天)'!B4,'Sales receipt((當天)'!C:C,'Sales receipt((當天)'!C12)","v":0},{"$f":"SUMIFS('Sales receipt((當天)'!K:K,'Sales receipt((當天)'!A:A,'Sales receipt((當天)'!A6,'Sales receipt((當天)'!B:B,'Sales receipt((當天)'!B4,'Sales receipt((當天)'!C:C,'Sales receipt((當天)'!C12)","v":0},{"$f":"SUMIFS('Sales receipt((當天)'!J:J,'Sales receipt((當天)'!A:A,'Sales receipt((當天)'!A6,'Sales receipt((當天)'!B:B,'Sales receipt((當天)'!B4,'Sales receipt((當天)'!C:C,'Sales receipt((當天)'!C12)","v":0},{"$f":"SUMIFS('Sales receipt((當天)'!K:K,'Sales receipt((當天)'!A:A,'Sales receipt((當天)'!A8,'Sales receipt((當天)'!B:B,'Sales receipt((當天)'!B4,'Sales receipt((當天)'!C:C,'Sales receipt((當天)'!C12)","v":0},{"$f":"SUMIFS('Sales receipt((當天)'!J:J,'Sales receipt((當天)'!A:A,'Sales receipt((當天)'!A8,'Sales receipt((當天)'!B:B,'Sales receipt((當天)'!B4,'Sales receipt((當天)'!C:C,'Sales receipt((當天)'!C12)","v":0},{"$f":"SUMIFS('Sales receipt((當天)'!K:K,'Sales receipt((當天)'!A:A,'Sales receipt((當天)'!A4,'Sales receipt((當天)'!B:B,'Sales receipt((當天)'!B4,'Sales receipt((當天)'!C:C,'Sales receipt((當天)'!C12)","v":0},{"$f":"SUMIFS('Sales receipt((當天)'!J:J,'Sales receipt((當天)'!A:A,'Sales receipt((當天)'!A4,'Sales receipt((當天)'!B:B,'Sales receipt((當天)'!B4,'Sales receipt((當天)'!C:C,'Sales receipt((當天)'!C12)","v":0},{"$f":"SUMIFS('Sales receipt((當天)'!K:K,'Sales receipt((當天)'!A:A,'Sales receipt((當天)'!A5,'Sales receipt((當天)'!B:B,'Sales receipt((當天)'!B4,'Sales receipt((當天)'!C:C,'Sales receipt((當天)'!C12)","v":0},{"$f":"SUMIFS('Sales receipt((當天)'!J:J,'Sales receipt((當天)'!A:A,'Sales receipt((當天)'!A5,'Sales receipt((當天)'!B:B,'Sales receipt((當天)'!B4,'Sales receipt((當天)'!C:C,'Sales receipt((當天)'!C12)","v":0}]
["下身",{"$f":"SUM(B74:B75)","v":4616},6,0,0,0,0,796,1,1549,2,0,0,3635,4]
["鞋",{"$f":"SUMIFS('Sales receipt((當天)'!K:K,'Sales receipt((當天)'!A:A,'Sales receipt((當天)'!A2,'Sales receipt((當天)'!B:B,'Sales receipt((當天)'!B6)","v":4815},{"$f":"SUMIFS('Sales receipt((當天)'!J:J,'Sales receipt((當天)'!A:A,'Sales receipt((當天)'!A2,'Sales receipt((當天)'!B:B,'Sales receipt((當天)'!B6)","v":5},{"$f":"SUMIFS('Sales receipt((當天)'!K:K,'Sales receipt((當天)'!A:A,'Sales receipt((當天)'!A3,'Sales receipt((當天)'!B:B,'Sales receipt((當天)'!B6)","v":0},{"$f":"SUMIFS('Sales receipt((當天)'!J:J,'Sales receipt((當天)'!A:A,'Sales receipt((當天)'!A3,'Sales receipt((當天)'!B:B,'Sales receipt((當天)'!B6)","v":0},{"$f":"SUMIFS('Sales receipt((當天)'!K:K,'Sales receipt((當天)'!A:A,'Sales receipt((當天)'!A7,'Sales receipt((當天)'!B:B,'Sales receipt((當天)'!B6)","v":0},{"$f":"SUMIFS('Sales receipt((當天)'!J:J,'Sales receipt((當天)'!A:A,'Sales receipt((當天)'!A7,'Sales receipt((當天)'!B:B,'Sales receipt((當天)'!B6)","v":0},{"$f":"SUMIFS('Sales receipt((當天)'!K:K,'Sales receipt((當天)'!A:A,'Sales receipt((當天)'!A6,'Sales receipt((當天)'!B:B,'Sales receipt((當天)'!B6)","v":890},{"$f":"SUMIFS('Sales receipt((當天)'!J:J,'Sales receipt((當天)'!A:A,'Sales receipt((當天)'!A6,'Sales receipt((當天)'!B:B,'Sales receipt((當天)'!B6)","v":1},{"$f":"SUMIFS('Sales receipt((當天)'!K:K,'Sales receipt((當天)'!A:A,'Sales receipt((當天)'!A8,'Sales receipt((當天)'!B:B,'Sales receipt((當天)'!B6)","v":1664},{"$f":"SUMIFS('Sales receipt((當天)'!J:J,'Sales receipt((當天)'!A:A,'Sales receipt((當天)'!A8,'Sales receipt((當天)'!B:B,'Sales receipt((當天)'!B6)","v":2},{"$f":"SUMIFS('Sales receipt((當天)'!K:K,'Sales receipt((當天)'!A:A,'Sales receipt((當天)'!A4,'Sales receipt((當天)'!B:B,'Sales receipt((當天)'!B6)","v":0},{"$f":"SUMIFS('Sales receipt((當天)'!J:J,'Sales receipt((當天)'!A:A,'Sales receipt((當天)'!A4,'Sales receipt((當天)'!B:B,'Sales receipt((當天)'!B6)","v":0},{"$f":"SUMIFS('Sales receipt((當天)'!K:K,'Sales receipt((當天)'!A:A,'Sales receipt((當天)'!A5,'Sales receipt((當天)'!B:B,'Sales receipt((當天)'!B6)","v":1048},{"$f":"SUMIFS('Sales receipt((當天)'!J:J,'Sales receipt((當天)'!A:A,'Sales receipt((當天)'!A5,'Sales receipt((當天)'!B:B,'Sales receipt((當天)'!B6)","v":1}]
["配件",{"$f":"SUMIFS('Sales receipt((當天)'!K:K,'Sales receipt((當天)'!A:A,'Sales receipt((當天)'!A2,'Sales receipt((當天)'!B:B,'Sales receipt((當天)'!B5)","v":3114},{"$f":"SUMIFS('Sales receipt((當天)'!J:J,'Sales receipt((當天)'!A:A,'Sales receipt((當天)'!A2,'Sales receipt((當天)'!B:B,'Sales receipt((當天)'!B5)","v":4},{"$f":"SUMIFS('Sales receipt((當天)'!K:K,'Sales receipt((當天)'!A:A,'Sales receipt((當天)'!A3,'Sales receipt((當天)'!B:B,'Sales receipt((當天)'!B5)","v":0},{"$f":"SUMIFS('Sales receipt((當天)'!J:J,'Sales receipt((當天)'!A:A,'Sales receipt((當天)'!A3,'Sales receipt((當天)'!B:B,'Sales receipt((當天)'!B5)","v":0},{"$f":"SUMIFS('Sales receipt((當天)'!K:K,'Sales receipt((當天)'!A:A,'Sales receipt((當天)'!A7,'Sales receipt((當天)'!B:B,'Sales receipt((當天)'!B5)","v":0},{"$f":"SUMIFS('Sales receipt((當天)'!J:J,'Sales receipt((當天)'!A:A,'Sales receipt((當天)'!A7,'Sales receipt((當天)'!B:B,'Sales receipt((當天)'!B5)","v":0},{"$f":"SUMIFS('Sales receipt((當天)'!K:K,'Sales receipt((當天)'!A:A,'Sales receipt((當天)'!A6,'Sales receipt((當天)'!B:B,'Sales receipt((當天)'!B5)","v":0},{"$f":"SUMIFS('Sales receipt((當天)'!J:J,'Sales receipt((當天)'!A:A,'Sales receipt((當天)'!A6,'Sales receipt((當天)'!B:B,'Sales receipt((當天)'!B5)","v":0},{"$f":"SUMIFS('Sales receipt((當天)'!K:K,'Sales receipt((當天)'!A:A,'Sales receipt((當天)'!A8,'Sales receipt((當天)'!B:B,'Sales receipt((當天)'!B5)","v":723},{"$f":"SUMIFS('Sales receipt((當天)'!J:J,'Sales receipt((當天)'!A:A,'Sales receipt((當天)'!A8,'Sales receipt((當天)'!B:B,'Sales receipt((當天)'!B5)","v":3},{"$f":"SUMIFS('Sales receipt((當天)'!K:K,'Sales receipt((當天)'!A:A,'Sales receipt((當天)'!A4,'Sales receipt((當天)'!B:B,'Sales receipt((當天)'!B5)","v":0},{"$f":"SUMIFS('Sales receipt((當天)'!J:J,'Sales receipt((當天)'!A:A,'Sales receipt((當天)'!A4,'Sales receipt((當天)'!B:B,'Sales receipt((當天)'!B5)","v":0},{"$f":"SUMIFS('Sales receipt((當天)'!K:K,'Sales receipt((當天)'!A:A,'Sales receipt((當天)'!A5,'Sales receipt((當天)'!B:B,'Sales receipt((當天)'!B5)","v":1549},{"$f":"SUMIFS('Sales receipt((當天)'!J:J,'Sales receipt((當天)'!A:A,'Sales receipt((當天)'!A5,'Sales receipt((當天)'!B:B,'Sales receipt((當天)'!B5)","v":4}]
["店鋪事項"]
["   "]

{"sheet":"個人KPI","index":1,"n_rows":131,"n_cols":14,"rows_kept":131,"merged":[[0,0,0,13],[1,0,1,6],[1,8,1,13],[2,0,18,0],[2,1,3,1],[2,8,3,8],[20,0,36,0],[20,1,21,1],[20,8,21,8],[39,0,55,0],[39,1,40,1],[39,8,40,8],[58,0,74,0],[58,1,59,1],[58,8,59,8],[77,0,93,0],[77,1,78,1],[77,8,78,8],[96,0,112,0],[96,1,97,1],[96,8,97,8],[114,0,130,0],[114,1,115,1],[114,8,115,8]]}
["10月20-24號 個人品類銷售"]
["個人數KPI",{"$nulls":7},"個人數KPI"]
["Susanna","TW  4日"," MTD","ATV","UPT","NO ","QTY",null,"LW"," MTD","ATV","UPT","NO ","QTY"]
[null,null,49271,2492,3.4,18,62,null,null,113747,2917,{"v":4,"d":"4.0"},39,161]
[null,"VSLW",{"$f":"C4-J4","v":-64476},{"$f":"D4-K4","v":-425},{"$f":"E4-L4","v":{"v":-0.6000000000000001,"d":"-0.6"}},{"$f":"F4-M4","v":-21},{"$f":"G4-N4","v":-99}]
[]
[null,"中類","件數","金額","VSLW尚欠",{"$nulls":3},"中類","件數","金額"]
[null,"內搭",{"$f":"SUMIFS('個人KPISales receipt(MTD）'!J:J,'個人KPISales receipt(MTD）'!A:A,'個人KPISales receipt(MTD）'!A2,'個人KPISales receipt(MTD）'!B:B,'個人KPISales receipt(MTD）'!B4,'個人KPISales receipt(MTD）'!C:C,'個人KPISales receipt(MTD）'!C2)","v":0},{"$f":"SUMIFS('個人KPISales receipt(MTD）'!K:K,'個人KPISales receipt(MTD）'!A:A,'個人KPISales receipt(MTD）'!A2,'個人KPISales receipt(MTD）'!B:B,'個人KPISales receipt(MTD）'!B4,'個人KPISales receipt(MTD）'!C:C,'個人KPISales receipt(MTD）'!C2)","v":0},{"$f":"C8-J8","v":-15},{"$nulls":3},"內搭",15,12360,{"$f":"J8-Q8","v":15}]
[null,"針織上衣",{"$f":"SUMIFS('個人KPISales receipt(MTD）'!J:J,'個人KPISales receipt(MTD）'!A:A,'個人KPISales receipt(MTD）'!A2,'個人KPISales receipt(MTD）'!B:B,'個人KPISales receipt(MTD）'!B4,'個人KPISales receipt(MTD）'!C:C,'個人KPISales receipt(MTD）'!C5)","v":1},{"$f":"SUMIFS('個人KPISales receipt(MTD）'!K:K,'個人KPISales receipt(MTD）'!A:A,'個人KPISales receipt(MTD）'!A2,'個人KPISales receipt(MTD）'!B:B,'個人KPISales receipt(MTD）'!B4,'個人KPISales receipt(MTD）'!C:C,'個人KPISales receipt(MTD）'!C5)","v":1332},-3,{"$nulls":3},"針織上衣",4,5301,4]
[null,"針織褲",{"$f":"SUMIFS('個人KPISales receipt(MTD）'!J:J,'個人KPISales receipt(MTD）'!A:A,'個人KPISales receipt(MTD）'!A2,'個人KPISales receipt(MTD）'!B:B,'個人KPISales receipt(MTD）'!B4,'個人KPISales receipt(MTD）'!C:C,'個人KPISales receipt(MTD）'!C6)","v":2},{"$f":"SUMIFS('個人KPISales receipt(MTD）'!K:K,'個人KPISales receipt(MTD）'!A:A,'個人KPISales receipt(MTD）'!A2,'個人KPISales receipt(MTD）'!B:B,'個人KPISales receipt(MTD）'!B4,'個人KPISales receipt(MTD）'!C:C,'個人KPISales receipt(MTD）'!C6)","v":1584},-17,{"$nulls":3},"針織褲",19,16123,19]
[null,"梭織上衣",{"$f":"SUMIFS('個人KPISales receipt(MTD）'!J:J,'個人KPISales receipt(MTD）'!A:A,'個人KPISales receipt(MTD）'!A2,'個人KPISales receipt(MTD）'!B:B,'個人KPISales receipt(MTD）'!B4,'個人KPISales receipt(MTD）'!C:C,'個人KPISales receipt(MTD）'!C7)","v":3},{"$f":"SUMIFS('個人KPISales receipt(MTD）'!K:K,'個人KPISales receipt(MTD）'!A:A,'個人KPISales receipt(MTD）'!A2,'個人KPISales receipt(MTD）'!B:B,'個人KPISales receipt(MTD）'!B4,'個人KPISales receipt(MTD）'!C:C,'個人KPISales receipt(MTD）'!C7)","v":4440},-1,{"$nulls":3},"梭織上衣",4,6389,4]
[null,"梭織褲",{"$f":"SUMIFS('個人KPISales receipt(MTD）'!J:J,'個人KPISales receipt(MTD）'!A:A,'個人KPISales receipt(MTD）'!A2,'個人KPISales receipt(MTD）'!B:B,'個人KPISales receipt(MTD）'!B4,'個人KPISales receipt(MTD）'!C:C,'個人KPISales receipt(MTD）'!C8)","v":0},{"$f":"SUMIFS('個人KPISales receipt(MTD）'!K:K,'個人KPISales receipt(MTD）'!A:A,'個人KPISales receipt(MTD）'!A2,'個人KPISales receipt(MTD）'!B:B,'個人KPISales receipt(MTD）'!B4,'個人KPISales receipt(MTD）'!C:C,'個人KPISales receipt(MTD）'!C8)","v":0},0,{"$nulls":3},"梭織褲",{"$f":"SUMIFS('個人KPISales receipt(MTD）'!Q:Q,'個人KPISales receipt(MTD）'!H:H,'個人KPISales receipt(MTD）'!H2,'個人KPISales receipt(MTD）'!I:I,'個人KPISales receipt(MTD）'!I4,'個人KPISales receipt(MTD）'!J:J,'個人KPISales receipt(MTD）'!J8)","v":0},{"$f":"SUMIFS('個人KPISales receipt(MTD）'!R:R,'個人KPISales receipt(MTD）'!H:H,'個人KPISales receipt(MTD）'!H2,'個人KPISales receipt(MTD）'!I:I,'個人KPISales receipt(MTD）'!I4,'個人KPISales receipt(MTD）'!J:J,'個人KPISales receipt(MTD）'!J8)","v":0},0]
[null,"短T類",{"$f":"SUMIFS('個人KPISales receipt(MTD）'!J:J,'個人KPISales receipt(MTD）'!A:A,'個人KPISales receipt(MTD）'!A2,'個人KPISales receipt(MTD）'!B:B,'個人KPISales receipt(MTD）'!B4,'個人KPISales receipt(MTD）'!C:C,'個人KPISales receipt(MTD）'!C10)","v":10},{"$f":"SUMIFS('個人KPISales receipt(MTD）'!K:K,'個人KPISales receipt(MTD）'!A:A,'個人KPISales receipt(MTD）'!A2,'個人KPISales receipt(MTD）'!B:B,'個人KPISales receipt(MTD）'!B4,'個人KPISales receipt(MTD）'!C:C,'個人KPISales receipt(MTD）'!C10)","v":8185},7,{"$nulls":3},"短T類",3,1594,3]
[null,"裙裝",{"$f":"SUMIFS('個人KPISales receipt(MTD）'!J:J,'個人KPISales receipt(MTD）'!A:A,'個人KPISales receipt(MTD）'!A2,'個人KPISales receipt(MTD）'!B:B,'個人KPISales receipt(MTD）'!B4,'個人KPISales receipt(MTD）'!C:C,'個人KPISales receipt(MTD）'!C12)","v":0},{"$f":"SUMIFS('個人KPISales receipt(MTD）'!K:K,'個人KPISales receipt(MTD）'!A:A,'個人KPISales receipt(MTD）'!A2,'個人KPISales receipt(MTD）'!B:B,'個人KPISales receipt(MTD）'!B4,'個人KPISales receipt(MTD）'!C:C,'個人KPISales receipt(MTD）'!C12)","v":0},0,{"$nulls":3},"裙裝",{"$f":"SUMIFS('個人KPISales receipt(MTD）'!Q:Q,'個人KPISales receipt(MTD）'!H:H,'個人KPISales receipt(MTD）'!H2,'個人KPISales receipt(MTD）'!J:J,'個人KPISales receipt(MTD）'!J12)","v":0},{"$f":"SUMIFS('個人KPISales receipt(MTD）'!R:R,'個人KPISales receipt(MTD）'!H:H,'個人KPISales receipt(MTD）'!H2,'個人KPISales receipt(MTD）'!I:I,'個人KPISales receipt(MTD）'!I4,'個人KPISales receipt(MTD）'!J:J,'個人KPISales receipt(MTD）'!J12)","v":0},0]
[null,"編織衫",{"$f":"SUMIFS('個人KPISales receipt(MTD）'!J:J,'個人KPISales receipt(MTD）'!A:A,'個人KPISales receipt(MTD）'!A2,'個人KPISales receipt(MTD）'!B:B,'個人KPISales receipt(MTD）'!B4,'個人KPISales receipt(MTD）'!C:C,'個人KPISales receipt(MTD）'!C13)","v":1},{"$f":"SUMIFS('個人KPISales receipt(MTD）'!K:K,'個人KPISales receipt(MTD）'!A:A,'個人KPISales receipt(MTD）'!A2,'個人KPISales receipt(MTD）'!B:B,'個人KPISales receipt(MTD）'!B4,'個人KPISales receipt(MTD）'!C:C,'個人KPISales receipt(MTD）'!C13)","v":882},-3,{"$nulls":3},"編織衫",4,4537,4]
[null,"襯衫",{"$f":"SUMIFS('個人KPISales receipt(MTD）'!J:J,'個人KPISales receipt(MTD）'!A:A,'個人KPISales receipt(MTD）'!A2,'個人KPISales receipt(MTD）'!B:B,'個人KPISales receipt(MTD）'!B4,'個人KPISales receipt(MTD）'!C:C,'個人KPISales receipt(MTD）'!C14)","v":0},{"$f":"SUMIFS('個人KPISales receipt(MTD）'!K:K,'個人KPISales receipt(MTD）'!A:A,'個人KPISales receipt(MTD）'!A2,'個人KPISales receipt(MTD）'!B:B,'個人KPISales receipt(MTD）'!B4,'個人KPISales receipt(MTD）'!C:C,'個人KPISales receipt(MTD）'!C14)","v":0},0,{"$nulls":3},"襯衫",{"$f":"SUMIFS('個人KPISales receipt(MTD）'!Q:Q,'個人KPISales receipt(MTD）'!H:H,'個人KPISales receipt(MTD）'!H2,'個人KPISales receipt(MTD）'!I:I,'個人KPISales receipt(MTD）'!I4,'個人KPISales receipt(MTD）'!J:J,'個人KPISales receipt(MTD）'!J14)","v":0},{"$f":"SUMIFS('個人KPISales receipt(MTD）'!R:R,'個人KPISales receipt(MTD）'!H:H,'個人KPISales receipt(MTD）'!H2,'個人KPISales receipt(MTD）'!I:I,'個人KPISales receipt(MTD）'!I4,'個人KPISales receipt(MTD）'!J:J,'個人KPISales receipt(MTD）'!J14)","v":0},0]
[null,"棉服",{"$f":"SUMIFS('個人KPISales receipt(MTD）'!J:J,'個人KPISales receipt(MTD）'!A:A,'個人KPISales receipt(MTD）'!A2,'個人KPISales receipt(MTD）'!B:B,'個人KPISales receipt(MTD）'!B4,'個人KPISales receipt(MTD）'!C:C,'個人KPISales receipt(MTD）'!C9)","v":0},{"$f":"SUMIFS('個人KPISales receipt(MTD）'!K:K,'個人KPISales receipt(MTD）'!A:A,'個人KPISales receipt(MTD）'!A2,'個人KPISales receipt(MTD）'!B:B,'個人KPISales receipt(MTD）'!B4,'個人KPISales receipt(MTD）'!C:C,'個人KPISales receipt(MTD）'!C9)","v":0},-1,{"$nulls":3},"棉服",1,2406,1]
[null,"羽絨服",{"$f":"SUMIFS('個人KPISales receipt(MTD）'!J:J,'個人KPISales receipt(MTD）'!A:A,'個人KPISales receipt(MTD）'!A2,'個人KPISales receipt(MTD）'!B:B,'個人KPISales receipt(MTD）'!B4,'個人KPISales receipt(MTD）'!C:C,'個人KPISales receipt(MTD）'!C4)","v":0},{"$f":"SUMIFS('個人KPISales receipt(MTD）'!K:K,'個人KPISales receipt(MTD）'!A:A,'個人KPISales receipt(MTD）'!A2,'個人KPISales receipt(MTD）'!B:B,'個人KPISales receipt(MTD）'!B4,'個人KPISales receipt(MTD）'!C:C,'個人KPISales receipt(MTD）'!C4)","v":0},-21,{"$nulls":3},"羽絨服",21,45228,21]
[null,"鞋",{"$f":"SUMIFS('個人KPISales receipt(MTD）'!J:J,'個人KPISales receipt(MTD）'!A:A,'個人KPISales receipt(MTD）'!A2,'個人KPISales receipt(MTD）'!B:B,'個人KPISales receipt(MTD）'!B6)","v":8},{"$f":"SUMIFS('個人KPISales receipt(MTD）'!K:K,'個人KPISales receipt(MTD）'!A:A,'個人KPISales receipt(MTD）'!A2,'個人KPISales receipt(MTD）'!B:B,'個人KPISales receipt(MTD）'!B6)","v":8062},-13,{"$nulls":3},"鞋",21,18209,21]
[]
["JANET","TW 5日 "," MTD","ATV","UPT","NO ","QTY",null,"LW","MTD","ATV","UPT","NO ","QTY"]
[null,null,121093,2676,4.2,48,202,null,null,108127,2301,{"v":3,"d":"3.0"},47,157]
[null,"VSLW",{"$f":"C22-J22","v":12966},{"$f":"D22-K22","v":375},{"$f":"E22-L22","v":{"v":1.2000000000000002,"d":"1.2"}},{"$f":"F22-M22","v":1},{"$f":"G22-N22","v":45}]
[]
[null,"中類","件數","金額","VSLW尚欠",{"$nulls":3},"中類","件數","金額"]
[null,"內搭",{"$f":"SUMIFS('個人KPISales receipt(MTD）'!J:J,'個人KPISales receipt(MTD）'!A:A,'個人KPISales receipt(MTD）'!A3,'個人KPISales receipt(MTD）'!B:B,'個人KPISales receipt(MTD）'!B4,'個人KPISales receipt(MTD）'!C:C,'個人KPISales receipt(MTD）'!C2)","v":0},{"$f":"SUMIFS('個人KPISales receipt(MTD）'!K:K,'個人KPISales receipt(MTD）'!A:A,'個人KPISales receipt(MTD）'!A3,'個人KPISales receipt(MTD）'!B:B,'個人KPISales receipt(MTD）'!B4,'個人KPISales receipt(MTD）'!C:C,'個人KPISales receipt(MTD）'!C2)","v":0},{"$f":"C26-J26","v":-20},{"$nulls":3},"內搭",20,17510]
[null,"針織上衣",{"$f":"SUMIFS('個人KPISales receipt(MTD）'!J:J,'個人KPISales receipt(MTD）'!A:A,'個人KPISales receipt(MTD）'!A3,'個人KPISales receipt(MTD）'!B:B,'個人KPISales receipt(MTD）'!B4,'個人KPISales receipt(MTD）'!C:C,'個人KPISales receipt(MTD）'!C5)","v":0},{"$f":"SUMIFS('個人KPISales receipt(MTD）'!K:K,'個人KPISales receipt(MTD）'!A:A,'個人KPISales receipt(MTD）'!A3,'個人KPISales receipt(MTD）'!B:B,'個人KPISales receipt(MTD）'!B4,'個人KPISales receipt(MTD）'!C:C,'個人KPISales receipt(MTD）'!C5)","v":0},-5,{"$nulls":3},"針織上衣",5,6882]
[null,"針織褲",{"$f":"SUMIFS('個人KPISales receipt(MTD）'!J:J,'個人KPISales receipt(MTD）'!A:A,'個人KPISales receipt(MTD）'!A3,'個人KPISales receipt(MTD）'!B:B,'個人KPISales receipt(MTD）'!B4,'個人KPISales receipt(MTD）'!C:C,'個人KPISales receipt(MTD）'!C6)","v":0},{"$f":"SUMIFS('個人KPISales receipt(MTD）'!K:K,'個人KPISales receipt(MTD）'!A:A,'個人KPISales receipt(MTD）'!A3,'個人KPISales receipt(MTD）'!B:B,'個人KPISales receipt(MTD）'!B4,'個人KPISales receipt(MTD）'!C:C,'個人KPISales receipt(MTD）'!C6)","v":0},-16,{"$nulls":3},"針織褲",16,12405]
[null,"梭織上衣",{"$f":"SUMIFS('個人KPISales receipt(MTD）'!J:J,'個人KPISales receipt(MTD）'!A:A,'個人KPISales receipt(MTD）'!A3,'個人KPISales receipt(MTD）'!B:B,'個人KPISales receipt(MTD）'!B4,'個人KPISales receipt(MTD）'!C:C,'個人KPISales receipt(MTD）'!C7)","v":0},{"$f":"SUMIFS('個人KPISales receipt(MTD）'!K:K,'個人KPISales receipt(MTD）'!A:A,'個人KPISales receipt(MTD）'!A3,'個人KPISales receipt(MTD）'!B:B,'個人KPISales receipt(MTD）'!B4,'個人KPISales receipt(MTD）'!C:C,'個人KPISales receipt(MTD）'!C7)","v":0},-5,{"$nulls":3},"梭織上衣",5,7981]
[null,"梭織褲",{"$f":"SUMIFS('個人KPISales receipt(MTD）'!J:J,'個人KPISales receipt(MTD）'!A:A,'個人KPISales receipt(MTD）'!A3,'個人KPISales receipt(MTD）'!B:B,'個人KPISales receipt(MTD）'!B4,'個人KPISales receipt(MTD）'!C:C,'個人KPISales receipt(MTD）'!C8)","v":0},{"$f":"SUMIFS('個人KPISales receipt(MTD）'!K:K,'個人KPISales receipt(MTD）'!A:A,'個人KPISales receipt(MTD）'!A3,'個人KPISales receipt(MTD）'!B:B,'個人KPISales receipt(MTD）'!B4,'個人KPISales receipt(MTD）'!C:C,'個人KPISales receipt(MTD）'!C8)","v":0},-2,{"$nulls":3},"梭織褲",2,2787]
[null,"短T類",{"$f":"SUMIFS('個人KPISales receipt(MTD）'!J:J,'個人KPISales receipt(MTD）'!A:A,'個人KPISales receipt(MTD）'!A3,'個人KPISales receipt(MTD）'!B:B,'個人KPISales receipt(MTD）'!B4,'個人KPISales receipt(MTD）'!C:C,'個人KPISales receipt(MTD）'!C10)","v":0},{"$f":"SUMIFS('個人KPISales receipt(MTD）'!K:K,'個人KPISales receipt(MTD）'!A:A,'個人KPISales receipt(MTD）'!A3,'個人KPISales receipt(MTD）'!B:B,'個人KPISales receipt(MTD）'!B4,'個人KPISales receipt(MTD）'!C:C,'個人KPISales receipt(MTD）'!C10)","v":0},0,{"$nulls":3},"短T類",0,0]
[null,"裙裝",{"$f":"SUMIFS('個人KPISales receipt(MTD）'!J:J,'個人KPISales receipt(MTD）'!A:A,'個人KPISales receipt(MTD）'!A3,'個人KPISales receipt(MTD）'!B:B,'個人KPISales receipt(MTD）'!B4,'個人KPISales receipt(MTD）'!C:C,'個人KPISales receipt(MTD）'!C12)","v":0},{"$f":"SUMIFS('個人KPISales receipt(MTD）'!K:K,'個人KPISales receipt(MTD）'!A:A,'個人KPISales receipt(MTD）'!A3,'個人KPISales receipt(MTD）'!B:B,'個人KPISales receipt(MTD）'!B4,'個人KPISales receipt(MTD）'!C:C,'個人KPISales receipt(MTD）'!C12)","v":0},0,{"$nulls":3},"裙裝",0,0]
[null,"編織衫",{"$f":"SUMIFS('個人KPISales receipt(MTD）'!J:J,'個人KPISales receipt(MTD）'!A:A,'個人KPISales receipt(MTD）'!A3,'個人KPISales receipt(MTD）'!B:B,'個人KPISales receipt(MTD）'!B4,'個人KPISales receipt(MTD）'!C:C,'個人KPISales receipt(MTD）'!C13)","v":0},{"$f":"SUMIFS('個人KPISales receipt(MTD）'!K:K,'個人KPISales receipt(MTD）'!A:A,'個人KPISales receipt(MTD）'!A3,'個人KPISales receipt(MTD）'!B:B,'個人KPISales receipt(MTD）'!B4,'個人KPISales receipt(MTD）'!C:C,'個人KPISales receipt(MTD）'!C13)","v":0},-3,{"$nulls":3},"編織衫",3,3250]
[null,"襯衫",{"$f":"SUMIFS('個人KPISales receipt(MTD）'!J:J,'個人KPISales receipt(MTD）'!A:A,'個人KPISales receipt(MTD）'!A3,'個人KPISales receipt(MTD）'!B:B,'個人KPISales receipt(MTD）'!B4,'個人KPISales receipt(MTD）'!C:C,'個人KPISales receipt(MTD）'!C14)","v":0},{"$f":"SUMIFS('個人KPISales receipt(MTD）'!K:K,'個人KPISales receipt(MTD）'!A:A,'個人KPISales receipt(MTD）'!A3,'個人KPISales receipt(MTD）'!B:B,'個人KPISales receipt(MTD）'!B4,'個人KPISales receipt(MTD）'!C:C,'個人KPISales receipt(MTD）'!C14)","v":0},0,{"$nulls":3},"襯衫",0,0]
[null,"棉服",{"$f":"SUMIFS('個人KPISales receipt(MTD）'!J:J,'個人KPISales receipt(MTD）'!A:A,'個人KPISales receipt(MTD）'!A3,'個人KPISales receipt(MTD）'!B:B,'個人KPISales receipt(MTD）'!B4,'個人KPISales receipt(MTD）'!C:C,'個人KPISales receipt(MTD）'!C9)","v":0},{"$f":"SUMIFS('個人KPISales receipt(MTD）'!K:K,'個人KPISales receipt(MTD）'!A:A,'個人KPISales receipt(MTD）'!A3,'個人KPISales receipt(MTD）'!B:B,'個人KPISales receipt(MTD）'!B4,'個人KPISales receipt(MTD）'!C:C,'個人KPISales receipt(MTD）'!C9)","v":0},-1,{"$nulls":3},"棉服",1,2564]
[null,"羽絨服",{"$f":"SUMIFS('個人KPISales receipt(MTD）'!J:J,'個人KPISales receipt(MTD）'!A:A,'個人KPISales receipt(MTD）'!A3,'個人KPISales receipt(MTD）'!B:B,'個人KPISales receipt(MTD）'!B4,'個人KPISales receipt(MTD）'!C:C,'個人KPISales receipt(MTD）'!C4)","v":0},{"$f":"SUMIFS('個人KPISales receipt(MTD）'!K:K,'個人KPISales receipt(MTD）'!A:A,'個人KPISales receipt(MTD）'!A3,'個人KPISales receipt(MTD）'!B:B,'個人KPISales receipt(MTD）'!B4,'個人KPISales receipt(MTD）'!C:C,'個人KPISales receipt(MTD）'!C4)","v":0},-17,{"$nulls":3},"羽絨服",17,34701]
[null,"鞋",{"$f":"SUMIFS('個人KPISales receipt(MTD）'!J:J,'個人KPISales receipt(MTD）'!A:A,'個人KPISales receipt(MTD）'!A3,'個人KPISales receipt(MTD）'!B:B,'個人KPISales receipt(MTD）'!B6)","v":0},{"$f":"SUMIFS('個人KPISales receipt(MTD）'!K:K,'個人KPISales receipt(MTD）'!A:A,'個人KPISales receipt(MTD）'!A3,'個人KPISales receipt(MTD）'!B:B,'個人KPISales receipt(MTD）'!B6)","v":0},-21,{"$nulls":3},"鞋",21,17622]
[]
[]
["khaki","TW 5日"," MTD","ATV","UPT","NO ","QTY",null,"LW"," MTD","ATV","UPT","NO ","QTY"]
[null,null,61209,1993,3.1,30,94,null,null,98678,2361,3.3,41,136]
[null,"VSLW",{"$f":"C41-J41","v":-37469},{"$f":"D41-K41","v":-368},{"$f":"E41-L41","v":{"v":-0.19999999999999973,"d":"-0.2"}},{"$f":"F41-M41","v":-11},{"$f":"G41-N41","v":-42}]
[]
[null,"中類","件數","金額","VSLW尚欠",{"$nulls":3},"中類","件數","金額"]
[null,"內搭",{"$f":"SUMIFS('個人KPISales receipt(MTD）'!J:J,'個人KPISales receipt(MTD）'!A:A,'個人KPISales receipt(MTD）'!A5,'個人KPISales receipt(MTD）'!B:B,'個人KPISales receipt(MTD）'!B4,'個人KPISales receipt(MTD）'!C:C,'個人KPISales receipt(MTD）'!C2)","v":1},{"$f":"SUMIFS('個人KPISales receipt(MTD）'!K:K,'個人KPISales receipt(MTD）'!A:A,'個人KPISales receipt(MTD）'!A5,'個人KPISales receipt(MTD）'!B:B,'個人KPISales receipt(MTD）'!B4,'個人KPISales receipt(MTD）'!C:C,'個人KPISales receipt(MTD）'!C2)","v":792},{"$f":"C45-J45","v":-13},{"$nulls":3},"內搭",14,13489]
[null,"針織上衣",{"$f":"SUMIFS('個人KPISales receipt(MTD）'!J:J,'個人KPISales receipt(MTD）'!A:A,'個人KPISales receipt(MTD）'!A5,'個人KPISales receipt(MTD）'!B:B,'個人KPISales receipt(MTD）'!B4,'個人KPISales receipt(MTD）'!C:C,'個人KPISales receipt(MTD）'!C5)","v":5},{"$f":"SUMIFS('個人KPISales receipt(MTD）'!K:K,'個人KPISales receipt(MTD）'!A:A,'個人KPISales receipt(MTD）'!A5,'個人KPISales receipt(MTD）'!B:B,'個人KPISales receipt(MTD）'!B4,'個人KPISales receipt(MTD）'!C:C,'個人KPISales receipt(MTD）'!C5)","v":5777},1,{"$nulls":3},"針織上衣",4,5076]
[null,"針織褲",{"$f":"SUMIFS('個人KPISales receipt(MTD）'!J:J,'個人KPISales receipt(MTD）'!A:A,'個人KPISales receipt(MTD）'!A5,'個人KPISales receipt(MTD）'!B:B,'個人KPISales receipt(MTD）'!B4,'個人KPISales receipt(MTD）'!C:C,'個人KPISales receipt(MTD）'!C6)","v":3},{"$f":"SUMIFS('個人KPISales receipt(MTD）'!K:K,'個人KPISales receipt(MTD）'!A:A,'個人KPISales receipt(MTD）'!A5,'個人KPISales receipt(MTD）'!B:B,'個人KPISales receipt(MTD）'!B4,'個人KPISales receipt(MTD）'!C:C,'個人KPISales receipt(MTD）'!C6)","v":2235},-6,{"$nulls":3},"針織褲",9,7374]
[null,"梭織上衣",{"$f":"SUMIFS('個人KPISales receipt(MTD）'!J:J,'個人KPISales receipt(MTD）'!A:A,'個人KPISales receipt(MTD）'!A5,'個人KPISales receipt(MTD）'!B:B,'個人KPISales receipt(MTD）'!B4,'個人KPISales receipt(MTD）'!C:C,'個人KPISales receipt(MTD）'!C7)","v":5},{"$f":"SUMIFS('個人KPISales receipt(MTD）'!K:K,'個人KPISales receipt(MTD）'!A:A,'個人KPISales receipt(MTD）'!A5,'個人KPISales receipt(MTD）'!B:B,'個人KPISales receipt(MTD）'!B4,'個人KPISales receipt(MTD）'!C:C,'個人KPISales receipt(MTD）'!C7)","v":8796},-1,{"$nulls":3},"梭織上衣",6,10007]
[null,"梭織褲",{"$f":"SUMIFS('個人KPISales receipt(MTD）'!J:J,'個人KPISales receipt(MTD）'!A:A,'個人KPISales receipt(MTD）'!A5,'個人KPISales receipt(MTD）'!B:B,'個人KPISales receipt(MTD）'!B4,'個人KPISales receipt(MTD）'!C:C,'個人KPISales receipt(MTD）'!C8)","v":0},{"$f":"SUMIFS('個人KPISales receipt(MTD）'!K:K,'個人KPISales receipt(MTD）'!A:A,'個人KPISales receipt(MTD）'!A5,'個人KPISales receipt(MTD）'!B:B,'個人KPISales receipt(MTD）'!B4,'個人KPISales receipt(MTD）'!C:C,'個人KPISales receipt(MTD）'!C8)","v":0},-1,{"$nulls":3},"梭織褲",1,1172]
[null,"短T類",{"$f":"SUMIFS('個人KPISales receipt(MTD）'!J:J,'個人KPISales receipt(MTD）'!A:A,'個人KPISales receipt(MTD）'!A5,'個人KPISales receipt(MTD）'!B:B,'個人KPISales receipt(MTD）'!B4,'個人KPISales receipt(MTD）'!C:C,'個人KPISales receipt(MTD）'!C10)","v":7},{"$f":"SUMIFS('個人KPISales receipt(MTD）'!K:K,'個人KPISales receipt(MTD）'!A:A,'個人KPISales receipt(MTD）'!A5,'個人KPISales receipt(MTD）'!B:B,'個人KPISales receipt(MTD）'!B4,'個人KPISales receipt(MTD）'!C:C,'個人KPISales receipt(MTD）'!C10)","v":4272},7,{"$nulls":3},"短T類",0,0]
[null,"裙裝",{"$f":"SUMIFS('個人KPISales receipt(MTD）'!J:J,'個人KPISales receipt(MTD）'!A:A,'個人KPISales receipt(MTD）'!A5,'個人KPISales receipt(MTD）'!B:B,'個人KPISales receipt(MTD）'!B4,'個人KPISales receipt(MTD）'!C:C,'個人KPISales receipt(MTD）'!C12)","v":1},{"$f":"SUMIFS('個人KPISales receipt(MTD）'!K:K,'個人KPISales receipt(MTD）'!A:A,'個人KPISales receipt(MTD）'!A5,'個人KPISales receipt(MTD）'!B:B,'個人KPISales receipt(MTD）'!B4,'個人KPISales receipt(MTD）'!C:C,'個人KPISales receipt(MTD）'!C12)","v":702},-1,{"$nulls":3},"裙裝",2,2855]
[null,"編織衫",{"$f":"SUMIFS('個人KPISales receipt(MTD）'!J:J,'個人KPISales receipt(MTD）'!A:A,'個人KPISales receipt(MTD）'!A5,'個人KPISales receipt(MTD）'!B:B,'個人KPISales receipt(MTD）'!B4,'個人KPISales receipt(MTD）'!C:C,'個人KPISales receipt(MTD）'!C13)","v":0},{"$f":"SUMIFS('個人KPISales receipt(MTD）'!K:K,'個人KPISales receipt(MTD）'!A:A,'個人KPISales receipt(MTD）'!A5,'個人KPISales receipt(MTD）'!B:B,'個人KPISales receipt(MTD）'!B4,'個人KPISales receipt(MTD）'!C:C,'個人KPISales receipt(MTD）'!C13)","v":0},-1,{"$nulls":3},"編織衫",1,1437]
[null,"襯衫",{"$f":"SUMIFS('個人KPISales receipt(MTD）'!J:J,'個人KPISales receipt(MTD）'!A:A,'個人KPISales receipt(MTD）'!A5,'個人KPISales receipt(MTD）'!B:B,'個人KPISales receipt(MTD）'!B4,'個人KPISales receipt(MTD）'!C:C,'個人KPISales receipt(MTD）'!C14)","v":1},{"$f":"SUMIFS('個人KPISales receipt(MTD）'!K:K,'個人KPISales receipt(MTD）'!A:A,'個人KPISales receipt(MTD）'!A5,'個人KPISales receipt(MTD）'!B:B,'個人KPISales receipt(MTD）'!B4,'個人KPISales receipt(MTD）'!C:C,'個人KPISales receipt(MTD）'!C14)","v":1062},1,{"$nulls":3},"襯衫",0,0]
[null,"棉服",{"$f":"SUMIFS('個人KPISales receipt(MTD）'!J:J,'個人KPISales receipt(MTD）'!A:A,'個人KPISales receipt(MTD）'!A5,'個人KPISales receipt(MTD）'!B:B,'個人KPISales receipt(MTD）'!B4,'個人KPISales receipt(MTD）'!C:C,'個人KPISales receipt(MTD）'!C9)","v":0},{"$f":"SUMIFS('個人KPISales receipt(MTD）'!K:K,'個人KPISales receipt(MTD）'!A:A,'個人KPISales receipt(MTD）'!A5,'個人KPISales receipt(MTD）'!B:B,'個人KPISales receipt(MTD）'!B4,'個人KPISales receipt(MTD）'!C:C,'個人KPISales receipt(MTD）'!C9)","v":0},0,{"$nulls":3},"棉服",0,0]
[null,"羽絨服",{"$f":"SUMIFS('個人KPISales receipt(MTD）'!J:J,'個人KPISales receipt(MTD）'!A:A,'個人KPISales receipt(MTD）'!A5,'個人KPISales receipt(MTD）'!B:B,'個人KPISales receipt(MTD）'!B4,'個人KPISales receipt(MTD）'!C:C,'個人KPISales receipt(MTD）'!C4)","v":0},{"$f":"SUMIFS('個人KPISales receipt(MTD）'!K:K,'個人KPISales receipt(MTD）'!A:A,'個人KPISales receipt(MTD）'!A5,'個人KPISales receipt(MTD）'!B:B,'個人KPISales receipt(MTD）'!B4,'個人KPISales receipt(MTD）'!C:C,'個人KPISales receipt(MTD）'!C4)","v":0},-16,{"$nulls":3},"羽絨服",16,33849]
[null,"鞋",{"$f":"SUMIFS('個人KPISales receipt(MTD）'!J:J,'個人KPISales receipt(MTD）'!A:A,'個人KPISales receipt(MTD）'!A5,'個人KPISales receipt(MTD）'!B:B,'個人KPISales receipt(MTD）'!B6)","v":4},{"$f":"SUMIFS('個人KPISales receipt(MTD）'!K:K,'個人KPISales receipt(MTD）'!A:A,'個人KPISales receipt(MTD）'!A5,'個人KPISales receipt(MTD）'!B:B,'個人KPISales receipt(MTD）'!B6)","v":4133},-12,{"$nulls":3},"鞋",16,16104]
[]
[]
["RYAN","TW 4日"," MTD","ATV","UPT","NO ","QTY",null,"LW"," MTD","ATV","UPT","NO ","QTY"]
[null,null,152152,3381,{"v":4,"d":"4.0"},45,200,null,null,117140,3167,4.5,37,170]
[null,"VSLW",{"$f":"C60-J60","v":35012},{"$f":"D60-K60","v":214},{"$f":"E60-L60","v":-0.5},{"$f":"F60-M60","v":8},{"$f":"G60-N60","v":30}]
[]
[null,"中類","件數","金額","VSLW尚欠",{"$nulls":3},"中類","件數","金額"]
[null,"內搭",{"$f":"SUMIFS('個人KPISales receipt(MTD）'!J:J,'個人KPISales receipt(MTD）'!A:A,'個人KPISales receipt(MTD）'!A6,'個人KPISales receipt(MTD）'!B:B,'個人KPISales receipt(MTD）'!B4,'個人KPISales receipt(MTD）'!C:C,'個人KPISales receipt(MTD）'!C2)","v":1},{"$f":"SUMIFS('個人KPISales receipt(MTD）'!K:K,'個人KPISales receipt(MTD）'!A:A,'個人KPISales receipt(MTD）'!A6,'個人KPISales receipt(MTD）'!B:B,'個人KPISales receipt(MTD）'!B4,'個人KPISales receipt(MTD）'!C:C,'個人KPISales receipt(MTD）'!C2)","v":704},{"$f":"C64-J64","v":-21},{"$nulls":3},"內搭",22,19396]
[null,"針織上衣",{"$f":"SUMIFS('個人KPISales receipt(MTD）'!J:J,'個人KPISales receipt(MTD）'!A:A,'個人KPISales receipt(MTD）'!A6,'個人KPISales receipt(MTD）'!B:B,'個人KPISales receipt(MTD）'!B4,'個人KPISales receipt(MTD）'!C:C,'個人KPISales receipt(MTD）'!C5)","v":2},{"$f":"SUMIFS('個人KPISales receipt(MTD）'!K:K,'個人KPISales receipt(MTD）'!A:A,'個人KPISales receipt(MTD）'!A6,'個人KPISales receipt(MTD）'!B:B,'個人KPISales receipt(MTD）'!B4,'個人KPISales receipt(MTD）'!C:C,'個人KPISales receipt(MTD）'!C5)","v":2712},-1,{"$nulls":3},"針織上衣",3,3708]
[null,"針織褲",{"$f":"SUMIFS('個人KPISales receipt(MTD）'!J:J,'個人KPISales receipt(MTD）'!A:A,'個人KPISales receipt(MTD）'!A6,'個人KPISales receipt(MTD）'!B:B,'個人KPISales receipt(MTD）'!B4,'個人KPISales receipt(MTD）'!C:C,'個人KPISales receipt(MTD）'!C6)","v":1},{"$f":"SUMIFS('個人KPISales receipt(MTD）'!K:K,'個人KPISales receipt(MTD）'!A:A,'個人KPISales receipt(MTD）'!A6,'個人KPISales receipt(MTD）'!B:B,'個人KPISales receipt(MTD）'!B4,'個人KPISales receipt(MTD）'!C:C,'個人KPISales receipt(MTD）'!C6)","v":792},-13,{"$nulls":3},"針織褲",14,13610]
[null,"梭織上衣",{"$f":"SUMIFS('個人KPISales receipt(MTD）'!J:J,'個人KPISales receipt(MTD）'!A:A,'個人KPISales receipt(MTD）'!A6,'個人KPISales receipt(MTD）'!B:B,'個人KPISales receipt(MTD）'!B4,'個人KPISales receipt(MTD）'!C:C,'個人KPISales receipt(MTD）'!C7)","v":4},{"$f":"SUMIFS('個人KPISales receipt(MTD）'!K:K,'個人KPISales receipt(MTD）'!A:A,'個人KPISales receipt(MTD）'!A6,'個人KPISales receipt(MTD）'!B:B,'個人KPISales receipt(MTD）'!B4,'個人KPISales receipt(MTD）'!C:C,'個人KPISales receipt(MTD）'!C7)","v":6474},-1,{"$nulls":3},"梭織上衣",5,7293]
[null,"梭織褲",{"$f":"SUMIFS('個人KPISales receipt(MTD）'!J:J,'個人KPISales receipt(MTD）'!A:A,'個人KPISales receipt(MTD）'!A6,'個人KPISales receipt(MTD）'!B:B,'個人KPISales receipt(MTD）'!B4,'個人KPISales receipt(MTD）'!C:C,'個人KPISales receipt(MTD）'!C8)","v":2},{"$f":"SUMIFS('個人KPISales receipt(MTD）'!K:K,'個人KPISales receipt(MTD）'!A:A,'個人KPISales receipt(MTD）'!A6,'個人KPISales receipt(MTD）'!B:B,'個人KPISales receipt(MTD）'!B4,'個人KPISales receipt(MTD）'!C:C,'個人KPISales receipt(MTD）'!C8)","v":2394},2,{"$nulls":3},"梭織褲",0,0]
[null,"短T類",{"$f":"SUMIFS('個人KPISales receipt(MTD）'!J:J,'個人KPISales receipt(MTD）'!A:A,'個人KPISales receipt(MTD）'!A6,'個人KPISales receipt(MTD）'!B:B,'個人KPISales receipt(MTD）'!B4,'個人KPISales receipt(MTD）'!C:C,'個人KPISales receipt(MTD）'!C10)","v":7},{"$f":"SUMIFS('個人KPISales receipt(MTD）'!K:K,'個人KPISales receipt(MTD）'!A:A,'個人KPISales receipt(MTD）'!A6,'個人KPISales receipt(MTD）'!B:B,'個人KPISales receipt(MTD）'!B4,'個人KPISales receipt(MTD）'!C:C,'個人KPISales receipt(MTD）'!C10)","v":5532},2,{"$nulls":3},"短T類",5,2553]
[null,"裙裝",{"$f":"SUMIFS('個人KPISales receipt(MTD）'!J:J,'個人KPISales receipt(MTD）'!A:A,'個人KPISales receipt(MTD）'!A6,'個人KPISales receipt(MTD）'!B:B,'個人KPISales receipt(MTD）'!B4,'個人KPISales receipt(MTD）'!C:C,'個人KPISales receipt(MTD）'!C12)","v":0},{"$f":"SUMIFS('個人KPISales receipt(MTD）'!K:K,'個人KPISales receipt(MTD）'!A:A,'個人KPISales receipt(MTD）'!A6,'個人KPISales receipt(MTD）'!B:B,'個人KPISales receipt(MTD）'!B4,'個人KPISales receipt(MTD）'!C:C,'個人KPISales receipt(MTD）'!C12)","v":0},0,{"$nulls":3},"裙裝",0,0]
[null,"編織衫",{"$f":"SUMIFS('個人KPISales receipt(MTD）'!J:J,'個人KPISales receipt(MTD）'!A:A,'個人KPISales receipt(MTD）'!A6,'個人KPISales receipt(MTD）'!B:B,'個人KPISales receipt(MTD）'!B4,'個人KPISales receipt(MTD）'!C:C,'個人KPISales receipt(MTD）'!C13)","v":0},{"$f":"SUMIFS('個人KPISales receipt(MTD）'!K:K,'個人KPISales receipt(MTD）'!A:A,'個人KPISales receipt(MTD）'!A6,'個人KPISales receipt(MTD）'!B:B,'個人KPISales receipt(MTD）'!B4,'個人KPISales receipt(MTD）'!C:C,'個人KPISales receipt(MTD）'!C13)","v":0},-6,{"$nulls":3},"編織衫",6,7230]
[null,"襯衫",{"$f":"SUMIFS('個人KPISales receipt(MTD）'!J:J,'個人KPISales receipt(MTD）'!A:A,'個人KPISales receipt(MTD）'!A6,'個人KPISales receipt(MTD）'!B:B,'個人KPISales receipt(MTD）'!B4,'個人KPISales receipt(MTD）'!C:C,'個人KPISales receipt(MTD）'!C14)","v":0},{"$f":"SUMIFS('個人KPISales receipt(MTD）'!K:K,'個人KPISales receipt(MTD）'!A:A,'個人KPISales receipt(MTD）'!A6,'個人KPISales receipt(MTD）'!B:B,'個人KPISales receipt(MTD）'!B4,'個人KPISales receipt(MTD）'!C:C,'個人KPISales receipt(MTD）'!C14)","v":0},0,{"$nulls":3},"襯衫",0,0]
[null,"棉服",{"$f":"SUMIFS('個人KPISales receipt(MTD）'!J:J,'個人KPISales receipt(MTD）'!A:A,'個人KPISales receipt(MTD）'!A6,'個人KPISales receipt(MTD）'!B:B,'個人KPISales receipt(MTD）'!B4,'個人KPISales receipt(MTD）'!C:C,'個人KPISales receipt(MTD）'!C9)","v":0},{"$f":"SUMIFS('個人KPISales receipt(MTD）'!K:K,'個人KPISales receipt(MTD）'!A:A,'個人KPISales receipt(MTD）'!A6,'個人KPISales receipt(MTD）'!B:B,'個人KPISales receipt(MTD）'!B4,'個人KPISales receipt(MTD）'!C:C,'個人KPISales receipt(MTD）'!C9)","v":0},-1,{"$nulls":3},"棉服",1,3074]
[null,"羽絨服",{"$f":"SUMIFS('個人KPISales receipt(MTD）'!J:J,'個人KPISales receipt(MTD）'!A:A,'個人KPISales receipt(MTD）'!A6,'個人KPISales receipt(MTD）'!B:B,'個人KPISales receipt(MTD）'!B4,'個人KPISales receipt(MTD）'!C:C,'個人KPISales receipt(MTD）'!C4)","v":0},{"$f":"SUMIFS('個人KPISales receipt(MTD）'!K:K,'個人KPISales receipt(MTD）'!A:A,'個人KPISales receipt(MTD）'!A6,'個人KPISales receipt(MTD）'!B:B,'個人KPISales receipt(MTD）'!B4,'個人KPISales receipt(MTD）'!C:C,'個人KPISales receipt(MTD）'!C4)","v":0},-15,{"$nulls":3},"羽絨服",15,39517]
[null,"鞋",{"$f":"SUMIFS('個人KPISales receipt(MTD）'!J:J,'個人KPISales receipt(MTD）'!A:A,'個人KPISales receipt(MTD）'!A6,'個人KPISales receipt(MTD）'!B:B,'個人KPISales receipt(MTD）'!B6)","v":5},{"$f":"SUMIFS('個人KPISales receipt(MTD）'!K:K,'個人KPISales receipt(MTD）'!A:A,'個人KPISales receipt(MTD）'!A6,'個人KPISales receipt(MTD）'!B:B,'個人KPISales receipt(MTD）'!B6)","v":4638},-17,{"$nulls":3},"鞋",22,18405]
[]
[]
["FANNY","TW 6日"," MTD","ATV","UPT","NO ","QTY",null,"LW"," MTD","ATV","UPT","NO ","QTY"]
[null,null,187748,3237,4.7,49,225,null,null,112080,3187,4.1,33,143]
[null,"VSLW",{"$f":"C79-J79","v":75668},{"$f":"D79-K79","v":50},{"$f":"E79-L79","v":{"v":0.6000000000000005,"d":"0.6"}},{"$f":"F79-M79","v":16},{"$f":"G79-N79","v":82}]
[]
[null,"中類","件數","金額","VSLW尚欠",{"$nulls":3},"中類","件數","金額"]
[null,"內搭",{"$f":"SUMIFS('個人KPISales receipt(MTD）'!J:J,'個人KPISales receipt(MTD）'!A:A,'個人KPISales receipt(MTD）'!A7,'個人KPISales receipt(MTD）'!B:B,'個人KPISales receipt(MTD）'!B4,'個人KPISales receipt(MTD）'!C:C,'個人KPISales receipt(MTD）'!C2)","v":2},{"$f":"SUMIFS('個人KPISales receipt(MTD）'!K:K,'個人KPISales receipt(MTD）'!A:A,'個人KPISales receipt(MTD）'!A7,'個人KPISales receipt(MTD）'!B:B,'個人KPISales receipt(MTD）'!B4,'個人KPISales receipt(MTD）'!C:C,'個人KPISales receipt(MTD）'!C2)","v":2216},-14,{"$nulls":3},"內搭",18,16029]
[null,"針織上衣",{"$f":"SUMIFS('個人KPISales receipt(MTD）'!J:J,'個人KPISales receipt(MTD）'!A:A,'個人KPISales receipt(MTD）'!A7,'個人KPISales receipt(MTD）'!B:B,'個人KPISales receipt(MTD）'!B4,'個人KPISales receipt(MTD）'!C:C,'個人KPISales receipt(MTD）'!C5)","v":1},{"$f":"SUMIFS('個人KPISales receipt(MTD）'!K:K,'個人KPISales receipt(MTD）'!A:A,'個人KPISales receipt(MTD）'!A7,'個人KPISales receipt(MTD）'!B:B,'個人KPISales receipt(MTD）'!B4,'個人KPISales receipt(MTD）'!C:C,'個人KPISales receipt(MTD）'!C5)","v":1184},{"$f":"C84-J84","v":-2},{"$nulls":3},"針織上衣",3,3867]
[null,"針織褲",{"$f":"SUMIFS('個人KPISales receipt(MTD）'!J:J,'個人KPISales receipt(MTD）'!A:A,'個人KPISales receipt(MTD）'!A7,'個人KPISales receipt(MTD）'!B:B,'個人KPISales receipt(MTD）'!B4,'個人KPISales receipt(MTD）'!C:C,'個人KPISales receipt(MTD）'!C6)","v":1},{"$f":"SUMIFS('個人KPISales receipt(MTD）'!K:K,'個人KPISales receipt(MTD）'!A:A,'個人KPISales receipt(MTD）'!A7,'個人KPISales receipt(MTD）'!B:B,'個人KPISales receipt(MTD）'!B4,'個人KPISales receipt(MTD）'!C:C,'個人KPISales receipt(MTD）'!C6)","v":862},-17,{"$nulls":3},"針織褲",18,15002]
[null,"梭織上衣",{"$f":"SUMIFS('個人KPISales receipt(MTD）'!J:J,'個人KPISales receipt(MTD）'!A:A,'個人KPISales receipt(MTD）'!A7,'個人KPISales receipt(MTD）'!B:B,'個人KPISales receipt(MTD）'!B4,'個人KPISales receipt(MTD）'!C:C,'個人KPISales receipt(MTD）'!C7)","v":5},{"$f":"SUMIFS('個人KPISales receipt(MTD）'!K:K,'個人KPISales receipt(MTD）'!A:A,'個人KPISales receipt(MTD）'!A7,'個人KPISales receipt(MTD）'!B:B,'個人KPISales receipt(MTD）'!B4,'個人KPISales receipt(MTD）'!C:C,'個人KPISales receipt(MTD）'!C7)","v":7275},3,{"$nulls":3},"梭織上衣",2,3298]
[null,"梭織褲",{"$f":"SUMIFS('個人KPISales receipt(MTD）'!J:J,'個人KPISales receipt(MTD）'!A:A,'個人KPISales receipt(MTD）'!A7,'個人KPISales receipt(MTD）'!B:B,'個人KPISales receipt(MTD）'!B4,'個人KPISales receipt(MTD）'!C:C,'個人KPISales receipt(MTD）'!C8)","v":0},{"$f":"SUMIFS('個人KPISales receipt(MTD）'!K:K,'個人KPISales receipt(MTD）'!A:A,'個人KPISales receipt(MTD）'!A7,'個人KPISales receipt(MTD）'!B:B,'個人KPISales receipt(MTD）'!B4,'個人KPISales receipt(MTD）'!C:C,'個人KPISales receipt(MTD）'!C8)","v":0},-4,{"$nulls":3},"梭織褲",4,5676]
[null,"短T類",{"$f":"SUMIFS('個人KPISales receipt(MTD）'!J:J,'個人KPISales receipt(MTD）'!A:A,'個人KPISales receipt(MTD）'!A7,'個人KPISales receipt(MTD）'!B:B,'個人KPISales receipt(MTD）'!B4,'個人KPISales receipt(MTD）'!C:C,'個人KPISales receipt(MTD）'!C10)","v":12},{"$f":"SUMIFS('個人KPISales receipt(MTD）'!K:K,'個人KPISales receipt(MTD）'!A:A,'個人KPISales receipt(MTD）'!A7,'個人KPISales receipt(MTD）'!B:B,'個人KPISales receipt(MTD）'!B4,'個人KPISales receipt(MTD）'!C:C,'個人KPISales receipt(MTD）'!C10)","v":10598},11,{"$nulls":3},"短T類",1,510]
[null,"裙裝",{"$f":"SUMIFS('個人KPISales receipt(MTD）'!J:J,'個人KPISales receipt(MTD）'!A:A,'個人KPISales receipt(MTD）'!A7,'個人KPISales receipt(MTD）'!B:B,'個人KPISales receipt(MTD）'!B4,'個人KPISales receipt(MTD）'!C:C,'個人KPISales receipt(MTD）'!C12)","v":1},{"$f":"SUMIFS('個人KPISales receipt(MTD）'!K:K,'個人KPISales receipt(MTD）'!A:A,'個人KPISales receipt(MTD）'!A7,'個人KPISales receipt(MTD）'!B:B,'個人KPISales receipt(MTD）'!B4,'個人KPISales receipt(MTD）'!C:C,'個人KPISales receipt(MTD）'!C12)","v":1344},1,{"$nulls":3},"裙裝",0,0]
[null,"編織衫",{"$f":"SUMIFS('個人KPISales receipt(MTD）'!J:J,'個人KPISales receipt(MTD）'!A:A,'個人KPISales receipt(MTD）'!A7,'個人KPISales receipt(MTD）'!B:B,'個人KPISales receipt(MTD）'!B4,'個人KPISales receipt(MTD）'!C:C,'個人KPISales receipt(MTD）'!C13)","v":1},{"$f":"SUMIFS('個人KPISales receipt(MTD）'!K:K,'個人KPISales receipt(MTD）'!A:A,'個人KPISales receipt(MTD）'!A7,'個人KPISales receipt(MTD）'!B:B,'個人KPISales receipt(MTD）'!B4,'個人KPISales receipt(MTD）'!C:C,'個人KPISales receipt(MTD）'!C13)","v":1332},-6,{"$nulls":3},"編織衫",7,8213]
[null,"襯衫",{"$f":"SUMIFS('個人KPISales receipt(MTD）'!J:J,'個人KPISales receipt(MTD）'!A:A,'個人KPISales receipt(MTD）'!A7,'個人KPISales receipt(MTD）'!B:B,'個人KPISales receipt(MTD）'!B4,'個人KPISales receipt(MTD）'!C:C,'個人KPISales receipt(MTD）'!C14)","v":0},{"$f":"SUMIFS('個人KPISales receipt(MTD）'!K:K,'個人KPISales receipt(MTD）'!A:A,'個人KPISales receipt(MTD）'!A7,'個人KPISales receipt(MTD）'!B:B,'個人KPISales receipt(MTD）'!B4,'個人KPISales receipt(MTD）'!C:C,'個人KPISales receipt(MTD）'!C14)","v":0},-1,{"$nulls":3},"襯衫",1,969]
[null,"棉服",{"$f":"SUMIFS('個人KPISales receipt(MTD）'!J:J,'個人KPISales receipt(MTD）'!A:A,'個人KPISales receipt(MTD）'!A7,'個人KPISales receipt(MTD）'!B:B,'個人KPISales receipt(MTD）'!B4,'個人KPISales receipt(MTD）'!C:C,'個人KPISales receipt(MTD）'!C9)","v":0},{"$f":"SUMIFS('個人KPISales receipt(MTD）'!K:K,'個人KPISales receipt(MTD）'!A:A,'個人KPISales receipt(MTD）'!A7,'個人KPISales receipt(MTD）'!B:B,'個人KPISales receipt(MTD）'!B4,'個人KPISales receipt(MTD）'!C:C,'個人KPISales receipt(MTD）'!C9)","v":0},-1,{"$nulls":3},"棉服",1,3213]
[null,"羽絨服",{"$f":"SUMIFS('個人KPISales receipt(MTD）'!J:J,'個人KPISales receipt(MTD）'!A:A,'個人KPISales receipt(MTD）'!A7,'個人KPISales receipt(MTD）'!B:B,'個人KPISales receipt(MTD）'!B4,'個人KPISales receipt(MTD）'!C:C,'個人KPISales receipt(MTD）'!C4)","v":0},{"$f":"SUMIFS('個人KPISales receipt(MTD）'!K:K,'個人KPISales receipt(MTD）'!A:A,'個人KPISales receipt(MTD）'!A7,'個人KPISales receipt(MTD）'!B:B,'個人KPISales receipt(MTD）'!B4,'個人KPISales receipt(MTD）'!C:C,'個人KPISales receipt(MTD）'!C4)","v":0},-15,{"$nulls":3},"羽絨服",15,34913]
[null,"鞋",{"$f":"SUMIFS('個人KPISales receipt(MTD）'!J:J,'個人KPISales receipt(MTD）'!A:A,'個人KPISales receipt(MTD）'!A7,'個人KPISales receipt(MTD）'!B:B,'個人KPISales receipt(MTD）'!B6)","v":6},{"$f":"SUMIFS('個人KPISales receipt(MTD）'!K:K,'個人KPISales receipt(MTD）'!A:A,'個人KPISales receipt(MTD）'!A7,'個人KPISales receipt(MTD）'!B:B,'個人KPISales receipt(MTD）'!B6)","v":5298},-10,{"$nulls":3},"鞋",16,17862]
[]
[]
["CARMEN","TW 4日"," MTD","ATV","UPT","NO ","QTY",null,"LW"," MTD","ATV","UPT","NO ","QTY"]
[null,null,100295,2711,{"v":5,"d":"5.0"},37,170,null,null,117588,2739,4.4,43,188]
[null,"VSLW",{"$f":"C98-J98","v":-17293},{"$f":"D98-K98","v":-28},{"$f":"E98-L98","v":{"v":0.5999999999999996,"d":"0.6"}},{"$f":"F98-M98","v":-6},{"$f":"G98-N98","v":-18}]
[null,null,56244,2017,3.4,28,97]
[null,"中類","件數","金額","VSLW尚欠",{"$nulls":3},"中類","件數","金額"]
[null,"內搭",{"$f":"SUMIFS('個人KPISales receipt(MTD）'!J:J,'個人KPISales receipt(MTD）'!A:A,'個人KPISales receipt(MTD）'!A8,'個人KPISales receipt(MTD）'!B:B,'個人KPISales receipt(MTD）'!B4,'個人KPISales receipt(MTD）'!C:C,'個人KPISales receipt(MTD）'!C2)","v":5},{"$f":"SUMIFS('個人KPISales receipt(MTD）'!K:K,'個人KPISales receipt(MTD）'!A:A,'個人KPISales receipt(MTD）'!A8,'個人KPISales receipt(MTD）'!B:B,'個人KPISales receipt(MTD）'!B4,'個人KPISales receipt(MTD）'!C:C,'個人KPISales receipt(MTD）'!C2)","v":3960},{"$f":"C102-J102","v":-20},{"$nulls":3},"內搭",25,20838]
[null,"針織上衣",{"$f":"SUMIFS('個人KPISales receipt(MTD）'!J:J,'個人KPISales receipt(MTD）'!A:A,'個人KPISales receipt(MTD）'!A8,'個人KPISales receipt(MTD）'!B:B,'個人KPISales receipt(MTD）'!B4,'個人KPISales receipt(MTD）'!C:C,'個人KPISales receipt(MTD）'!C5)","v":3},{"$f":"SUMIFS('個人KPISales receipt(MTD）'!K:K,'個人KPISales receipt(MTD）'!A:A,'個人KPISales receipt(MTD）'!A8,'個人KPISales receipt(MTD）'!B:B,'個人KPISales receipt(MTD）'!B4,'個人KPISales receipt(MTD）'!C:C,'個人KPISales receipt(MTD）'!C5)","v":3588},0,{"$nulls":3},"針織上衣",3,4459]
[null,"針織褲",{"$f":"SUMIFS('個人KPISales receipt(MTD）'!J:J,'個人KPISales receipt(MTD）'!A:A,'個人KPISales receipt(MTD）'!A8,'個人KPISales receipt(MTD）'!B:B,'個人KPISales receipt(MTD）'!B4,'個人KPISales receipt(MTD）'!C:C,'個人KPISales receipt(MTD）'!C6)","v":4},{"$f":"SUMIFS('個人KPISales receipt(MTD）'!K:K,'個人KPISales receipt(MTD）'!A:A,'個人KPISales receipt(MTD）'!A8,'個人KPISales receipt(MTD）'!B:B,'個人KPISales receipt(MTD）'!B4,'個人KPISales receipt(MTD）'!C:C,'個人KPISales receipt(MTD）'!C6)","v":3065},-10,{"$nulls":3},"針織褲",14,12555]
[null,"梭織上衣",{"$f":"SUMIFS('個人KPISales receipt(MTD）'!J:J,'個人KPISales receipt(MTD）'!A:A,'個人KPISales receipt(MTD）'!A8,'個人KPISales receipt(MTD）'!B:B,'個人KPISales receipt(MTD）'!B4,'個人KPISales receipt(MTD）'!C:C,'個人KPISales receipt(MTD）'!C7)","v":2},{"$f":"SUMIFS('個人KPISales receipt(MTD）'!K:K,'個人KPISales receipt(MTD）'!A:A,'個人KPISales receipt(MTD）'!A8,'個人KPISales receipt(MTD）'!B:B,'個人KPISales receipt(MTD）'!B4,'個人KPISales receipt(MTD）'!C:C,'個人KPISales receipt(MTD）'!C7)","v":4266},-6,{"$nulls":3},"梭織上衣",8,13560]
[null,"梭織褲",{"$f":"SUMIFS('個人KPISales receipt(MTD）'!J:J,'個人KPISales receipt(MTD）'!A:A,'個人KPISales receipt(MTD）'!A8,'個人KPISales receipt(MTD）'!B:B,'個人KPISales receipt(MTD）'!B4,'個人KPISales receipt(MTD）'!C:C,'個人KPISales receipt(MTD）'!C8)","v":2},{"$f":"SUMIFS('個人KPISales receipt(MTD）'!K:K,'個人KPISales receipt(MTD）'!A:A,'個人KPISales receipt(MTD）'!A8,'個人KPISales receipt(MTD）'!B:B,'個人KPISales receipt(MTD）'!B4,'個人KPISales receipt(MTD）'!C:C,'個人KPISales receipt(MTD）'!C8)","v":2406},0,{"$nulls":3},"梭織褲",2,2307]
[null,"短T類",{"$f":"SUMIFS('個人KPISales receipt(MTD）'!J:J,'個人KPISales receipt(MTD）'!A:A,'個人KPISales receipt(MTD）'!A8,'個人KPISales receipt(MTD）'!B:B,'個人KPISales receipt(MTD）'!B4,'個人KPISales receipt(MTD）'!C:C,'個人KPISales receipt(MTD）'!C10)","v":6},{"$f":"SUMIFS('個人KPISales receipt(MTD）'!K:K,'個人KPISales receipt(MTD）'!A:A,'個人KPISales receipt(MTD）'!A8,'個人KPISales receipt(MTD）'!B:B,'個人KPISales receipt(MTD）'!B4,'個人KPISales receipt(MTD）'!C:C,'個人KPISales receipt(MTD）'!C10)","v":3314},2,{"$nulls":3},"短T類",4,2119]
[null,"裙裝",{"$f":"SUMIFS('個人KPISales receipt(MTD）'!J:J,'個人KPISales receipt(MTD）'!A:A,'個人KPISales receipt(MTD）'!A8,'個人KPISales receipt(MTD）'!B:B,'個人KPISales receipt(MTD）'!B4,'個人KPISales receipt(MTD）'!C:C,'個人KPISales receipt(MTD）'!C12)","v":1},{"$f":"SUMIFS('個人KPISales receipt(MTD）'!K:K,'個人KPISales receipt(MTD）'!A:A,'個人KPISales receipt(MTD）'!A8,'個人KPISales receipt(MTD）'!B:B,'個人KPISales receipt(MTD）'!B4,'個人KPISales receipt(MTD）'!C:C,'個人KPISales receipt(MTD）'!C12)","v":1512},1,{"$nulls":3},"裙裝",0,0]
[null,"編織衫",{"$f":"SUMIFS('個人KPISales receipt(MTD）'!J:J,'個人KPISales receipt(MTD）'!A:A,'個人KPISales receipt(MTD）'!A8,'個人KPISales receipt(MTD）'!B:B,'個人KPISales receipt(MTD）'!B4,'個人KPISales receipt(MTD）'!C:C,'個人KPISales receipt(MTD）'!C13)","v":0},{"$f":"SUMIFS('個人KPISales receipt(MTD）'!K:K,'個人KPISales receipt(MTD）'!A:A,'個人KPISales receipt(MTD）'!A8,'個人KPISales receipt(MTD）'!B:B,'個人KPISales receipt(MTD）'!B4,'個人KPISales receipt(MTD）'!C:C,'個人KPISales receipt(MTD）'!C13)","v":0},-6,{"$nulls":3},"編織衫",6,7580]
[null,"襯衫",{"$f":"SUMIFS('個人KPISales receipt(MTD）'!J:J,'個人KPISales receipt(MTD）'!A:A,'個人KPISales receipt(MTD）'!A8,'個人KPISales receipt(MTD）'!B:B,'個人KPISales receipt(MTD）'!B4,'個人KPISales receipt(MTD）'!C:C,'個人KPISales receipt(MTD）'!C14)","v":0},{"$f":"SUMIFS('個人KPISales receipt(MTD）'!K:K,'個人KPISales receipt(MTD）'!A:A,'個人KPISales receipt(MTD）'!A8,'個人KPISales receipt(MTD）'!B:B,'個人KPISales receipt(MTD）'!B4,'個人KPISales receipt(MTD）'!C:C,'個人KPISales receipt(MTD）'!C14)","v":0},0,{"$nulls":3},"襯衫",0,0]
[null,"棉服",{"$f":"SUMIFS('個人KPISales receipt(MTD）'!J:J,'個人KPISales receipt(MTD）'!A:A,'個人KPISales receipt(MTD）'!A8,'個人KPISales receipt(MTD）'!B:B,'個人KPISales receipt(MTD）'!B4,'個人KPISales receipt(MTD）'!C:C,'個人KPISales receipt(MTD）'!C9)","v":1},{"$f":"SUMIFS('個人KPISales receipt(MTD）'!K:K,'個人KPISales receipt(MTD）'!A:A,'個人KPISales receipt(MTD）'!A8,'個人KPISales receipt(MTD）'!B:B,'個人KPISales receipt(MTD）'!B4,'個人KPISales receipt(MTD）'!C:C,'個人KPISales receipt(MTD）'!C9)","v":2436},0,{"$nulls":3},"棉服",1,3298]
[null,"羽絨服",{"$f":"SUMIFS('個人KPISales receipt(MTD）'!J:J,'個人KPISales receipt(MTD）'!A:A,'個人KPISales receipt(MTD）'!A8,'個人KPISales receipt(MTD）'!B:B,'個人KPISales receipt(MTD）'!B4,'個人KPISales receipt(MTD）'!C:C,'個人KPISales receipt(MTD）'!C4)","v":1},{"$f":"SUMIFS('個人KPISales receipt(MTD）'!K:K,'個人KPISales receipt(MTD）'!A:A,'個人KPISales receipt(MTD）'!A8,'個人KPISales receipt(MTD）'!B:B,'個人KPISales receipt(MTD）'!B4,'個人KPISales receipt(MTD）'!C:C,'個人KPISales receipt(MTD）'!C4)","v":1036},-11,{"$nulls":3},"羽絨服",12,24010]
[null,"鞋",{"$f":"SUMIFS('個人KPISales receipt(MTD）'!J:J,'個人KPISales receipt(MTD）'!A:A,'個人KPISales receipt(MTD）'!A8,'個人KPISales receipt(MTD）'!B:B,'個人KPISales receipt(MTD）'!B6)","v":5},{"$f":"SUMIFS('個人KPISales receipt(MTD）'!K:K,'個人KPISales receipt(MTD）'!A:A,'個人KPISales receipt(MTD）'!A8,'個人KPISales receipt(MTD）'!B:B,'個人KPISales receipt(MTD）'!B6)","v":4267},-23,{"$nulls":3},"鞋",28,23774]
[]
["Anson","TW 4日"," MTD","ATV","UPT","NO ","QTY",null,"LW"," MTD","ATV","UPT","NO ","QTY"]
[null,null,100295,2711,{"v":5,"d":"5.0"},37,170,null,null,117588,2739,4.4,43,188]
[null,"VSLW",{"$f":"C116-J116","v":-17293},{"$f":"D116-K116","v":-28},{"$f":"E116-L116","v":{"v":0.5999999999999996,"d":"0.6"}},{"$f":"F116-M116","v":-6},{"$f":"G116-N116","v":-18}]
[null,null,56244,2017,3.4,28,97]
[null,"中類","件數","金額","VSLW尚欠",{"$nulls":3},"中類","件數","金額"]
[null,"內搭",{"$f":"SUMIFS('個人KPISales receipt(MTD）'!J:J,'個人KPISales receipt(MTD）'!A:A,'個人KPISales receipt(MTD）'!A4,'個人KPISales receipt(MTD）'!B:B,'個人KPISales receipt(MTD）'!B4,'個人KPISales receipt(MTD）'!C:C,'個人KPISales receipt(MTD）'!C2)","v":0},{"$f":"SUMIFS('個人KPISales receipt(MTD）'!K:K,'個人KPISales receipt(MTD）'!A:A,'個人KPISales receipt(MTD）'!A4,'個人KPISales receipt(MTD）'!B:B,'個人KPISales receipt(MTD）'!B4,'個人KPISales receipt(MTD）'!C:C,'個人KPISales receipt(MTD）'!C2)","v":0},{"$f":"C120-J120","v":-25},{"$nulls":3},"內搭",25,20838]
[null,"針織上衣",{"$f":"SUMIFS('個人KPISales receipt(MTD）'!J:J,'個人KPISales receipt(MTD）'!A:A,'個人KPISales receipt(MTD）'!A4,'個人KPISales receipt(MTD）'!B:B,'個人KPISales receipt(MTD）'!B4,'個人KPISales receipt(MTD）'!C:C,'個人KPISales receipt(MTD）'!C5)","v":1},{"$f":"SUMIFS('個人KPISales receipt(MTD）'!K:K,'個人KPISales receipt(MTD）'!A:A,'個人KPISales receipt(MTD）'!A4,'個人KPISales receipt(MTD）'!B:B,'個人KPISales receipt(MTD）'!B4,'個人KPISales receipt(MTD）'!C:C,'個人KPISales receipt(MTD）'!C5)","v":1480},-2,{"$nulls":3},"針織上衣",3,4459]
[null,"針織褲",{"$f":"SUMIFS('個人KPISales receipt(MTD）'!J:J,'個人KPISales receipt(MTD）'!A:A,'個人KPISales receipt(MTD）'!A4,'個人KPISales receipt(MTD）'!B:B,'個人KPISales receipt(MTD）'!B4,'個人KPISales receipt(MTD）'!C:C,'個人KPISales receipt(MTD）'!C6)","v":2},{"$f":"SUMIFS('個人KPISales receipt(MTD）'!K:K,'個人KPISales receipt(MTD）'!A:A,'個人KPISales receipt(MTD）'!A4,'個人KPISales receipt(MTD）'!B:B,'個人KPISales receipt(MTD）'!B4,'個人KPISales receipt(MTD）'!C:C,'個人KPISales receipt(MTD）'!C6)","v":1762},-12,{"$nulls":3},"針織褲",14,12555]
[null,"梭織上衣",{"$f":"SUMIFS('個人KPISales receipt(MTD）'!J:J,'個人KPISales receipt(MTD）'!A:A,'個人KPISales receipt(MTD）'!A4,'個人KPISales receipt(MTD）'!B:B,'個人KPISales receipt(MTD）'!B4,'個人KPISales receipt(MTD）'!C:C,'個人KPISales receipt(MTD）'!C7)","v":5},{"$f":"SUMIFS('個人KPISales receipt(MTD）'!K:K,'個人KPISales receipt(MTD）'!A:A,'個人KPISales receipt(MTD）'!A4,'個人KPISales receipt(MTD）'!B:B,'個人KPISales receipt(MTD）'!B4,'個人KPISales receipt(MTD）'!C:C,'個人KPISales receipt(MTD）'!C7)","v":8647},-3,{"$nulls":3},"梭織上衣",8,13560]
[null,"梭織褲",{"$f":"SUMIFS('個人KPISales receipt(MTD）'!J:J,'個人KPISales receipt(MTD）'!A:A,'個人KPISales receipt(MTD）'!A4,'個人KPISales receipt(MTD）'!B:B,'個人KPISales receipt(MTD）'!B4,'個人KPISales receipt(MTD）'!C:C,'個人KPISales receipt(MTD）'!C8)","v":0},{"$f":"SUMIFS('個人KPISales receipt(MTD）'!K:K,'個人KPISales receipt(MTD）'!A:A,'個人KPISales receipt(MTD）'!A4,'個人KPISales receipt(MTD）'!B:B,'個人KPISales receipt(MTD）'!B4,'個人KPISales receipt(MTD）'!C:C,'個人KPISales receipt(MTD）'!C8)","v":0},-2,{"$nulls":3},"梭織褲",2,2307]
[null,"短T類",{"$f":"SUMIFS('個人KPISales receipt(MTD）'!J:J,'個人KPISales receipt(MTD）'!A:A,'個人KPISales receipt(MTD）'!A4,'個人KPISales receipt(MTD）'!B:B,'個人KPISales receipt(MTD）'!B4,'個人KPISales receipt(MTD）'!C:C,'個人KPISales receipt(MTD）'!C10)","v":9},{"$f":"SUMIFS('個人KPISales receipt(MTD）'!K:K,'個人KPISales receipt(MTD）'!A:A,'個人KPISales receipt(MTD）'!A4,'個人KPISales receipt(MTD）'!B:B,'個人KPISales receipt(MTD）'!B4,'個人KPISales receipt(MTD）'!C:C,'個人KPISales receipt(MTD）'!C10)","v":5408},5,{"$nulls":3},"短T類",4,2119]
[null,"裙裝",{"$f":"SUMIFS('個人KPISales receipt(MTD）'!J:J,'個人KPISales receipt(MTD）'!A:A,'個人KPISales receipt(MTD）'!A4,'個人KPISales receipt(MTD）'!B:B,'個人KPISales receipt(MTD）'!B4,'個人KPISales receipt(MTD）'!C:C,'個人KPISales receipt(MTD）'!C12)","v":0},{"$f":"SUMIFS('個人KPISales receipt(MTD）'!K:K,'個人KPISales receipt(MTD）'!A:A,'個人KPISales receipt(MTD）'!A4,'個人KPISales receipt(MTD）'!B:B,'個人KPISales receipt(MTD）'!B4,'個人KPISales receipt(MTD）'!C:C,'個人KPISales receipt(MTD）'!C12)","v":0},0,{"$nulls":3},"裙裝",0,0]
[null,"編織衫",{"$f":"SUMIFS('個人KPISales receipt(MTD）'!J:J,'個人KPISales receipt(MTD）'!A:A,'個人KPISales receipt(MTD）'!A4,'個人KPISales receipt(MTD）'!B:B,'個人KPISales receipt(MTD）'!B4,'個人KPISales receipt(MTD）'!C:C,'個人KPISales receipt(MTD）'!C13)","v":1},{"$f":"SUMIFS('個人KPISales receipt(MTD）'!K:K,'個人KPISales receipt(MTD）'!A:A,'個人KPISales receipt(MTD）'!A4,'個人KPISales receipt(MTD）'!B:B,'個人KPISales receipt(MTD）'!B4,'個人KPISales receipt(MTD）'!C:C,'個人KPISales receipt(MTD）'!C13)","v":1980},-5,{"$nulls":3},"編織衫",6,7580]
[null,"襯衫",{"$f":"SUMIFS('個人KPISales receipt(MTD）'!J:J,'個人KPISales receipt(MTD）'!A:A,'個人KPISales receipt(MTD）'!A4,'個人KPISales receipt(MTD）'!B:B,'個人KPISales receipt(MTD）'!B4,'個人KPISales receipt(MTD）'!C:C,'個人KPISales receipt(MTD）'!C14)","v":1},{"$f":"SUMIFS('個人KPISales receipt(MTD）'!K:K,'個人KPISales receipt(MTD）'!A:A,'個人KPISales receipt(MTD）'!A4,'個人KPISales receipt(MTD）'!B:B,'個人KPISales receipt(MTD）'!B4,'個人KPISales receipt(MTD）'!C:C,'個人KPISales receipt(MTD）'!C14)","v":1062},1,{"$nulls":3},"襯衫",0,0]
[null,"棉服",{"$f":"SUMIFS('個人KPISales receipt(MTD）'!J:J,'個人KPISales receipt(MTD）'!A:A,'個人KPISales receipt(MTD）'!A4,'個人KPISales receipt(MTD）'!B:B,'個人KPISales receipt(MTD）'!B4,'個人KPISales receipt(MTD）'!C:C,'個人KPISales receipt(MTD）'!C9)","v":0},{"$f":"SUMIFS('個人KPISales receipt(MTD）'!K:K,'個人KPISales receipt(MTD）'!A:A,'個人KPISales receipt(MTD）'!A4,'個人KPISales receipt(MTD）'!B:B,'個人KPISales receipt(MTD）'!B4,'個人KPISales receipt(MTD）'!C:C,'個人KPISales receipt(MTD）'!C9)","v":0},-1,{"$nulls":3},"棉服",1,3298]
[null,"羽絨服",{"$f":"SUMIFS('個人KPISales receipt(MTD）'!J:J,'個人KPISales receipt(MTD）'!A:A,'個人KPISales receipt(MTD）'!A4,'個人KPISales receipt(MTD）'!B:B,'個人KPISales receipt(MTD）'!B4,'個人KPISales receipt(MTD）'!C:C,'個人KPISales receipt(MTD）'!C4)","v":2},{"$f":"SUMIFS('個人KPISales receipt(MTD）'!K:K,'個人KPISales receipt(MTD）'!A:A,'個人KPISales receipt(MTD）'!A4,'個人KPISales receipt(MTD）'!B:B,'個人KPISales receipt(MTD）'!B4,'個人KPISales receipt(MTD）'!C:C,'個人KPISales receipt(MTD）'!C4)","v":5152},-10,{"$nulls":3},"羽絨服",12,24010]
[null,"鞋",{"$f":"SUMIFS('個人KPISales receipt(MTD）'!J:J,'個人KPISales receipt(MTD）'!A:A,'個人KPISales receipt(MTD）'!A4,'個人KPISales receipt(MTD）'!B:B,'個人KPISales receipt(MTD）'!B6)","v":9},{"$f":"SUMIFS('個人KPISales receipt(MTD）'!K:K,'個人KPISales receipt(MTD）'!A:A,'個人KPISales receipt(MTD）'!A4,'個人KPISales receipt(MTD）'!B:B,'個人KPISales receipt(MTD）'!B6)","v":8375},-19,{"$nulls":3},"鞋",28,23774]

{"sheet":"Sales receipt((當天)","index":2,"n_rows":186,"n_cols":14,"rows_kept":186}
["營業員","大類","中類","商品名稱","季節","系列","子系列","性別","上市日期","銷售數量","結算金額","銷售日期","注冊時間","回流判斷"]
["M0989 Susanna","广宣用品","內衣類","DOWN JKT","冬季","ATHLETICS","A.P.","FEMALE",{"$nulls":5},"回流"]
["M2172 Janet","其它","內搭","PAD JKT","春季","FASHION","BLUE","MALE",{"$nulls":5},"新注册"]
["M3060 Anson","服装","羽絨服","PAD VEST","秋季","LIFESTYLE","EXPLORE","UNISEX",{"$nulls":5},"(空白)"]
["M1436 Khaki","配件","針織上衣","SKIRT","夏季","(空白)","FILA MILANO","(空白)"]
["M2798 Ryan","鞋类","針織褲","SWEAT","常青",null,"FILA ORIGINALE"]
["M2801 Fanny","(空白)","梭織上衣","WOVEN JKT","(空白)",null,"FITNESS"]
["M2902 Carmen",null,"梭織褲","WOVEN PANTS",null,null,"GOLF"]
[null,null,"棉服","上衣两件套",null,null,"HERITAGE"]
[null,null,"短T類","中长款羽绒服",null,null,"ICONA"]
[null,null,"滑雪服","长款羽绒服",null,null,"MODERN HERITAGE"]
[null,null,"裙裝","休闲西装",null,null,"MODERNO"]
[null,null,"編織衫","冲锋衣",null,null,"ORIGINALE"]
[null,null,"襯衫","冲锋衣两件套",null,null,"SKI"]
[{"$nulls":3},"羽绒马甲",null,null,"SPORT PERFORMANCE"]
[{"$nulls":3},"羽绒服",null,null,"TENNIS"]
[{"$nulls":3},"羽绒服两件套",null,null,"WHITE"]
[{"$nulls":3},"男装上衣",null,null,"(空白)"]
[{"$nulls":3},"针织马甲"]
[{"$nulls":3},"针织打底裤"]
[{"$nulls":3},"针织长袖POLO衫"]
[{"$nulls":3},"针织长袖上衣"]
[{"$nulls":3},"针织长袖外套"]
[{"$nulls":3},"针织长袖衫"]
[{"$nulls":3},"针织长裤"]
[{"$nulls":3},"针织连帽上衣"]
[{"$nulls":3},"针织连帽外套"]
[{"$nulls":3},"针织背心"]
[{"$nulls":3},"针织套头衫"]
[{"$nulls":3},"针织短袖POLO衫"]
[{"$nulls":3},"针织短袖连帽上衣"]
[{"$nulls":3},"针织短袖衫"]
[{"$nulls":3},"针织裙"]
[{"$nulls":3},"呢子外套"]
[{"$nulls":3},"连衣裙"]
[{"$nulls":3},"轻薄羽绒服"]
[{"$nulls":3},"梭织九分裤"]
[{"$nulls":3},"梭织马甲"]
[{"$nulls":3},"梭织五分裤"]
[{"$nulls":3},"梭织外套"]
[{"$nulls":3},"梭织长袖衬衫"]
[{"$nulls":3},"梭织长裤"]
[{"$nulls":3},"梭织裙"]
[{"$nulls":3},"棉马甲"]
[{"$nulls":3},"棉服"]
[{"$nulls":3},"短裙（含短裤）"]
[{"$nulls":3},"编织外套"]
[{"$nulls":3},"编织连衣裙"]
[{"$nulls":3},"编织衫"]
[{"$nulls":3},"编织衫两件套"]
[{"$nulls":3},"滑雪服"]
{"$rows_empty":44}
["                                            請把要分析的小票複製在以下"]
["M1436 Khaki","鞋类","戶外鞋","EXPLORE户外鞋","夏季","ATHLETICS","EXPLORE","男","2026-04-02",1,1048,"2026-04-02","斐樂大貨","回流"]
["M0989 Susanna","鞋类","戶外鞋","EXPLORE户外鞋","夏季","ATHLETICS","EXPLORE","女","2026-04-02",1,1012,"2026-04-02","斐樂大貨","回流"]
["M2902 Carmen","鞋类","板鞋","MILANO板鞋","春季","FASHION",null,"女","2025-12-04",1,872,"2026-04-02","斐樂大貨"]
["M2902 Carmen","鞋类","板鞋","MILANO板鞋","春季","FASHION",null,"女","2026-01-06",1,792,"2026-04-02","斐樂大貨"]
["M0989 Susanna","鞋类","跑步鞋","FITNESS跑步鞋","夏季","ATHLETICS","FITNESS","男","2026-03-05",1,990,"2026-04-02","斐樂大貨"]
["M2798 Ryan","鞋类","跑步鞋","FITNESS跑步鞋","夏季","ATHLETICS","FITNESS","男","2026-04-02",1,890,"2026-04-02","斐樂大貨"]
["M0989 Susanna","鞋类","跑步鞋","FITNESS跑步鞋","夏季","ATHLETICS","FITNESS","女","2026-03-05",1,842,"2026-04-02","斐樂大貨","回流"]
["M0989 Susanna","鞋类","老爹鞋","ORIGINALE老爹鞋","夏季","FASHION","ORIGINALE","男","2026-03-19",1,981,"2026-04-02","斐樂大貨","回流"]
["M0989 Susanna","鞋类","老爹鞋","ORIGINALE老爹鞋","夏季","FASHION","ORIGINALE","女","2026-03-05",1,990,"2026-04-02","斐樂大貨"]
["M0989 Susanna","服装","編織衫","编织衫","夏季","ATHLETICS","GOLF","女","2026-03-05",1,1258,"2026-04-02","斐樂大貨","回流"]
["M0989 Susanna","服装","編織衫","编织衫","夏季","LIFESTYLE","WHITE","女","2026-03-19",1,748,"2026-04-02","斐樂大貨","回流"]
["M2902 Carmen","服装","編織衫","编织衫","夏季","LIFESTYLE","HERITAGE","女","2026-03-05",1,862,"2026-04-02","斐樂大貨","回流"]
["M1436 Khaki","服装","短T類","针织短袖衫","春季","ATHLETICS","TENNIS","男","2026-02-05",1,563,"2026-04-02","斐樂大貨"]
["M2902 Carmen","服装","短T類","针织短袖衫","夏季","ATHLETICS","FITNESS","男","2026-03-05",1,653,"2026-04-02","斐樂大貨"]
["M2902 Carmen","服装","短T類","针织短袖衫","夏季","ATHLETICS","FITNESS","男","2026-03-05",2,1020,"2026-04-02","斐樂大貨"]
["M0989 Susanna","服装","短T類","针织短袖POLO衫","夏季","ATHLETICS","GOLF","男","2026-03-05",1,1129,"2026-04-02","斐樂大貨","回流"]
["M2798 Ryan","服装","短T類","针织短袖衫","夏季","ATHLETICS",null,"女","2026-04-02",1,887,"2026-04-02","斐樂大貨","回流"]
["M0989 Susanna","服装","短T類","针织短袖衫","夏季","ATHLETICS",null,"女","2026-04-02",1,833,"2026-04-02","斐樂大貨","回流"]
["M2798 Ryan","服装","短T類","针织短袖POLO衫","夏季",null,null,"男","2026-04-02",1,680,"2026-04-02","斐樂大貨"]
["M1436 Khaki","服装","短T類","针织短袖POLO衫","夏季",null,null,"男","2026-04-02",1,775,"2026-04-02","斐樂大貨","回流"]
["M1436 Khaki","服装","短T類","针织短袖POLO衫","夏季",null,null,"男","2026-04-02",1,774,"2026-04-02","斐樂大貨"]
["M2902 Carmen","服装","短T類","针织短袖衫","夏季","LIFESTYLE","WHITE","男","2026-03-19",1,651,"2026-04-02","斐樂大貨"]
["M2798 Ryan","服装","短T類","针织短袖衫","夏季","LIFESTYLE","WHITE","男","2026-03-19",1,739,"2026-04-02","斐樂大貨"]
["M2798 Ryan","服装","短T類","针织短袖衫","夏季","LIFESTYLE","HERITAGE","男","2026-03-05",1,686,"2026-04-02","斐樂大貨","回流"]
["M2798 Ryan","服装","短T類","针织短袖衫","夏季","LIFESTYLE","HERITAGE","男","2026-03-05",1,686,"2026-04-02","斐樂大貨"]
["M2798 Ryan","服装","短T類","针织短袖衫","夏季","LIFESTYLE","FILA ORIGINALE","男","2026-04-02",1,576,"2026-04-02","斐樂大貨"]
["M2798 Ryan","服装","短T類","针织短袖衫","夏季","LIFESTYLE","FILA ORIGINALE","男","2026-04-02",1,563,"2026-04-02","斐樂大貨","回流"]
["M2798 Ryan","服装","短T類","针织短袖衫","夏季","LIFESTYLE","FILA ORIGINALE","男","2026-04-02",1,576,"2026-04-02","斐樂大貨"]
["M0989 Susanna","服装","短T類","针织短袖POLO衫","夏季",null,null,"女","2026-04-02",1,612,"2026-04-02","斐樂大貨"]
["M0989 Susanna","服装","短T類","针织短袖衫","夏季","LIFESTYLE","WHITE","女","2026-03-19",1,629,"2026-04-02","斐樂大貨","回流"]
["M2798 Ryan","服装","短T類","针织短袖衫","夏季","LIFESTYLE","WHITE","女","2026-03-19",1,670,"2026-04-02","斐樂大貨","回流"]
["M2902 Carmen","服装","短T類","针织短袖衫","夏季","LIFESTYLE","HERITAGE","女","2026-03-05",1,598,"2026-04-02","斐樂大貨"]
["M2798 Ryan","服装","短T類","针织短袖衫","夏季","LIFESTYLE","HERITAGE","女","2026-03-05",1,615,"2026-04-02","斐樂大貨","回流"]
["M2798 Ryan","服装","短T類","针织短袖衫","夏季","LIFESTYLE","FILA ORIGINALE","女","2026-04-02",1,579,"2026-04-02","斐樂大貨","回流"]
["M2798 Ryan","服装","短T類","针织短袖衫","夏季","LIFESTYLE","FILA ORIGINALE","女","2026-04-02",1,579,"2026-04-02","斐樂大貨","回流"]
["M2902 Carmen","服装","短T類","短袖T","夏季","LIFESTYLE","FILA ORIGINALE","不分","2026-03-20",1,387,"2026-04-02","斐樂大貨"]
["M2798 Ryan","服装","內搭","针织长袖上衣","春季","ATHLETICS","FITNESS","女","2025-12-04",1,774,"2026-04-02","斐樂大貨","回流"]
["M0989 Susanna","服装","裙裝","梭织裙","夏季","LIFESTYLE","FILA ORIGINALE","女","2026-04-02",1,780,"2026-04-02","斐樂大貨"]
["M1436 Khaki","服装","梭織褲","梭织长裤","夏季",null,"A.P.","男","2026-03-19",1,1303,"2026-04-02","斐樂大貨"]
["M0989 Susanna","服装","梭織褲","梭织长裤","夏季","LIFESTYLE","FILA ORIGINALE","女","2026-03-19",1,792,"2026-04-02","斐樂大貨"]
["M2798 Ryan","服装","梭織褲","梭织长裤","夏季","LIFESTYLE","FILA ORIGINALE","女","2026-03-19",1,796,"2026-04-02","斐樂大貨","回流"]
["M2902 Carmen","服装","梭織上衣","梭织外套","夏季","ATHLETICS","GOLF","男","2026-03-05",1,1920,"2026-04-02","斐樂大貨","回流"]
["M0989 Susanna","服装","梭織上衣","梭织外套","春季","ATHLETICS","EXPLORE","女","2026-02-19",1,1683,"2026-04-02","斐樂大貨","回流"]
["M2798 Ryan","服装","梭織上衣","梭织上衣","夏季","ATHLETICS","TENNIS","女","2026-03-19",1,1480,"2026-04-02","斐樂大貨","回流"]
["M0989 Susanna","服装","梭織上衣","梭织外套","夏季","ATHLETICS","GOLF","女","2026-03-05",1,1853,"2026-04-02","斐樂大貨","回流"]
["M2798 Ryan","服装","梭織上衣","梭织外套","夏季","ATHLETICS","GOLF","女","2026-03-05",1,1974,"2026-04-02","斐樂大貨","回流"]
["M0989 Susanna","服装","梭織上衣","梭织外套","夏季","ATHLETICS","GOLF","女","2026-03-05",1,2232,"2026-04-02","斐樂大貨","回流"]
["M0989 Susanna","服装","梭織上衣","梭织外套","夏季","ATHLETICS","EXPLORE","女","2026-03-19",1,2107,"2026-04-02","斐樂大貨","回流"]
["M2798 Ryan","服装","梭織上衣","梭织外套","春季","LIFESTYLE","BLUE","男","2026-02-05",1,3063,"2026-04-02","斐樂大貨","回流"]
["M2798 Ryan","服装","梭織上衣","梭织外套","夏季","LIFESTYLE","WHITE","女","2026-03-19",1,1520,"2026-04-02","斐樂大貨","回流"]
["M0989 Susanna","服装","針織褲","针织长裤","夏季",null,"A.P.","男","2026-03-19",1,774,"2026-04-02","斐樂大貨","回流"]
["M0989 Susanna","服装","針織褲","针织长裤","夏季",null,"A.P.","男","2026-03-19",1,774,"2026-04-02","斐樂大貨","回流"]
["M2902 Carmen","服装","針織褲","针织长裤","夏季",null,"A.P.","男","2026-03-19",1,775,"2026-04-02","斐樂大貨"]
["M0989 Susanna","服装","針織褲","针织长裤","夏季","ATHLETICS","FITNESS","女","2026-03-05",1,748,"2026-04-02","斐樂大貨","回流"]
["M0989 Susanna","服装","針織褲","针织长裤","夏季","ATHLETICS","FITNESS","女","2026-03-05",1,748,"2026-04-02","斐樂大貨","回流"]
["M1436 Khaki","服装","針織褲","针织长裤","夏季","LIFESTYLE","HERITAGE","男","2026-03-05",1,792,"2026-04-02","斐樂大貨"]
["M1436 Khaki","服装","針織褲","针织长裤","夏季","LIFESTYLE","HERITAGE","男","2026-03-05",1,748,"2026-04-02","斐樂大貨","回流"]
["M1436 Khaki","服装","針織褲","针织长裤","夏季","LIFESTYLE","WHITE","女","2026-03-19",1,792,"2026-04-02","斐樂大貨"]
["M2902 Carmen","服装","針織褲","针织长裤","夏季","LIFESTYLE","HERITAGE","女","2026-03-05",1,774,"2026-04-02","斐樂大貨"]
["M1436 Khaki","服装","針織上衣","针织长袖外套","春季","LIFESTYLE","WHITE","男","2026-02-05",1,1258,"2026-04-02","斐樂大貨","回流"]
["M2902 Carmen","服装","針織上衣","针织长袖外套","夏季","LIFESTYLE","WHITE","男","2026-03-19",1,1280,"2026-04-02","斐樂大貨"]
["M2902 Carmen","服装","針織上衣","针织长袖外套","夏季","LIFESTYLE","HERITAGE","女","2026-03-05",1,1304,"2026-04-02","斐樂大貨"]
["M0989 Susanna","配件","包類","背包","冬季","LIFESTYLE","WHITE","男","2025-09-04",1,1091,"2026-04-02","斐樂大貨","回流"]
["M1436 Khaki","配件","包類","背包","春季","LIFESTYLE","HERITAGE","男","2025-12-04",1,828,"2026-04-02","斐樂大貨","回流"]
["M0989 Susanna","配件","包類","背包","春季","LIFESTYLE","HERITAGE","男","2025-12-04",1,827,"2026-04-02","斐樂大貨","回流"]
["M0989 Susanna","配件","包類","挎包","夏季","LIFESTYLE","HERITAGE","男","2026-03-05",2,1196,"2026-04-02","斐樂大貨","回流"]
["M2902 Carmen","配件","包類","挎包","夏季","LIFESTYLE","HERITAGE","男","2026-03-05",1,598,"2026-04-02","斐樂大貨","回流"]
["M1436 Khaki","配件","包類","挎包","夏季","LIFESTYLE","FILA ORIGINALE","女","2026-02-05",1,480,"2026-04-02","斐樂大貨"]
["M1436 Khaki","配件","內衣類","内裤","春季","LIFESTYLE","WHITE","男","2025-12-04",1,176,"2026-04-02","斐樂大貨","回流"]
["M2902 Carmen","配件","襪類","低腰袜","春季","ATHLETICS","FITNESS","男","2025-01-07",1,60,"2026-04-02","斐樂大貨"]
["M2902 Carmen","配件","襪類","低腰袜","夏季","ATHLETICS","FITNESS","男","2025-03-06",1,65,"2026-04-02","斐樂大貨"]
["M1436 Khaki","配件","襪類","低腰袜","夏季","LIFESTYLE","WHITE","男","2025-03-06",1,65,"2026-04-02","斐樂大貨"]
["M0989 Susanna","广宣用品","促销品","FILA咖啡随行杯（粉）","常青",null,null,"不分","2026-01-01",1,0,"2026-04-02","斐樂大貨","回流"]
["M2798 Ryan","广宣用品","促销品","FILA咖啡随行杯（粉）","常青",null,null,"不分","2026-01-01",1,0,"2026-04-02","斐樂大貨","回流"]
["M2902 Carmen","广宣用品","促销品","FILA咖啡随行杯（粉）","常青",null,null,"不分","2026-01-01",1,0,"2026-04-02","斐樂大貨","回流"]
["M0989 Susanna","广宣用品","促销品","FILA新款拉杆箱（绿色）","常青",null,null,"不分","2026-01-01",2,0,"2026-04-02","斐樂大貨","回流"]
["M2798 Ryan","广宣用品","促销品","FILA新款拉杆箱（绿色）","常青",null,null,"不分","2026-01-01",2,0,"2026-04-02","斐樂大貨","回流"]
["M0989 Susanna","其它","其它","PLASTIC BAG","春季",null,null,"UNISEX",null,1,1,"2026-04-02","通用"]
["M0989 Susanna","其它","其它","PLASTIC BAG","春季",null,null,"UNISEX",null,2,2,"2026-04-02","通用","回流"]
["M1436 Khaki","其它","其它","PLASTIC BAG","春季",null,null,"UNISEX",null,1,1,"2026-04-02","通用"]
["M2798 Ryan","其它","其它","PLASTIC BAG","春季",null,null,"UNISEX",null,1,1,"2026-04-02","通用"]
["M2798 Ryan","其它","其它","PLASTIC BAG","春季",null,null,"UNISEX",null,2,2,"2026-04-02","通用","回流"]
["M2902 Carmen","其它","其它","PLASTIC BAG","春季",null,null,"UNISEX",null,4,4,"2026-04-02","通用"]
["M2902 Carmen","其它","其它","PLASTIC BAG","春季",null,null,"UNISEX",null,1,1,"2026-04-02","通用","回流"]
["M0989 Susanna","其它","其它","PLASTIC BAG","春季",null,null,"UNISEX",null,2,2,"2026-04-02","通用"]
["M0989 Susanna","其它","其它","PLASTIC BAG","春季",null,null,"UNISEX",null,2,2,"2026-04-02","通用","回流"]
["M1436 Khaki","其它","其它","PLASTIC BAG","春季",null,null,"UNISEX",null,1,1,"2026-04-02","通用"]
["M0989 Susanna","其它","其它","PLASTIC BAG","春季",null,null,"UNISEX",null,2,2,"2026-04-02","通用"]
["M0989 Susanna","其它","其它","PLASTIC BAG","春季",null,null,"UNISEX",null,2,2,"2026-04-02","通用","回流"]
["M1436 Khaki","其它","其它","PLASTIC BAG","春季",null,null,"UNISEX",null,1,1,"2026-04-02","通用","回流"]

{"sheet":"個人KPISales receipt(MTD）","index":3,"n_rows":3802,"n_cols":14,"rows_kept":3802}
["營業員","大類","中類","商品名稱","季節","系列","子系列","性別","上市日期","銷售數量","結算金額","銷售日期","注冊時間","回流判斷"]
["M0989 Susanna","广宣用品","內搭","DOWN JKT","冬季","ATHLETICS","A.P.","FEMALE",{"$nulls":5},"回流"]
["M2172 Janet","其它","內衣類","PAD JKT","春季","FASHION","BLUE","MALE",{"$nulls":5},"新注册"]
["M3060 Anson","服装","羽絨服","PAD VEST","秋季","LIFESTYLE","EXPLORE","UNISEX",{"$nulls":5},"(空白)"]
["M1436 Khaki","配件","針織上衣","SKIRT","夏季","(空白)","FILA MILANO","(空白)"]
["M2798 Ryan","鞋类","針織褲","SWEAT","常青",null,"FILA ORIGINALE"]
["M2801 Fanny","(空白)","梭織上衣","WOVEN JKT","(空白)",null,"FITNESS"]
["M2902 Carmen",null,"梭織褲","WOVEN PANTS",null,null,"GOLF"]
[null,null,"棉服","上衣两件套",null,null,"HERITAGE"]
[null,null,"短T類","中长款羽绒服",null,null,"ICONA"]
[null,null,"滑雪服","长款羽绒服",null,null,"MODERN HERITAGE"]
[null,null,"裙裝","休闲西装",null,null,"MODERNO"]
[null,null,"編織衫","冲锋衣",null,null,"ORIGINALE"]
[null,null,"襯衫","冲锋衣两件套",null,null,"SKI"]
[{"$nulls":3},"羽绒马甲",null,null,"SPORT PERFORMANCE"]
[{"$nulls":3},"羽绒服",null,null,"TENNIS"]
[{"$nulls":3},"羽绒服两件套",null,null,"WHITE"]
[{"$nulls":3},"男装上衣",null,null,"(空白)"]
[{"$nulls":3},"针织马甲"]
[{"$nulls":3},"针织打底裤"]
[{"$nulls":3},"针织长袖POLO衫"]
[{"$nulls":3},"针织长袖上衣"]
[{"$nulls":3},"针织长袖外套"]
[{"$nulls":3},"针织长袖衫"]
[{"$nulls":3},"针织长裤"]
[{"$nulls":3},"针织连帽上衣"]
[{"$nulls":3},"针织连帽外套"]
[{"$nulls":3},"针织背心"]
[{"$nulls":3},"针织套头衫"]
[{"$nulls":3},"针织短袖POLO衫"]
[{"$nulls":3},"针织短袖连帽上衣"]
[{"$nulls":3},"针织短袖衫"]
[{"$nulls":3},"针织裙"]
[{"$nulls":3},"呢子外套"]
[{"$nulls":3},"连衣裙"]
[{"$nulls":3},"轻薄羽绒服"]
[{"$nulls":3},"梭织九分裤"]
[{"$nulls":3},"梭织马甲"]
[{"$nulls":3},"梭织五分裤"]
[{"$nulls":3},"梭织外套"]
[{"$nulls":3},"梭织长袖衬衫"]
[{"$nulls":3},"梭织长裤"]
[{"$nulls":3},"梭织裙"]
[{"$nulls":3},"棉马甲"]
[{"$nulls":3},"棉服"]
[{"$nulls":3},"短裙（含短裤）"]
[{"$nulls":3},"编织外套"]
[{"$nulls":3},"编织连衣裙"]
[{"$nulls":3},"编织衫"]
[{"$nulls":3},"编织衫两件套"]
[{"$nulls":3},"滑雪服"]
{"$rows_empty":44}
["                                            請把要分析的小票複製在以下"]
["M2798 Ryan","鞋类","戶外鞋","EXPLORE户外鞋","春季","ATHLETICS","EXPLORE","男","2026-01-06",1,1047,"2026-02-20","斐樂大貨"]
["M1436 Khaki","鞋类","戶外鞋","EXPLORE户外鞋","春季","ATHLETICS","EXPLORE","男","2025-12-04",1,1400,"2026-02-20","斐樂大貨"]
["M2902 Carmen","鞋类","戶外鞋","湖系户外","春季","FUSION","URBAN TECH","男","2025-12-04",1,1048,"2026-02-20","斐樂潮牌"]
["M0989 Susanna","鞋类","戶外鞋","湖系户外","春季","FUSION","URBAN TECH","男","2025-12-04",1,1048,"2026-02-20","斐樂潮牌"]
["M2801 Fanny","鞋类","戶外鞋","湖系户外","春季","FUSION","URBAN TECH","女","2026-01-06",1,872,"2026-02-20","斐樂潮牌"]
["M2798 Ryan","鞋类","板鞋","复古板鞋","冬季","FASHION","HERITAGE","男","2025-10-09",1,704,"2026-02-20","斐樂大貨"]
["M2902 Carmen","鞋类","板鞋","HERITAGE板鞋","春季","FASHION","HERITAGE","男","2025-12-04",1,872,"2026-02-20","斐樂大貨","回流"]
["M2801 Fanny","鞋类","板鞋","HERITAGE板鞋","春季","FASHION","HERITAGE","男","2025-12-04",1,981,"2026-02-20","斐樂大貨","回流"]
["M2801 Fanny","鞋类","板鞋","HERITAGE板鞋","春季","FASHION","HERITAGE","男","2026-01-06",1,872,"2026-02-20","斐樂大貨"]
["M3060 Anson","鞋类","板鞋","MILANO板鞋","夏季","FASHION",null,"男","2026-03-05",1,990,"2026-02-20","斐樂大貨"]
["M1436 Khaki","鞋类","板鞋","MILANO板鞋","春季","FASHION",null,"女","2026-02-05",1,871,"2026-02-20","斐樂大貨"]
["M0989 Susanna","鞋类","板鞋","MILANO板鞋","春季","FASHION",null,"女","2026-02-05",1,871,"2026-02-20","斐樂大貨"]
["M2801 Fanny","鞋类","板鞋","MILANO板鞋","夏季","FASHION",null,"女","2026-03-05",1,990,"2026-02-20","斐樂大貨"]
["M0989 Susanna","鞋类","板鞋","面包板鞋","春季","FUSION","WORKWEAR","女","2026-01-06",1,792,"2026-02-20","斐樂潮牌","回流"]
["M2801 Fanny","鞋类","板鞋","面包板鞋","春季","FUSION","WORKWEAR","女","2026-01-06",1,872,"2026-02-20","斐樂潮牌"]
["M0989 Susanna","鞋类","跑步鞋","路跑鞋","冬季","ATHLETICS","FITNESS","男","2025-09-04",1,1240,"2026-02-20","斐樂大貨"]
["M0989 Susanna","鞋类","跑步鞋","路跑鞋","冬季","ATHLETICS","FITNESS","男","2025-09-04",1,1240,"2026-02-20","斐樂大貨"]
["M2798 Ryan","鞋类","跑步鞋","FITNESS跑步鞋","春季","ATHLETICS","FITNESS","男","2026-01-06",1,1224,"2026-02-20","斐樂大貨"]
["M3060 Anson","鞋类","跑步鞋","FITNESS跑步鞋","春季","ATHLETICS","FITNESS","女","2025-12-04",1,990,"2026-02-20","斐樂大貨"]
["M2902 Carmen","鞋类","跑步鞋","FITNESS跑步鞋","春季","ATHLETICS","FITNESS","女","2025-12-04",1,763,"2026-02-20","斐樂大貨","回流"]
["M3060 Anson","鞋类","跑步鞋","FITNESS跑步鞋","春季","ATHLETICS","FITNESS","女","2025-12-04",1,990,"2026-02-20","斐樂大貨"]
["M3060 Anson","鞋类","潮鞋","山系户外","春季","FUSION","URBAN TECH","女","2026-02-05",1,871,"2026-02-20","斐樂潮牌"]
["M2798 Ryan","鞋类","潮鞋","山系户外","春季","FUSION","URBAN TECH","女","2026-02-05",1,871,"2026-02-20","斐樂潮牌"]
["M3060 Anson","鞋类","潮鞋","山系户外","春季","FUSION","URBAN TECH","女","2026-02-05",1,872,"2026-02-20","斐樂潮牌"]
["M0989 Susanna","鞋类","老爹鞋","ORIGINALE老爹鞋","春季","FASHION","ORIGINALE","男","2026-02-05",1,990,"2026-02-20","斐樂大貨"]
["M1436 Khaki","鞋类","老爹鞋","ORIGINALE老爹鞋","春季","FASHION","ORIGINALE","男","2025-12-18",1,872,"2026-02-20","斐樂大貨","回流"]
["M0989 Susanna","鞋类","老爹鞋","ORIGINALE老爹鞋","夏季","FASHION","ORIGINALE","男","2026-03-05",1,891,"2026-02-20","斐樂大貨","回流"]
["M1436 Khaki","鞋类","老爹鞋","ORIGINALE老爹鞋","夏季","FASHION","ORIGINALE","男","2026-03-05",1,990,"2026-02-20","斐樂大貨"]
["M2798 Ryan","鞋类","老爹鞋","ORIGINALE老爹鞋","春季","FASHION","ORIGINALE","女","2026-01-06",1,792,"2026-02-20","斐樂大貨","回流"]
["M2902 Carmen","鞋类","老爹鞋","ORIGINALE老爹鞋","春季","FASHION","ORIGINALE","女","2026-01-06",1,792,"2026-02-20","斐樂大貨","回流"]
["M3060 Anson","鞋类","老爹鞋","ORIGINALE老爹鞋","春季","FASHION","ORIGINALE","女","2026-01-06",1,990,"2026-02-20","斐樂大貨"]
["M2902 Carmen","鞋类","老爹鞋","ORIGINALE老爹鞋","春季","FASHION","ORIGINALE","女","2026-01-06",1,792,"2026-02-20","斐樂大貨","回流"]
["M3060 Anson","鞋类","老爹鞋","ORIGINALE老爹鞋","春季","FASHION","ORIGINALE","女","2026-02-05",1,891,"2026-02-20","斐樂大貨","回流"]
["M3060 Anson","鞋类","老爹鞋","ORIGINALE老爹鞋","春季","FASHION","ORIGINALE","女","2026-01-06",1,891,"2026-02-20","斐樂大貨","回流"]
["M0989 Susanna","鞋类","老爹鞋","ORIGINALE老爹鞋","春季","FASHION","ORIGINALE","女","2026-01-06",1,990,"2026-02-20","斐樂大貨"]
["M3060 Anson","鞋类","老爹鞋","ORIGINALE老爹鞋","夏季","FASHION","ORIGINALE","女","2026-03-05",1,890,"2026-02-20","斐樂大貨","回流"]
["M2801 Fanny","鞋类","老爹鞋","老爹鞋","夏季","LIFESTYLE","FILA ORIGINALE","女","2026-03-06",1,711,"2026-02-20","斐樂大貨","回流"]
["M3060 Anson","服装","棒球服","男装外套","春季","INLINE",null,"男","2026-01-06",1,1584,"2026-02-20","斐樂潮牌"]
["M3060 Anson","服装","編織衫","编织外套","夏季","ATHLETICS","GOLF","女","2026-03-05",1,1980,"2026-02-20","斐樂大貨"]
["M2801 Fanny","服装","編織衫","编织外套","夏季","LIFESTYLE","HERITAGE","女","2026-03-05",1,1332,"2026-02-20","斐樂大貨","回流"]
["M0989 Susanna","服装","編織衫","编织衫","夏季","LIFESTYLE","HERITAGE","女","2026-03-05",1,882,"2026-02-20","斐樂大貨","回流"]
["M3060 Anson","服装","襯衫","梭织长袖衬衫","夏季","LIFESTYLE","HERITAGE","男","2026-03-05",1,1062,"2026-02-20","斐樂大貨","回流"]
["M1436 Khaki","服装","襯衫","梭织长袖衬衫","夏季","LIFESTYLE","HERITAGE","女","2026-03-05",1,1062,"2026-02-20","斐樂大貨","回流"]
["M3060 Anson","服装","短T類","针织短袖衫","春季","ATHLETICS","FITNESS","男","2026-01-20",1,522,"2026-02-20","斐樂大貨","回流"]
["M0989 Susanna","服装","短T類","针织短袖POLO衫","春季","ATHLETICS","TENNIS","男","2026-02-05",2,1373,"2026-02-20","斐樂大貨"]
["M2801 Fanny","服装","短T類","针织短袖POLO衫","春季","ATHLETICS","TENNIS","男","2026-02-05",1,702,"2026-02-20","斐樂大貨","回流"]
["M1436 Khaki","服装","短T類","针织短袖衫","夏季","ATHLETICS","FITNESS","男","2026-03-05",1,680,"2026-02-20","斐樂大貨"]
["M0989 Susanna","服装","短T類","针织短袖衫","夏季","ATHLETICS","FITNESS","男","2026-03-05",1,680,"2026-02-20","斐樂大貨"]
["M1436 Khaki","服装","短T類","针织短袖衫","夏季","ATHLETICS","FITNESS","男","2026-03-05",1,680,"2026-02-20","斐樂大貨"]
["M2902 Carmen","服装","短T類","针织短袖衫","夏季","ATHLETICS","FITNESS","男","2026-03-05",1,580,"2026-02-20","斐樂大貨"]
["M2798 Ryan","服装","短T類","针织短袖衫","夏季","ATHLETICS","FITNESS","男","2026-03-05",1,522,"2026-02-20","斐樂大貨","回流"]
["M0989 Susanna","服装","短T類","针织短袖衫","夏季","ATHLETICS","FITNESS","男","2026-03-05",1,580,"2026-02-20","斐樂大貨"]
["M2801 Fanny","服装","短T類","针织短袖衫","夏季","ATHLETICS","FITNESS","男","2026-03-05",1,522,"2026-02-20","斐樂大貨","回流"]
["M2902 Carmen","服装","短T類","针织短袖衫","夏季","ATHLETICS","FITNESS","男","2026-03-05",1,580,"2026-02-20","斐樂大貨","回流"]
["M0989 Susanna","服装","短T類","梭织短袖衫","夏季","ATHLETICS","GOLF","男","2026-03-05",1,1782,"2026-02-20","斐樂大貨","回流"]
["M2798 Ryan","服装","短T類","针织短袖POLO衫","夏季","ATHLETICS","GOLF","男","2026-03-05",1,1332,"2026-02-20","斐樂大貨","回流"]
["M2801 Fanny","服装","短T類","针织短袖POLO衫","夏季","ATHLETICS","GOLF","男","2026-03-05",1,1332,"2026-02-20","斐樂大貨","回流"]
["M2801 Fanny","服装","短T類","针织短袖POLO衫","夏季","ATHLETICS","GOLF","男","2026-03-05",1,1512,"2026-02-20","斐樂大貨","回流"]
["M0989 Susanna","服装","短T類","针织短袖POLO衫","夏季","ATHLETICS","GOLF","男","2026-03-05",1,1280,"2026-02-20","斐樂大貨"]
["M2801 Fanny","服装","短T類","针织短袖POLO衫","夏季","ATHLETICS","GOLF","男","2026-03-05",1,1152,"2026-02-20","斐樂大貨","回流"]
["M2801 Fanny","服装","短T類","针织短袖POLO衫","夏季","ATHLETICS","GOLF","男","2026-03-05",1,1332,"2026-02-20","斐樂大貨","回流"]
["M2801 Fanny","服装","短T類","针织短袖衫","夏季","ATHLETICS","FITNESS","女","2026-03-05",1,580,"2026-02-20","斐樂大貨"]
["M2798 Ryan","服装","短T類","针织短袖衫","夏季","ATHLETICS","FITNESS","女","2026-03-05",1,640,"2026-02-20","斐樂大貨","回流"]
["M3060 Anson","服装","短T類","针织短袖衫","夏季","ATHLETICS","FITNESS","女","2026-03-05",1,640,"2026-02-20","斐樂大貨"]
["M2902 Carmen","服装","短T類","针织短袖衫","夏季","ATHLETICS","FITNESS","女","2026-03-05",1,576,"2026-02-20","斐樂大貨","回流"]
["M2798 Ryan","服装","短T類","针织短袖POLO衫","夏季","ATHLETICS","GOLF","女","2026-03-05",1,1280,"2026-02-20","斐樂大貨"]
["M2801 Fanny","服装","短T類","针织短袖POLO衫","夏季","ATHLETICS","GOLF","女","2026-03-05",1,1152,"2026-02-20","斐樂大貨","回流"]
["M3060 Anson","服装","短T類","针织短袖衫","春季","LIFESTYLE","WHITE","男","2026-02-05",1,598,"2026-02-20","斐樂大貨"]
["M2902 Carmen","服装","短T類","针织短袖POLO衫","春季","LIFESTYLE","WHITE","男","2026-02-05",1,592,"2026-02-20","斐樂大貨","回流"]
["M3060 Anson","服装","短T類","针织短袖POLO衫","春季","LIFESTYLE","WHITE","男","2026-02-05",1,666,"2026-02-20","斐樂大貨","回流"]
["M3060 Anson","服装","短T類","针织短袖POLO衫","春季","LIFESTYLE","WHITE","男","2026-02-05",1,592,"2026-02-20","斐樂大貨"]
["M2801 Fanny","服装","短T類","针织短袖衫","春季","LIFESTYLE","HERITAGE","男","2026-01-20",1,580,"2026-02-20","斐樂大貨"]
["M3060 Anson","服装","短T類","针织短袖衫","春季","LIFESTYLE","HERITAGE","男","2026-01-20",1,522,"2026-02-20","斐樂大貨","回流"]
["M2798 Ryan","服装","短T類","针织短袖衫","春季","LIFESTYLE","HERITAGE","男","2026-01-20",1,464,"2026-02-20","斐樂大貨"]
["M2801 Fanny","服装","短T類","针织短袖衫","春季","LIFESTYLE","HERITAGE","男","2026-01-20",1,522,"2026-02-20","斐樂大貨","回流"]
["M2902 Carmen","服装","短T類","针织短袖衫","春季","LIFESTYLE","HERITAGE","男","2026-01-20",1,464,"2026-02-20","斐樂大貨"]
["M2801 Fanny","服装","短T類","针织短袖衫","春季","LIFESTYLE","FILA ORIGINALE","男","2026-02-05",1,510,"2026-02-20","斐樂大貨"]
["M1436 Khaki","服装","短T類","针织短袖衫","春季","LIFESTYLE","FILA ORIGINALE","男","2026-02-05",2,928,"2026-02-20","斐樂大貨","回流"]
["M2798 Ryan","服装","短T類","针织短袖衫","春季","LIFESTYLE","FILA ORIGINALE","男","2026-02-05",1,592,"2026-02-20","斐樂大貨"]
["M0989 Susanna","服装","短T類","针织短袖衫","春季","LIFESTYLE","FILA ORIGINALE","男","2026-02-05",1,576,"2026-02-20","斐樂大貨","回流"]
["M2798 Ryan","服装","短T類","针织短袖衫","夏季","LIFESTYLE","HERITAGE","男","2026-03-05",1,702,"2026-02-20","斐樂大貨","回流"]
["M3060 Anson","服装","短T類","针织短袖衫","夏季","LIFESTYLE","HERITAGE","男","2026-03-05",1,702,"2026-02-20","斐樂大貨","回流"]
["M0989 Susanna","服装","短T類","针织短袖衫","夏季","LIFESTYLE","HERITAGE","男","2026-03-05",1,702,"2026-02-20","斐樂大貨","回流"]
["M0989 Susanna","服装","短T類","针织短袖衫","夏季","LIFESTYLE","HERITAGE","男","2026-03-05",1,780,"2026-02-20","斐樂大貨"]
["M3060 Anson","服装","短T類","针织短袖衫","夏季","LIFESTYLE","HERITAGE","男","2026-03-05",1,702,"2026-02-20","斐樂大貨","回流"]
["M2801 Fanny","服装","短T類","针织短袖衫","夏季","LIFESTYLE","HERITAGE","男","2026-03-05",1,702,"2026-02-20","斐樂大貨","回流"]
["M1436 Khaki","服装","短T類","针织短袖衫","春季","LIFESTYLE",null,"男","2026-01-06",1,580,"2026-02-20","斐樂大貨"]
["M1436 Khaki","服装","短T類","针织短袖衫","春季","LIFESTYLE","WHITE","女","2026-02-05",1,792,"2026-02-20","斐樂大貨","回流"]
["M2902 Carmen","服装","短T類","针织短袖衫","春季","LIFESTYLE","FILA ORIGINALE","女","2026-02-05",1,522,"2026-02-20","斐樂大貨","回流"]
["M1436 Khaki","服装","短T類","针织短袖衫","夏季","LIFESTYLE","HERITAGE","女","2026-03-05",1,612,"2026-02-20","斐樂大貨","回流"]
["M0989 Susanna","服装","短T類","编织背心","夏季","LIFESTYLE","HERITAGE","女","2026-03-05",1,432,"2026-02-20","斐樂大貨","回流"]
["M3060 Anson","服装","短T類","针织短袖衫","春季","INLINE",null,"不分","2026-01-06",1,464,"2026-02-20","斐樂潮牌"]
["M2902 Carmen","服装","棉服","棉服","春季","LIFESTYLE","BLUE","男","2025-12-18",1,2436,"2026-02-20","斐樂大貨","回流"]
["M2801 Fanny","服装","內搭","针织长袖上衣","冬季","ATHLETICS","GOLF","男","2025-10-23",1,1512,"2026-02-20","斐樂大貨","回流"]
["M2902 Carmen","服装","內搭","针织长袖上衣","春季","ATHLETICS","FITNESS","女","2026-01-20",1,704,"2026-02-20","斐樂大貨"]
["M2902 Carmen","服装","內搭","针织长袖上衣","春季","ATHLETICS","FITNESS","女","2025-12-04",1,880,"2026-02-20","斐樂大貨"]
["M2801 Fanny","服装","內搭","针织套头衫","春季","LIFESTYLE","WHITE","男","2025-12-18",1,704,"2026-02-20","斐樂大貨","回流"]
["M2902 Carmen","服装","內搭","针织套头衫","春季","LIFESTYLE","WHITE","男","2025-12-18",1,792,"2026-02-20","斐樂大貨","回流"]
["M2798 Ryan","服装","內搭","针织套头衫","春季","LIFESTYLE","HERITAGE","男","2026-01-20",1,704,"2026-02-20","斐樂大貨"]
["M2902 Carmen","服装","內搭","针织连帽上衣","春季","LIFESTYLE",null,"男","2026-01-06",1,704,"2026-02-20","斐樂大貨"]
["M2902 Carmen","服装","內搭","针织套头衫","冬季","LIFESTYLE","WHITE","女","2025-11-06",1,880,"2026-02-20","斐樂大貨"]
["M1436 Khaki","服装","內搭","针织套头衫","春季","LIFESTYLE","HERITAGE","女","2025-12-04",1,792,"2026-02-20","斐樂大貨","回流"]
["M2902 Carmen","服装","裙裝","梭织裙","春季","ATHLETICS","GOLF","女","2025-12-04",1,1512,"2026-02-20","斐樂大貨","回流"]
["M2801 Fanny","服装","裙裝","梭织裙","春季","ATHLETICS","GOLF","女","2025-12-04",1,1344,"2026-02-20","斐樂大貨","回流"]
["M1436 Khaki","服装","裙裝","针织裙","夏季","LIFESTYLE","HERITAGE","女","2026-03-05",1,702,"2026-02-20","斐樂大貨","回流"]
["M2902 Carmen","服装","梭織褲","梭织长裤","冬季","ATHLETICS","GOLF","男","2025-10-23",1,1344,"2026-02-20","斐樂大貨","回流"]
["M2798 Ryan","服装","梭織褲","梭织长裤","春季","ATHLETICS","GOLF","男","2025-12-04",1,1332,"2026-02-20","斐樂大貨","回流"]
["M2902 Carmen","服装","梭織褲","梭织长裤","春季","ATHLETICS","EXPLORE","男","2026-02-19",1,1062,"2026-02-20","斐樂大貨","回流"]
["M2798 Ryan","服装","梭織褲","梭织长裤","春季","ATHLETICS","EXPLORE","男","2026-02-19",1,1062,"2026-02-20","斐樂大貨","回流"]
["M2902 Carmen","服装","梭織上衣","梭织外套","冬季","ATHLETICS","GOLF","男","2025-10-09",1,2304,"2026-02-20","斐樂大貨","回流"]
["M2798 Ryan","服装","梭織上衣","梭织外套","夏季","ATHLETICS","GOLF","男","2026-03-05",1,1962,"2026-02-20","斐樂大貨","回流"]
["M3060 Anson","服装","梭織上衣","梭织外套","夏季","ATHLETICS","GOLF","男","2026-03-05",1,2180,"2026-02-20","斐樂大貨"]
["M2902 Carmen","服装","梭織上衣","梭织外套","夏季","ATHLETICS","GOLF","男","2026-03-05",1,1962,"2026-02-20","斐樂大貨","回流"]
["M0989 Susanna","服装","梭織上衣","梭织外套","春季","ATHLETICS","EXPLORE","女","2026-02-19",1,1584,"2026-02-20","斐樂大貨","回流"]
["M2798 Ryan","服装","梭織上衣","梭织外套","春季","ATHLETICS","EXPLORE","女","2026-02-19",1,1584,"2026-02-20","斐樂大貨","回流"]
["M1436 Khaki","服装","梭織上衣","梭织外套","冬季","LIFESTYLE","BLUE","男","2025-09-04",1,2304,"2026-02-20","斐樂大貨","回流"]
["M2801 Fanny","服装","梭織上衣","梭织外套","春季","LIFESTYLE","WHITE","男","2026-02-05",1,1422,"2026-02-20","斐樂大貨","回流"]
["M3060 Anson","服装","梭織上衣","梭织外套","春季","LIFESTYLE","WHITE","男","2026-02-05",1,1391,"2026-02-20","斐樂大貨"]
["M2801 Fanny","服装","梭織上衣","梭织外套","春季","LIFESTYLE","WHITE","男","2026-02-05",1,1422,"2026-02-20","斐樂大貨","回流"]
["M1436 Khaki","服装","梭織上衣","梭织外套","春季","LIFESTYLE","WHITE","男","2026-02-05",1,1344,"2026-02-20","斐樂大貨","回流"]
["M2801 Fanny","服装","梭織上衣","梭织外套","春季","LIFESTYLE","WHITE","男","2026-02-05",1,1344,"2026-02-20","斐樂大貨","回流"]
["M2801 Fanny","服装","梭織上衣","梭织外套","春季","LIFESTYLE","HERITAGE","男","2026-01-20",1,1743,"2026-02-20","斐樂大貨","回流"]
["M1436 Khaki","服装","梭織上衣","梭织外套","春季","LIFESTYLE","HERITAGE","男","2026-01-20",1,1584,"2026-02-20","斐樂大貨","回流"]
["M2798 Ryan","服装","梭織上衣","梭织外套","春季","LIFESTYLE","HERITAGE","男","2026-01-20",1,1584,"2026-02-20","斐樂大貨","回流"]
["M0989 Susanna","服装","梭織上衣","梭织外套","春季","LIFESTYLE","FILA ORIGINALE","男","2026-02-05",1,1512,"2026-02-20","斐樂大貨","回流"]
["M3060 Anson","服装","梭織上衣","梭织外套","夏季","LIFESTYLE","HERITAGE","男","2026-03-05",1,1512,"2026-02-20","斐樂大貨","回流"]
["M2798 Ryan","服装","梭織上衣","梭织外套","春季","LIFESTYLE","WHITE","女","2026-02-05",1,1344,"2026-02-20","斐樂大貨","回流"]
["M0989 Susanna","服装","梭織上衣","梭织外套","春季","LIFESTYLE","WHITE","女","2026-02-05",1,1344,"2026-02-20","斐樂大貨","回流"]
["M2801 Fanny","服装","梭織上衣","梭织外套","春季","LIFESTYLE","WHITE","女","2026-02-05",1,1344,"2026-02-20","斐樂大貨","回流"]
["M1436 Khaki","服装","梭織上衣","梭织外套","夏季","LIFESTYLE","HERITAGE","女","2026-03-05",1,1782,"2026-02-20","斐樂大貨","回流"]
["M1436 Khaki","服装","梭織上衣","梭织外套","夏季","LIFESTYLE","HERITAGE","女","2026-03-05",1,1782,"2026-02-20","斐樂大貨","回流"]
["M3060 Anson","服装","梭織上衣","梭织外套","夏季","LIFESTYLE","HERITAGE","女","2026-03-05",1,1782,"2026-02-20","斐樂大貨","回流"]
["M3060 Anson","服装","梭織上衣","梭织外套","夏季","LIFESTYLE","HERITAGE","女","2026-03-05",1,1782,"2026-02-20","斐樂大貨","回流"]
["M3060 Anson","服装","羽絨服","羽绒马甲","冬季","ATHLETICS","GOLF","女","2025-09-04",1,2016,"2026-02-20","斐樂大貨"]
["M3060 Anson","服装","羽絨服","羽绒服","冬季","LIFESTYLE","BLUE","男","2025-10-23",1,3136,"2026-02-20","斐樂大貨"]
["M2902 Carmen","服装","羽絨服","羽绒马甲","冬季","LIFESTYLE","WHITE","男","2025-09-23",1,1036,"2026-02-20","斐樂大貨","回流"]
["M2801 Fanny","服装","針織褲","针织长裤","春季",null,"A.P.","男","2026-02-05",1,862,"2026-02-20","斐樂大貨"]
["M2902 Carmen","服装","針織褲","针织长裤","春季",null,"A.P.","男","2026-02-05",1,980,"2026-02-20","斐樂大貨"]
["M3060 Anson","服装","針織褲","针织长裤","春季",null,"A.P.","男","2026-02-05",1,882,"2026-02-20","斐樂大貨","回流"]
["M1436 Khaki","服装","針織褲","针织长裤","春季","ATHLETICS","FITNESS","男","2026-01-20",1,704,"2026-02-20","斐樂大貨","回流"]
["M2902 Carmen","服装","針織褲","针织长裤","春季","ATHLETICS","FITNESS","女","2026-01-20",1,704,"2026-02-20","斐樂大貨"]
["M2902 Carmen","服装","針織褲","针织长裤","夏季","ATHLETICS","FITNESS","女","2026-03-05",1,677,"2026-02-20","斐樂大貨","回流"]
["M1436 Khaki","服装","針織褲","针织长裤","冬季","LIFESTYLE","HERITAGE","男","2025-09-04",1,739,"2026-02-20","斐樂大貨"]
["M2902 Carmen","服装","針織褲","针织长裤","春季","LIFESTYLE","HERITAGE","男","2026-01-20",1,704,"2026-02-20","斐樂大貨"]
["M0989 Susanna","服装","針織褲","针织长裤","春季","LIFESTYLE","WHITE","女","2025-12-18",1,792,"2026-02-20","斐樂大貨","回流"]
["M2798 Ryan","服装","針織褲","针织长裤","春季","LIFESTYLE","HERITAGE","女","2026-01-20",1,792,"2026-02-20","斐樂大貨","回流"]
["M3060 Anson","服装","針織褲","针织长裤","夏季","LIFESTYLE","HERITAGE","女","2026-03-05",1,880,"2026-02-20","斐樂大貨"]
["M0989 Susanna","服装","針織褲","针织长裤","夏季","LIFESTYLE","HERITAGE","女","2026-03-05",1,792,"2026-02-20","斐樂大貨","回流"]
["M1436 Khaki","服装","針織褲","针织长裤","夏季","LIFESTYLE","FILA ORIGINALE","女","2026-01-23",1,792,"2026-02-20","斐樂大貨","回流"]
["M1436 Khaki","服装","針織上衣","针织长袖外套","春季","ATHLETICS","FITNESS","男","2026-01-20",1,1303,"2026-02-20","斐樂大貨"]
["M2801 Fanny","服装","針織上衣","针织连帽外套","春季","ATHLETICS","FITNESS","女","2026-01-20",1,1184,"2026-02-20","斐樂大貨"]
["M2902 Carmen","服装","針織上衣","针织连帽外套","春季","ATHLETICS","FITNESS","女","2026-01-20",1,1104,"2026-02-20","斐樂大貨"]
["M2798 Ryan","服装","針織上衣","针织连帽外套","夏季","ATHLETICS","FITNESS","女","2026-03-05",1,1380,"2026-02-20","斐樂大貨"]
["M1436 Khaki","服装","針織上衣","针织长袖外套","夏季","LIFESTYLE","HERITAGE","男","2026-03-05",1,1332,"2026-02-20","斐樂大貨","回流"]
["M2902 Carmen","服装","針織上衣","针织长袖外套","夏季","LIFESTYLE","HERITAGE","男","2026-03-05",1,1332,"2026-02-20","斐樂大貨","回流"]
["M1436 Khaki","服装","針織上衣","针织长袖外套","春季","LIFESTYLE","FILA ORIGINALE","女","2026-02-05",1,1280,"2026-02-20","斐樂大貨"]
["M2902 Carmen","服装","針織上衣","针织长袖外套","春季","LIFESTYLE","FILA ORIGINALE","女","2026-02-05",1,1152,"2026-02-20","斐樂大貨","回流"]
["M2798 Ryan","服装","針織上衣","针织长袖外套","夏季","LIFESTYLE","HERITAGE","女","2026-03-05",1,1332,"2026-02-20","斐樂大貨","回流"]
["M3060 Anson","服装","針織上衣","针织长袖外套","夏季","LIFESTYLE","HERITAGE","女","2026-03-05",1,1480,"2026-02-20","斐樂大貨"]
["M0989 Susanna","服装","針織上衣","针织长袖外套","夏季","LIFESTYLE","HERITAGE","女","2026-03-05",1,1332,"2026-02-20","斐樂大貨","回流"]
["M1436 Khaki","服装","針織上衣","针织上衣","夏季","LIFESTYLE","FILA ORIGINALE","女","2026-01-23",1,882,"2026-02-20","斐樂大貨","回流"]
["M1436 Khaki","服装","針織上衣","针织上衣","夏季","LIFESTYLE","FILA ORIGINALE","女","2026-01-23",1,980,"2026-02-20","斐樂大貨"]
["M0989 Susanna","配件","包類","背包","春季","LIFESTYLE","HERITAGE","男","2025-12-04",1,940,"2026-02-20","斐樂大貨"]
["M1436 Khaki","配件","包類","背包","夏季","LIFESTYLE","HERITAGE","男","2026-03-05",1,880,"2026-02-20","斐樂大貨"]
["M2801 Fanny","配件","包類","挎包","春季","LIFESTYLE","HERITAGE","女","2025-12-04",1,598,"2026-02-20","斐樂大貨"]
["M2801 Fanny","配件","包類","背包","春季","LIFESTYLE","HERITAGE","女","2025-12-04",1,687,"2026-02-20","斐樂大貨"]
["M2801 Fanny","配件","包類","挎包","夏季","LIFESTYLE","HERITAGE","女","2026-03-05",1,612,"2026-02-20","斐樂大貨","回流"]
["M2801 Fanny","配件","包類","挎包","夏季","LIFESTYLE","FILA ORIGINALE","女","2026-01-08",1,612,"2026-02-20","斐樂大貨","回流"]
["M1436 Khaki","配件","包類","挎包","夏季","LIFESTYLE","FILA ORIGINALE","女","2026-02-05",1,480,"2026-02-20","斐樂大貨"]
["M0989 Susanna","配件","襪類","低腰袜","春季","ATHLETICS","FITNESS","男","2025-01-07",1,60,"2026-02-20","斐樂大貨"]
["M3060 Anson","配件","襪類","低腰袜","夏季","ATHLETICS","FITNESS","男","2025-03-06",1,59,"2026-02-20","斐樂大貨","回流"]
["M2801 Fanny","配件","襪類","低腰袜","秋季","ATHLETICS","FITNESS","男","2025-06-03",5,270,"2026-02-20","斐樂大貨","回流"]
["M3060 Anson","配件","襪類","低腰袜","秋季","ATHLETICS","FITNESS","男","2025-06-03",2,108,"2026-02-20","斐樂大貨","回流"]
["M3060 Anson","配件","襪類","低腰袜","冬季","ATHLETICS","FITNESS","男","2025-09-04",1,54,"2026-02-20","斐樂大貨","回流"]
["M1436 Khaki","配件","襪類","中腰袜","春季","ATHLETICS","FITNESS","男","2025-12-04",1,70,"2026-02-20","斐樂大貨","回流"]
["M1436 Khaki","配件","襪類","中腰袜","冬季","ATHLETICS","FITNESS","女","2025-10-09",1,70,"2026-02-20","斐樂大貨","回流"]
["M3060 Anson","配件","襪類","中腰袜","冬季","ATHLETICS","FITNESS","女","2025-09-04",1,70,"2026-02-20","斐樂大貨"]
["M1436 Khaki","配件","襪類","低腰袜","冬季","ATHLETICS","FITNESS","女","2025-10-09",1,60,"2026-02-20","斐樂大貨","回流"]
["M0989 Susanna","配件","襪類","低腰袜","夏季","LIFESTYLE","WHITE","男","2025-03-06",1,65,"2026-02-20","斐樂大貨"]
["M0989 Susanna","配件","襪類","低腰袜","夏季","LIFESTYLE","WHITE","男","2025-03-06",1,65,"2026-02-20","斐樂大貨"]
["M3060 Anson","配件","襪類","低腰袜","夏季","LIFESTYLE","WHITE","男","2025-03-06",1,59,"2026-02-20","斐樂大貨","回流"]
["M0989 Susanna","配件","襪類","中腰袜","秋季","LIFESTYLE","WHITE","男","2025-06-03",1,70,"2026-02-20","斐樂大貨"]
["M3060 Anson","配件","襪類","低腰袜","秋季","LIFESTYLE","FILA ORIGINALE","男","2025-06-03",1,54,"2026-02-20","斐樂大貨","回流"]
["M3060 Anson","配件","襪類","中腰袜","春季","LIFESTYLE","HERITAGE","女","2025-12-04",1,70,"2026-02-20","斐樂大貨"]
["M1436 Khaki","广宣用品","促销品","FILA新款拉杆箱（绿色）","常青",null,null,"不分","2025-06-04",1,0,"2026-02-20","斐樂大貨","回流"]
["M2798 Ryan","广宣用品","促销品","FILA新款拉杆箱（绿色）","常青",null,null,"不分","2025-06-04",1,0,"2026-02-20","斐樂大貨","回流"]
["M2801 Fanny","广宣用品","促销品","FILA新款拉杆箱（绿色）","常青",null,null,"不分","2025-06-04",1,0,"2026-02-20","斐樂大貨","回流"]
["M0989 Susanna","其它","其它","PLASTIC BAG","春季",null,null,"UNISEX",null,3,3,"2026-02-20","通用"]
["M0989 Susanna","其它","其它","PLASTIC BAG","春季",null,null,"UNISEX",null,2,2,"2026-02-20","通用","回流"]
["M1436 Khaki","其它","其它","PLASTIC BAG","春季",null,null,"UNISEX",null,2,2,"2026-02-20","通用"]
["M2798 Ryan","其它","其它","PLASTIC BAG","春季",null,null,"UNISEX",null,1,1,"2026-02-20","通用"]
["M2798 Ryan","其它","其它","PLASTIC BAG","春季",null,null,"UNISEX",null,1,1,"2026-02-20","通用","回流"]
["M2801 Fanny","其它","其它","PLASTIC BAG","春季",null,null,"UNISEX",null,2,2,"2026-02-20","通用"]
["M2801 Fanny","其它","其它","PLASTIC BAG","春季",null,null,"UNISEX",null,3,3,"2026-02-20","通用","回流"]
["M2902 Carmen","其它","其它","PLASTIC BAG","春季",null,null,"UNISEX",null,1,1,"2026-02-20","通用"]
["M2902 Carmen","其它","其它","PLASTIC BAG","春季",null,null,"UNISEX",null,5,5,"2026-02-20","通用","回流"]
["M3060 Anson","其它","其它","PLASTIC BAG","春季",null,null,"UNISEX",null,8,8,"2026-02-20","通用"]
["M0989 Susanna","其它","其它","PLASTIC BAG","春季",null,null,"UNISEX",null,1,1,"2026-02-20","通用","回流"]
["M1436 Khaki","其它","其它","PLASTIC BAG","春季",null,null,"UNISEX",null,1,1,"2026-02-20","通用"]
["M1436 Khaki","其它","其它","PLASTIC BAG","春季",null,null,"UNISEX",null,1,1,"2026-02-20","通用","回流"]
["M2798 Ryan","其它","其它","PLASTIC BAG","春季",null,null,"UNISEX",null,1,1,"2026-02-20","通用"]
["M2798 Ryan","其它","其它","PLASTIC BAG","春季",null,null,"UNISEX",null,0,0,"2026-02-20","通用","回流"]
["M2801 Fanny","其它","其它","PLASTIC BAG","春季",null,null,"UNISEX",null,1,1,"2026-02-20","通用"]
["M2902 Carmen","其它","其它","PLASTIC BAG","春季",null,null,"UNISEX",null,2,2,"2026-02-20","通用"]
["M3060 Anson","其它","其它","PLASTIC BAG","春季",null,null,"UNISEX",null,1,1,"2026-02-20","通用","回流"]
["M0989 Susanna","其它","其它","PLASTIC BAG","春季",null,null,"UNISEX",null,4,4,"2026-02-20","通用"]
["M0989 Susanna","其它","其它","PLASTIC BAG","春季",null,null,"UNISEX",null,2,2,"2026-02-20","通用","回流"]
["M1436 Khaki","其它","其它","PLASTIC BAG","春季",null,null,"UNISEX",null,4,4,"2026-02-20","通用"]
["M1436 Khaki","其它","其它","PLASTIC BAG","春季",null,null,"UNISEX",null,2,2,"2026-02-20","通用","回流"]
["M2798 Ryan","其它","其它","PLASTIC BAG","春季",null,null,"UNISEX",null,2,2,"2026-02-20","通用"]
["M2798 Ryan","其它","其它","PLASTIC BAG","春季",null,null,"UNISEX",null,1,1,"2026-02-20","通用","回流"]
["M2801 Fanny","其它","其它","PLASTIC BAG","春季",null,null,"UNISEX",null,3,3,"2026-02-20","通用"]
["M2801 Fanny","其它","其它","PLASTIC BAG","春季",null,null,"UNISEX",null,3,3,"2026-02-20","通用","回流"]
["M2902 Carmen","其它","其它","PLASTIC BAG","春季",null,null,"UNISEX",null,1,1,"2026-02-20","通用"]
["M2902 Carmen","其它","其它","PLASTIC BAG","春季",null,null,"UNISEX",null,1,1,"2026-02-20","通用","回流"]
["M3060 Anson","其它","其它","PLASTIC BAG","春季",null,null,"UNISEX",null,3,3,"2026-02-20","通用"]
["M3060 Anson","其它","其它","PLASTIC BAG","春季",null,null,"UNISEX",null,2,2,"2026-02-20","通用","回流"]
{"$rows_empty":3488}
["M2801 Fanny","其它","其它","PLASTIC BAG","春季",null,null,"UNISEX",null,3,3,"2025-08-31","通用"]